Workbook

Sheet Stammdaten_Analysenprogramm
A1: Pegelbezeichnung lang | B1: zusätzliche/ optionale Bez. | C1: Name des Messpunktes (GeODin) | D1: Rechtswert | E1: Hochwert | F1: Höhe ROK | G1: Höhe GOK | H1: Pegel- material | I1: Rohr- überstand | J1: Lage Pegel- abschluss | K1: Filter- ober- kante | L1: Filter- unter- kante | M1: Filter- ober- kante | N1: Filter- unter- kante | O1: Über-schüttung | P1: Unter-schüttung | Q1: Filter- länge | R1: wirksame Filterlänge | S1: Bohr- durch- messer | T1: mittlere Druck- spiegel- höhe [DSH] | U1: Einhäng- tiefe Tauch- pumpe | V1: Einhäng- tiefe Tauch- pumpe | W1: Rohr- durch- messer (innen) | X1: Filter- lage GWS/FOK | Y1: wasser- erfülltes Aufsatz- rohr- volumen (netto) | Z1: Filter- volumen | AA1: Rohr- volumen | AB1: Förder- menge SOLL | AC1: Pump- dauer SOLL | AD1: Klarpump- strom SOLL | AE1: Stichtagsmessung Grundwasserstände | AF1: Übersicht Beprobung Pegel | AH1: BAM Kontrollanalyse | AI1: LCKW | AJ1: FCKW | AK1: MKW | AL1: PAK | AM1: NSO-HET | AN1: BTEX | AO1: CN ges./lf. | AP1: Arsen | AQ1: Aniline | AR1: Alkyl-phenole | AS1: Chlor-benzole | AT1: Chlornitro-benzole | AU1: STV | AV1: PFAS | AW1: DDA / Clofibrin-säure | AX1: Eisen (ges) / Eisen-2 | AY1: Sulfat | AZ1: Nitrat | BA1: Nitrit | BB1: Ammon-ium | BC1: Spuren-elemente (Sb, Ba, B, Co, Mo, Se, Tl, V) | BD1: Schwer-metalle (Cd, Cr, Cu, Hg, Ni, Pb, Zn) | BE1: Fluorid | BF1: Chlorid | BG1: AOX | BH1: NA-Para-meter
F2: mNN/ NHN | G2: mNN/ NHN | I2: m | K2: m uGOK | L2: m uGOK | M2: m uROK | N2: m uROK | O2: m | P2: m | Q2: m | R2: m | S2: mm | T2: m uROK | U2: Lage FOK | V2: m uROK | W2: mm | X2: unter/ über: GWS unterhalb/ oberhalb FOK k.A.: keine Angabe | Y2: m3 | Z2: m3 | AA2: m3 | AB2: L | AC2: min | AD2: L/min | AE2: Messung Pegel | AF2: Beprobung Pegel | AG2: Summe Analysen | AH2: Messung Pegel
A3: Eingabe | B3: Eingabe | C3: Eingabe | D3: Eingabe | E3: Eingabe | F3: Eingabe | G3: Eingabe | H3: Eingabe | I3: Formel | J3: Formel | K3: Eingabe | L3: Eingabe | M3: Formel | N3: Formel | O3: Eingabe | P3: Eingabe | Q3: Formel | R3: Formel | S3: Eingabe | T3: Eingabe | U3: Auswahl | V3: Formel | W3: Eingabe | X3: Formel | Y3: Formel | Z3: Formel | AA3: Formel | AB3: Formel | AC3: Formel | AD3: Eingabe | AE3: Eingabe | AF3: Formel | AG3: Formel | AH3: Eingabe | AI3: Eingabe | AJ3: Eingabe | AK3: Eingabe | AL3: Eingabe | AM3: Eingabe | AN3: Eingabe | AO3: Eingabe | AP3: Eingabe | AQ3: Eingabe | AR3: Eingabe | AS3: Eingabe | AT3: Eingabe | AU3: Eingabe | AV3: Eingabe | AW3: Eingabe | AX3: Eingabe | AY3: Eingabe | AZ3: Eingabe | BA3: Eingabe | BB3: Eingabe | BC3: Eingabe | BD3: Eingabe | BE3: Eingabe | BF3: Eingabe | BG3: Eingabe | BH3: Eingabe
C4: Eintragungen des INVNAME zur schnelleren Zuordnung beim Import in GeODin empfohlen | J4: "über Flur" oder "unter Flur" | U4: A | V4: max. zulässige Absenkung [m uDSH] | AB4: Faktor Zuschlag | AD4: abhängig von z.B. Ergiebigkeit GWMS und Leistung Pumpe | AE4: Eingabe "Ja", wenn Stichtagsmessung erfolgen soll | AH4: Eingabe "Ja", wenn Kontrollanalytik mit der BAM vorgesehen ist | AI4: Eingabe "1", wenn Untersuchung auf diese Parametergruppe erfolgen soll
U5: B | V5: 2 | AB5: 1.5
A6: Filter
A7: Beispiel GWMS XX/XX | B7: WUH XXX | C7: GWMS XX/XX (FOK - FUK m) | D7: 123456 | E7: 7654321 | F7: 31 | G7: 30.5 | H7: HDPE | I7: =IF(OR(ISBLANK(F7)=TRUE,ISBLANK(G7)=TRUE),"k.A.",F7-G7) -> 0.5 | J7: =IF(OR(I7="k.A.",ISNUMBER(I7)=FALSE),"k.A.",IF(I7>0,"über Flur","unter Flur")) -> über Flur | K7: 7 | L7: 10 | M7: =IF(OR(I7="k.A.",ISNUMBER(K7)=FALSE),"k.A.",K7+I7) -> 7.5 | N7: =IF(OR(I7="k.A.",ISNUMBER(L7)=FALSE),"k.A.",L7+I7) -> 10.5 | O7: 0.5 | P7: 0.5 | Q7: =L7-K7 -> 3 | R7: =IF(ISNUMBER(Q7),Q7+O7+P7,"") -> 4 | S7: 327 | T7: 3.44 | U7: B | V7: =IF(ISBLANK(U7),"k.A.",IF(ISNUMBER(T7),IF(AND(U7="A",X7="unter"),"PN nicht mgl.",IF(U7="B",T7+$V$5,M7-1)),"mittlere DSH fehlt")) -> 5.44 | W7: 50 | X7: =IF(T7>0,(IF(Y7>0,"über", "unter")),"k.A.") -> über | Y7: =IF((((PI()*POWER(W7/1000,2))/4)*(M7-T7))<0,0,((PI()*POWER(W7/1000,2))/4*(M7-T7))) -> 0.007971791358 | Z7: =IF(Y7>0,((PI()*POWER(S7/1000,2)/4)*(Q7)),((PI()*POWER(S7/1000,2)/4)*(Q7+(M7-T7)))) -> 0.2519455206 | AA7: =((PI()*POWER(W7/1000,2)/4)*(N7-T7)) -> 0.01386227758 | AB7: =IF(U7="A",Z7*1000*$AB$5,(Y7+(Z7*$AB$5))*1000) -> 385.8900723 | AC7: =(AB7)/AD7 -> 19.29450362 | AD7: 20 | AE7: Ja | AF7: =IF(AG7=0,"","ja") -> ja | AG7: =SUM(AI7:BH7) -> 26 | AH7: Ja | AI7: 1 | AJ7: 1 | AK7: 1 | AL7: 1 | AM7: 1 | AN7: 1 | AO7: 1 | AP7: 1 | AQ7: 1 | AR7: 1 | AS7: 1 | AT7: 1 | AU7: 1 | AV7: 1 | AW7: 1 | AX7: 1 | AY7: 1 | AZ7: 1 | BA7: 1 | BB7: 1 | BC7: 1 | BD7: 1 | BE7: 1 | BF7: 1 | BG7: 1 | BH7: 1
I8: =IF(OR(ISBLANK(F8)=TRUE,ISBLANK(G8)=TRUE),"k.A.",F8-G8) -> k.A. | J8: k.A. | M8: =IF(OR(I8="k.A.",ISNUMBER(K8)=FALSE),"k.A.",K8+I8) -> k.A. | N8: k.A. | Q8: =L8-K8 -> 0 | R8: =IF(ISNUMBER(Q8),Q8+O8+P8,"") -> 0 | V8: =IF(ISBLANK(U8),"k.A.",IF(ISNUMBER(T8),IF(AND(U8="A",X8="unter"),"PN nicht mgl.",IF(U8="B",T8+$V$5,M8-1)),"mittlere DSH fehlt")) -> k.A. | X8: k.A. | Y8: =IF(((PI()*POWER(W8/1000,2))/4*(M8-T8))<0,0,((PI()*POWER(W8/1000,2))/4*(M8-T8))) ->  | Z8: =IF(Y8>0,((PI()*POWER(S8/1000,2)/4)*(Q8)),((PI()*POWER(S8/1000,2)/4)*(Q8+(M8-T8)))) ->  | AA8: =((PI()*POWER(W8/1000,2)/4)*(N8-T8)) ->  | AB8: =IF(U8="A",Z8*1000*$AB$5,(Y8+(Z8*$AB$5))*1000) ->  | AC8: =(AB8)/AD8 ->  | AG8: =SUM(AI8:BH8) -> 0
I9: =IF(OR(ISBLANK(F9)=TRUE,ISBLANK(G9)=TRUE),"k.A.",F9-G9) -> k.A. | J9: k.A. | M9: k.A. | N9: k.A. | Q9: =L9-K9 -> 0 | R9: =IF(ISNUMBER(Q9),Q9+O9+P9,"") -> 0 | V9: =IF(ISBLANK(U9),"k.A.",IF(ISNUMBER(T9),IF(AND(U9="A",X9="unter"),"PN nicht mgl.",IF(U9="B",T9+$V$5,M9-1)),"mittlere DSH fehlt")) -> k.A. | X9: k.A. | Z9: =IF(Y9>0,((PI()*POWER(S9/1000,2)/4)*(Q9)),((PI()*POWER(S9/1000,2)/4)*(Q9+(M9-T9)))) ->  | AA9: =((PI()*POWER(W9/1000,2)/4)*(N9-T9)) ->  | AB9: =IF(U9="A",Z9*1000*$AB$5,(Y9+(Z9*$AB$5))*1000) ->  | AC9: =(AB9)/AD9 ->  | AG9: 0
I10: k.A. | J10: k.A. | M10: k.A. | N10: k.A. | Q10: 0 | R10: 0 | V10: k.A. | X10: k.A. | AG10: 0
I11: k.A. | J11: k.A. | M11: k.A. | N11: k.A. | Q11: 0 | R11: 0 | V11: k.A. | X11: k.A. | AG11: 0
I12: k.A. | J12: k.A. | M12: k.A. | N12: k.A. | Q12: 0 | R12: 0 | V12: k.A. | X12: k.A. | AG12: 0
I13: k.A. | J13: k.A. | M13: k.A. | N13: k.A. | Q13: 0 | R13: 0 | V13: k.A. | X13: k.A. | AG13: 0
I14: k.A. | J14: k.A. | M14: k.A. | N14: k.A. | Q14: 0 | R14: 0 | V14: k.A. | X14: k.A. | AG14: 0
I15: k.A. | J15: k.A. | M15: k.A. | N15: k.A. | Q15: 0 | R15: 0 | V15: k.A. | X15: k.A. | AG15: 0
I16: k.A. | J16: k.A. | M16: k.A. | N16: k.A. | Q16: 0 | R16: 0 | V16: k.A. | X16: k.A. | AG16: 0
I17: k.A. | J17: k.A. | M17: k.A. | N17: k.A. | Q17: 0 | R17: 0 | V17: k.A. | X17: k.A. | AG17: 0
I18: k.A. | J18: k.A. | M18: k.A. | N18: k.A. | Q18: 0 | R18: 0 | V18: k.A. | X18: k.A. | AG18: 0
I19: k.A. | J19: k.A. | M19: k.A. | N19: k.A. | Q19: 0 | R19: 0 | V19: k.A. | X19: k.A. | AG19: 0
I20: k.A. | J20: k.A. | M20: k.A. | N20: k.A. | Q20: 0 | R20: 0 | V20: k.A. | X20: k.A. | AG20: 0
I21: k.A. | J21: k.A. | M21: k.A. | N21: k.A. | Q21: 0 | R21: 0 | V21: k.A. | X21: k.A. | AG21: 0
I22: k.A. | J22: k.A. | M22: k.A. | N22: k.A. | Q22: 0 | R22: 0 | V22: k.A. | X22: k.A. | AG22: 0
I23: k.A. | J23: k.A. | M23: k.A. | N23: k.A. | Q23: 0 | R23: 0 | V23: k.A. | X23: k.A. | AG23: 0
I24: k.A. | J24: k.A. | M24: k.A. | N24: k.A. | Q24: 0 | R24: 0 | V24: k.A. | X24: k.A. | AG24: 0
I25: k.A. | J25: k.A. | M25: k.A. | N25: k.A. | Q25: 0 | R25: 0 | V25: k.A. | X25: k.A. | AG25: 0
I26: k.A. | J26: k.A. | M26: k.A. | N26: k.A. | Q26: 0 | R26: 0 | V26: k.A. | X26: k.A. | AG26: 0
I27: k.A. | J27: k.A. | M27: k.A. | N27: k.A. | Q27: 0 | R27: 0 | V27: k.A. | X27: k.A. | AG27: 0
I28: k.A. | J28: k.A. | M28: k.A. | N28: k.A. | Q28: 0 | R28: 0 | V28: k.A. | X28: k.A. | AG28: 0
I29: k.A. | J29: k.A. | M29: k.A. | N29: k.A. | Q29: 0 | R29: 0 | V29: k.A. | X29: k.A. | AG29: 0
I30: k.A. | J30: k.A. | M30: k.A. | N30: k.A. | Q30: 0 | R30: 0 | V30: k.A. | X30: k.A. | AG30: 0
I31: k.A. | J31: k.A. | M31: k.A. | N31: k.A. | Q31: 0 | R31: 0 | V31: k.A. | X31: k.A. | AG31: 0
I32: k.A. | J32: k.A. | M32: k.A. | N32: k.A. | Q32: 0 | R32: 0 | V32: k.A. | X32: k.A. | AG32: 0
I33: k.A. | J33: k.A. | M33: k.A. | N33: k.A. | Q33: 0 | R33: 0 | V33: k.A. | X33: k.A. | AG33: 0
I34: k.A. | J34: k.A. | M34: k.A. | N34: k.A. | Q34: 0 | R34: 0 | V34: k.A. | X34: k.A. | AG34: 0
I35: k.A. | J35: k.A. | M35: k.A. | N35: k.A. | Q35: 0 | R35: 0 | V35: k.A. | X35: k.A. | AG35: 0
I36: k.A. | J36: k.A. | M36: k.A. | N36: k.A. | Q36: 0 | R36: 0 | V36: k.A. | X36: k.A. | AG36: 0
I37: k.A. | J37: k.A. | M37: k.A. | N37: k.A. | Q37: 0 | R37: 0 | V37: k.A. | X37: k.A. | AG37: 0
I38: k.A. | J38: k.A. | M38: k.A. | N38: k.A. | Q38: 0 | R38: 0 | V38: k.A. | X38: k.A. | AG38: 0
I39: k.A. | J39: k.A. | M39: k.A. | N39: k.A. | Q39: 0 | R39: 0 | V39: k.A. | X39: k.A. | AG39: 0
I40: k.A. | J40: k.A. | M40: k.A. | N40: k.A. | Q40: 0 | R40: 0 | V40: k.A. | X40: k.A. | AG40: 0
I41: k.A. | J41: k.A. | M41: k.A. | N41: k.A. | Q41: 0 | R41: 0 | V41: k.A. | X41: k.A. | AG41: 0
I42: k.A. | J42: k.A. | M42: k.A. | N42: k.A. | Q42: 0 | R42: 0 | V42: k.A. | X42: k.A. | AG42: 0
I43: k.A. | J43: k.A. | M43: k.A. | N43: k.A. | Q43: 0 | R43: 0 | V43: k.A. | X43: k.A. | AG43: 0
I44: k.A. | J44: k.A. | M44: k.A. | N44: k.A. | Q44: 0 | R44: 0 | V44: k.A. | X44: k.A. | AG44: 0
I45: k.A. | J45: k.A. | M45: k.A. | N45: k.A. | Q45: 0 | R45: 0 | V45: k.A. | X45: k.A. | AG45: 0
I46: k.A. | J46: k.A. | M46: k.A. | N46: k.A. | Q46: 0 | R46: 0 | V46: k.A. | X46: k.A. | AG46: 0
I47: k.A. | J47: k.A. | M47: k.A. | N47: k.A. | Q47: 0 | R47: 0 | V47: k.A. | X47: k.A. | AG47: 0
I48: k.A. | J48: k.A. | M48: k.A. | N48: k.A. | Q48: 0 | R48: 0 | V48: k.A. | X48: k.A. | AG48: 0
I49: k.A. | J49: k.A. | M49: k.A. | N49: k.A. | Q49: 0 | R49: 0 | V49: k.A. | X49: k.A. | AG49: 0
I50: k.A. | J50: k.A. | M50: k.A. | N50: k.A. | Q50: 0 | R50: 0 | V50: k.A. | X50: k.A. | AG50: 0
I51: k.A. | J51: k.A. | M51: k.A. | N51: k.A. | Q51: 0 | R51: 0 | V51: k.A. | X51: k.A. | AG51: 0
I52: k.A. | J52: k.A. | M52: k.A. | N52: k.A. | Q52: 0 | R52: 0 | V52: k.A. | X52: k.A. | AG52: 0
I53: k.A. | J53: k.A. | M53: k.A. | N53: k.A. | Q53: 0 | R53: 0 | V53: k.A. | X53: k.A. | AG53: 0
I54: k.A. | J54: k.A. | M54: k.A. | N54: k.A. | Q54: 0 | R54: 0 | V54: k.A. | X54: k.A. | AG54: 0
I55: k.A. | J55: k.A. | M55: k.A. | N55: k.A. | Q55: 0 | R55: 0 | V55: k.A. | X55: k.A. | AG55: 0
I56: k.A. | J56: k.A. | M56: k.A. | N56: k.A. | Q56: 0 | R56: 0 | V56: k.A. | X56: k.A. | AG56: 0
I57: k.A. | J57: k.A. | M57: k.A. | N57: k.A. | Q57: 0 | R57: 0 | V57: k.A. | X57: k.A. | AG57: 0
I58: k.A. | J58: k.A. | M58: k.A. | N58: k.A. | Q58: 0 | R58: 0 | V58: k.A. | X58: k.A. | AG58: 0
I59: k.A. | J59: k.A. | M59: k.A. | N59: k.A. | Q59: 0 | R59: 0 | V59: k.A. | X59: k.A. | AG59: 0
I60: k.A. | J60: k.A. | M60: k.A. | N60: k.A. | Q60: 0 | R60: 0 | V60: k.A. | X60: k.A. | AG60: 0
I61: k.A. | J61: k.A. | M61: k.A. | N61: k.A. | Q61: 0 | R61: 0 | V61: k.A. | X61: k.A. | AG61: 0
I62: k.A. | J62: k.A. | M62: k.A. | N62: k.A. | Q62: 0 | R62: 0 | V62: k.A. | X62: k.A. | AG62: 0
I63: k.A. | J63: k.A. | M63: k.A. | N63: k.A. | Q63: 0 | R63: 0 | V63: k.A. | X63: k.A. | AG63: 0
I64: k.A. | J64: k.A. | M64: k.A. | N64: k.A. | Q64: 0 | R64: 0 | V64: k.A. | X64: k.A. | AG64: 0
I65: k.A. | J65: k.A. | M65: k.A. | N65: k.A. | Q65: 0 | R65: 0 | V65: k.A. | X65: k.A. | AG65: 0
I66: k.A. | J66: k.A. | M66: k.A. | N66: k.A. | Q66: 0 | R66: 0 | V66: k.A. | X66: k.A. | AG66: 0
I67: k.A. | J67: k.A. | M67: k.A. | N67: k.A. | Q67: 0 | R67: 0 | V67: k.A. | X67: k.A. | AG67: 0
I68: k.A. | J68: k.A. | M68: k.A. | N68: k.A. | Q68: 0 | R68: 0 | V68: k.A. | X68: k.A. | AG68: 0
I69: k.A. | J69: k.A. | M69: k.A. | N69: k.A. | Q69: 0 | R69: 0 | V69: k.A. | X69: k.A. | AG69: 0
I70: k.A. | J70: k.A. | M70: k.A. | N70: k.A. | Q70: 0 | R70: 0 | V70: k.A. | X70: k.A. | AG70: 0
I71: =IF(OR(ISBLANK(F71)=TRUE,ISBLANK(G71)=TRUE),"k.A.",F71-G71) -> k.A. | J71: =IF(OR(I71="k.A.",ISNUMBER(I71)=FALSE),"k.A.",IF(I71>0,"über Flur","unter Flur")) -> k.A. | M71: =IF(OR(I71="k.A.",ISNUMBER(K71)=FALSE),"k.A.",K71+I71) -> k.A. | N71: =IF(OR(I71="k.A.",ISNUMBER(L71)=FALSE),"k.A.",L71+I71) -> k.A. | Q71: =L71-K71 -> 0 | R71: =IF(ISNUMBER(Q71),Q71+O71+P71,"") -> 0 | V71: =IF(ISBLANK(U71),"k.A.",IF(ISNUMBER(T71),IF(AND(U71="A",X71="unter"),"PN nicht mgl.",IF(U71="B",T71+$V$5,M71-1)),"mittlere DSH fehlt")) -> k.A. | X71: =IF(T71>0,(IF(Y71>0,"über", "unter")),"k.A.") -> k.A. | Y71: =IF(((PI()*POWER(W71/1000,2))/4*(M71-T71))<0,0,((PI()*POWER(W71/1000,2))/4*(M71-T71))) ->  | AC71: =(AB71)/AD71 ->  | AF71: =IF(AG71=0,"","ja") ->  | AG71: 0
I72: k.A. | J72: k.A. | M72: k.A. | N72: k.A. | Q72: 0 | R72: 0 | V72: k.A. | X72: k.A. | Z72: =IF(Y72>0,((PI()*POWER(S72/1000,2)/4)*(Q72)),((PI()*POWER(S72/1000,2)/4)*(Q72+(M72-T72)))) ->  | AA72: =((PI()*POWER(W72/1000,2)/4)*(N72-T72)) ->  | AB72: =IF(U72="A",Z72*1000*$AB$5,(Y72+(Z72*$AB$5))*1000) ->  | AG72: =SUM(AI72:BH72) -> 0
I73: k.A. | J73: k.A. | M73: k.A. | N73: k.A. | Q73: 0 | R73: 0 | V73: k.A. | X73: k.A. | AG73: 0
I74: k.A. | J74: k.A. | M74: k.A. | N74: k.A. | Q74: 0 | R74: 0 | V74: k.A. | X74: k.A. | AG74: 0
I75: k.A. | J75: k.A. | M75: k.A. | N75: k.A. | Q75: 0 | R75: 0 | V75: k.A. | X75: k.A. | AG75: 0
I76: k.A. | J76: k.A. | M76: k.A. | N76: k.A. | Q76: 0 | R76: 0 | V76: k.A. | X76: k.A. | AG76: 0
I77: k.A. | J77: k.A. | M77: k.A. | N77: k.A. | Q77: 0 | R77: 0 | V77: k.A. | X77: k.A. | AG77: 0
I78: k.A. | J78: k.A. | M78: k.A. | N78: k.A. | Q78: 0 | R78: 0 | V78: k.A. | X78: k.A. | AG78: 0
I79: k.A. | J79: k.A. | M79: k.A. | N79: k.A. | Q79: 0 | R79: 0 | V79: k.A. | X79: k.A. | AG79: 0
I80: k.A. | J80: k.A. | M80: k.A. | N80: k.A. | Q80: 0 | R80: 0 | V80: k.A. | X80: k.A. | AG80: 0
I81: k.A. | J81: k.A. | M81: k.A. | N81: k.A. | Q81: 0 | R81: 0 | V81: k.A. | X81: k.A. | AG81: 0
I82: k.A. | J82: k.A. | M82: k.A. | N82: k.A. | Q82: 0 | R82: 0 | V82: k.A. | X82: k.A. | AG82: 0
I83: k.A. | J83: k.A. | M83: k.A. | N83: k.A. | Q83: 0 | R83: 0 | V83: k.A. | X83: k.A. | AG83: 0
I84: k.A. | J84: k.A. | M84: k.A. | N84: k.A. | Q84: 0 | R84: 0 | V84: k.A. | X84: k.A. | AG84: 0
I85: k.A. | J85: k.A. | M85: k.A. | N85: k.A. | Q85: 0 | R85: 0 | V85: k.A. | X85: k.A. | AG85: 0
I86: k.A. | J86: k.A. | M86: k.A. | N86: k.A. | Q86: 0 | R86: 0 | V86: k.A. | X86: k.A. | AG86: 0
I87: k.A. | J87: k.A. | M87: k.A. | N87: k.A. | Q87: 0 | R87: 0 | V87: k.A. | X87: k.A. | AG87: 0
I88: k.A. | J88: k.A. | M88: k.A. | N88: k.A. | Q88: 0 | R88: 0 | V88: k.A. | X88: k.A. | AG88: 0
I89: k.A. | J89: k.A. | M89: k.A. | N89: k.A. | Q89: 0 | R89: 0 | V89: k.A. | X89: k.A. | AG89: 0
I90: k.A. | J90: k.A. | M90: k.A. | N90: k.A. | Q90: 0 | R90: 0 | V90: k.A. | X90: k.A. | AG90: 0
I91: k.A. | J91: k.A. | M91: k.A. | N91: k.A. | Q91: 0 | R91: 0 | V91: k.A. | X91: k.A. | AG91: 0
I92: k.A. | J92: k.A. | M92: k.A. | N92: k.A. | Q92: 0 | R92: 0 | V92: k.A. | X92: k.A. | AG92: 0
I93: k.A. | J93: k.A. | M93: k.A. | N93: k.A. | Q93: 0 | R93: 0 | V93: k.A. | X93: k.A. | AG93: 0
I94: k.A. | J94: k.A. | M94: k.A. | N94: k.A. | Q94: 0 | R94: 0 | V94: k.A. | X94: k.A. | AG94: 0
I95: k.A. | J95: k.A. | M95: k.A. | N95: k.A. | Q95: 0 | R95: 0 | V95: k.A. | X95: k.A. | AG95: 0
I96: k.A. | J96: k.A. | M96: k.A. | N96: k.A. | Q96: 0 | R96: 0 | V96: k.A. | X96: k.A. | AG96: 0
I97: k.A. | J97: k.A. | M97: k.A. | N97: k.A. | Q97: 0 | R97: 0 | V97: k.A. | X97: k.A. | AG97: 0
I98: k.A. | J98: k.A. | M98: k.A. | N98: k.A. | Q98: 0 | R98: 0 | V98: k.A. | X98: k.A. | AG98: 0
I99: k.A. | J99: k.A. | M99: k.A. | N99: k.A. | Q99: 0 | R99: 0 | V99: k.A. | X99: k.A. | AG99: 0
I100: k.A. | J100: k.A. | M100: k.A. | N100: k.A. | Q100: 0 | R100: 0 | V100: k.A. | X100: k.A. | AG100: 0
I101: k.A. | J101: k.A. | M101: k.A. | N101: k.A. | Q101: 0 | R101: 0 | V101: k.A. | X101: k.A. | AG101: 0
I102: k.A. | J102: k.A. | M102: k.A. | N102: k.A. | Q102: 0 | R102: 0 | V102: k.A. | X102: k.A. | AG102: 0
I103: k.A. | J103: k.A. | M103: k.A. | N103: k.A. | Q103: 0 | R103: 0 | V103: k.A. | X103: k.A. | AG103: 0
I104: k.A. | J104: k.A. | M104: k.A. | N104: k.A. | Q104: 0 | R104: 0 | V104: k.A. | X104: k.A. | AG104: 0
I105: k.A. | J105: k.A. | M105: k.A. | N105: k.A. | Q105: 0 | R105: 0 | V105: k.A. | X105: k.A. | AG105: 0
I106: k.A. | J106: k.A. | M106: k.A. | N106: k.A. | Q106: 0 | R106: 0 | V106: k.A. | X106: k.A. | AG106: 0
I107: k.A. | J107: k.A. | M107: k.A. | N107: k.A. | Q107: 0 | R107: 0 | V107: k.A. | X107: k.A. | AG107: 0
I108: k.A. | J108: k.A. | M108: k.A. | N108: k.A. | Q108: 0 | R108: 0 | V108: k.A. | X108: k.A. | AG108: 0
I109: k.A. | J109: k.A. | M109: k.A. | N109: k.A. | Q109: 0 | R109: 0 | V109: k.A. | X109: k.A. | AG109: 0
I110: k.A. | J110: k.A. | M110: k.A. | N110: k.A. | Q110: 0 | R110: 0 | V110: k.A. | X110: k.A. | AG110: 0
I111: k.A. | J111: k.A. | M111: k.A. | N111: k.A. | Q111: 0 | R111: 0 | V111: k.A. | X111: k.A. | AG111: 0
I112: k.A. | J112: k.A. | M112: k.A. | N112: k.A. | Q112: 0 | R112: 0 | V112: k.A. | X112: k.A. | AG112: 0
I113: k.A. | J113: k.A. | M113: k.A. | N113: k.A. | Q113: 0 | R113: 0 | V113: k.A. | X113: k.A. | AG113: 0
I114: k.A. | J114: k.A. | M114: k.A. | N114: k.A. | Q114: 0 | R114: 0 | V114: k.A. | X114: k.A. | AG114: 0
I115: k.A. | J115: k.A. | M115: k.A. | N115: k.A. | Q115: 0 | R115: 0 | V115: k.A. | X115: k.A. | AG115: 0
I116: k.A. | J116: k.A. | M116: k.A. | N116: k.A. | Q116: 0 | R116: 0 | V116: k.A. | X116: k.A. | AG116: 0
I117: k.A. | J117: k.A. | M117: k.A. | N117: k.A. | Q117: 0 | R117: 0 | V117: k.A. | X117: k.A. | AG117: 0
I118: k.A. | J118: k.A. | M118: k.A. | N118: k.A. | Q118: 0 | R118: 0 | V118: k.A. | X118: k.A. | AG118: 0
I119: k.A. | J119: k.A. | M119: k.A. | N119: k.A. | Q119: 0 | R119: 0 | V119: k.A. | X119: k.A. | AG119: 0
I120: k.A. | J120: k.A. | M120: k.A. | N120: k.A. | Q120: 0 | R120: 0 | V120: k.A. | X120: k.A. | AG120: 0
I121: k.A. | J121: k.A. | M121: k.A. | N121: k.A. | Q121: 0 | R121: 0 | V121: k.A. | X121: k.A. | AG121: 0
I122: k.A. | J122: k.A. | M122: k.A. | N122: k.A. | Q122: 0 | R122: 0 | V122: k.A. | X122: k.A. | AG122: 0
I123: k.A. | J123: k.A. | M123: k.A. | N123: k.A. | Q123: 0 | R123: 0 | V123: k.A. | X123: k.A. | AG123: 0
I124: k.A. | J124: k.A. | M124: k.A. | N124: k.A. | Q124: 0 | R124: 0 | V124: k.A. | X124: k.A. | AG124: 0
I125: k.A. | J125: k.A. | M125: k.A. | N125: k.A. | Q125: 0 | R125: 0 | V125: k.A. | X125: k.A. | AG125: 0
I126: k.A. | J126: k.A. | M126: k.A. | N126: k.A. | Q126: 0 | R126: 0 | V126: k.A. | X126: k.A. | AG126: 0
I127: k.A. | J127: k.A. | M127: k.A. | N127: k.A. | Q127: 0 | R127: 0 | V127: k.A. | X127: k.A. | AG127: 0
I128: k.A. | J128: k.A. | M128: k.A. | N128: k.A. | Q128: 0 | R128: 0 | V128: k.A. | X128: k.A. | AG128: 0
I129: k.A. | J129: k.A. | M129: k.A. | N129: k.A. | Q129: 0 | R129: 0 | V129: k.A. | X129: k.A. | AG129: 0
I130: k.A. | J130: k.A. | M130: k.A. | N130: k.A. | Q130: 0 | R130: 0 | V130: k.A. | X130: k.A. | AG130: 0
I131: k.A. | J131: k.A. | M131: k.A. | N131: k.A. | Q131: 0 | R131: 0 | V131: k.A. | X131: k.A. | AG131: 0
I132: k.A. | J132: k.A. | M132: k.A. | N132: k.A. | Q132: 0 | R132: 0 | V132: k.A. | X132: k.A. | AG132: 0
I133: k.A. | J133: k.A. | M133: k.A. | N133: k.A. | Q133: 0 | R133: 0 | V133: k.A. | X133: k.A. | AG133: 0
I134: k.A. | J134: k.A. | M134: k.A. | N134: k.A. | Q134: 0 | R134: 0 | V134: k.A. | X134: k.A. | AG134: 0
I135: =IF(OR(ISBLANK(F135)=TRUE,ISBLANK(G135)=TRUE),"k.A.",F135-G135) -> k.A. | J135: =IF(OR(I135="k.A.",ISNUMBER(I135)=FALSE),"k.A.",IF(I135>0,"über Flur","unter Flur")) -> k.A. | M135: =IF(OR(I135="k.A.",ISNUMBER(K135)=FALSE),"k.A.",K135+I135) -> k.A. | N135: =IF(OR(I135="k.A.",ISNUMBER(L135)=FALSE),"k.A.",L135+I135) -> k.A. | Q135: =L135-K135 -> 0 | R135: =IF(ISNUMBER(Q135),Q135+O135+P135,"") -> 0 | V135: =IF(ISBLANK(U135),"k.A.",IF(ISNUMBER(T135),IF(AND(U135="A",X135="unter"),"PN nicht mgl.",IF(U135="B",T135+$V$5,M135-1)),"mittlere DSH fehlt")) -> k.A. | X135: =IF(T135>0,(IF(Y135>0,"über", "unter")),"k.A.") -> k.A. | Y135: =IF(((PI()*POWER(W135/1000,2))/4*(M135-T135))<0,0,((PI()*POWER(W135/1000,2))/4*(M135-T135))) ->  | AC135: =(AB135)/AD135 ->  | AF135: =IF(AG135=0,"","ja") ->  | AG135: 0
I136: k.A. | J136: k.A. | M136: k.A. | N136: k.A. | Q136: 0 | R136: 0 | V136: k.A. | X136: k.A. | Z136: =IF(Y136>0,((PI()*POWER(S136/1000,2)/4)*(Q136)),((PI()*POWER(S136/1000,2)/4)*(Q136+(M136-T136)))) ->  | AA136: =((PI()*POWER(W136/1000,2)/4)*(N136-T136)) ->  | AB136: =IF(U136="A",Z136*1000*$AB$5,(Y136+(Z136*$AB$5))*1000) ->  | AG136: =SUM(AI136:BH136) -> 0
I137: k.A. | J137: k.A. | M137: k.A. | N137: k.A. | Q137: 0 | R137: 0 | V137: k.A. | X137: k.A. | AG137: 0
I138: k.A. | J138: k.A. | M138: k.A. | N138: k.A. | Q138: 0 | R138: 0 | V138: k.A. | X138: k.A. | AG138: 0
I139: k.A. | J139: k.A. | M139: k.A. | N139: k.A. | Q139: 0 | R139: 0 | V139: k.A. | X139: k.A. | AG139: 0
I140: k.A. | J140: k.A. | M140: k.A. | N140: k.A. | Q140: 0 | R140: 0 | V140: k.A. | X140: k.A. | AG140: 0
I141: k.A. | J141: k.A. | M141: k.A. | N141: k.A. | Q141: 0 | R141: 0 | V141: k.A. | X141: k.A. | AG141: 0
I142: k.A. | J142: k.A. | M142: k.A. | N142: k.A. | Q142: 0 | R142: 0 | V142: k.A. | X142: k.A. | AG142: 0
I143: k.A. | J143: k.A. | M143: k.A. | N143: k.A. | Q143: 0 | R143: 0 | V143: k.A. | X143: k.A. | AG143: 0
I144: k.A. | J144: k.A. | M144: k.A. | N144: k.A. | Q144: 0 | R144: 0 | V144: k.A. | X144: k.A. | AG144: 0
I145: k.A. | J145: k.A. | M145: k.A. | N145: k.A. | Q145: 0 | R145: 0 | V145: k.A. | X145: k.A. | AG145: 0
I146: k.A. | J146: k.A. | M146: k.A. | N146: k.A. | Q146: 0 | R146: 0 | V146: k.A. | X146: k.A. | AG146: 0
I147: k.A. | J147: k.A. | M147: k.A. | N147: k.A. | Q147: 0 | R147: 0 | V147: k.A. | X147: k.A. | AG147: 0
I148: k.A. | J148: k.A. | M148: k.A. | N148: k.A. | Q148: 0 | R148: 0 | V148: k.A. | X148: k.A. | AG148: 0
I149: k.A. | J149: k.A. | M149: k.A. | N149: k.A. | Q149: 0 | R149: 0 | V149: k.A. | X149: k.A. | AG149: 0
I150: k.A. | J150: k.A. | M150: k.A. | N150: k.A. | Q150: 0 | R150: 0 | V150: k.A. | X150: k.A. | AG150: 0
I151: k.A. | J151: k.A. | M151: k.A. | N151: k.A. | Q151: 0 | R151: 0 | V151: k.A. | X151: k.A. | AG151: 0
I152: k.A. | J152: k.A. | M152: k.A. | N152: k.A. | Q152: 0 | R152: 0 | V152: k.A. | X152: k.A. | AG152: 0
I153: k.A. | J153: k.A. | M153: k.A. | N153: k.A. | Q153: 0 | R153: 0 | V153: k.A. | X153: k.A. | AG153: 0
I154: k.A. | J154: k.A. | M154: k.A. | N154: k.A. | Q154: 0 | R154: 0 | V154: k.A. | X154: k.A. | AG154: 0
I155: k.A. | J155: k.A. | M155: k.A. | N155: k.A. | Q155: 0 | R155: 0 | V155: k.A. | X155: k.A. | AG155: 0
I156: k.A. | J156: k.A. | M156: k.A. | N156: k.A. | Q156: 0 | R156: 0 | V156: k.A. | X156: k.A. | AG156: 0
I157: k.A. | J157: k.A. | M157: k.A. | N157: k.A. | Q157: 0 | R157: 0 | V157: k.A. | X157: k.A. | AG157: 0
I158: k.A. | J158: k.A. | M158: k.A. | N158: k.A. | Q158: 0 | R158: 0 | V158: k.A. | X158: k.A. | AG158: 0
I159: k.A. | J159: k.A. | M159: k.A. | N159: k.A. | Q159: 0 | R159: 0 | V159: k.A. | X159: k.A. | AG159: 0
I160: k.A. | J160: k.A. | M160: k.A. | N160: k.A. | Q160: 0 | R160: 0 | V160: k.A. | X160: k.A. | AG160: 0
I161: k.A. | J161: k.A. | M161: k.A. | N161: k.A. | Q161: 0 | R161: 0 | V161: k.A. | X161: k.A. | AG161: 0
I162: k.A. | J162: k.A. | M162: k.A. | N162: k.A. | Q162: 0 | R162: 0 | V162: k.A. | X162: k.A. | AG162: 0
I163: k.A. | J163: k.A. | M163: k.A. | N163: k.A. | Q163: 0 | R163: 0 | V163: k.A. | X163: k.A. | AG163: 0
I164: k.A. | J164: k.A. | M164: k.A. | N164: k.A. | Q164: 0 | R164: 0 | V164: k.A. | X164: k.A. | AG164: 0
I165: k.A. | J165: k.A. | M165: k.A. | N165: k.A. | Q165: 0 | R165: 0 | V165: k.A. | X165: k.A. | AG165: 0
I166: k.A. | J166: k.A. | M166: k.A. | N166: k.A. | Q166: 0 | R166: 0 | V166: k.A. | X166: k.A. | AG166: 0
I167: k.A. | J167: k.A. | M167: k.A. | N167: k.A. | Q167: 0 | R167: 0 | V167: k.A. | X167: k.A. | AG167: 0
I168: k.A. | J168: k.A. | M168: k.A. | N168: k.A. | Q168: 0 | R168: 0 | V168: k.A. | X168: k.A. | AG168: 0
I169: k.A. | J169: k.A. | M169: k.A. | N169: k.A. | Q169: 0 | R169: 0 | V169: k.A. | X169: k.A. | AG169: 0
I170: k.A. | J170: k.A. | M170: k.A. | N170: k.A. | Q170: 0 | R170: 0 | V170: k.A. | X170: k.A. | AG170: 0
I171: k.A. | J171: k.A. | M171: k.A. | N171: k.A. | Q171: 0 | R171: 0 | V171: k.A. | X171: k.A. | AG171: 0
I172: k.A. | J172: k.A. | M172: k.A. | N172: k.A. | Q172: 0 | R172: 0 | V172: k.A. | X172: k.A. | AG172: 0
I173: k.A. | J173: k.A. | M173: k.A. | N173: k.A. | Q173: 0 | R173: 0 | V173: k.A. | X173: k.A. | AG173: 0
I174: k.A. | J174: k.A. | M174: k.A. | N174: k.A. | Q174: 0 | R174: 0 | V174: k.A. | X174: k.A. | AG174: 0
I175: k.A. | J175: k.A. | M175: k.A. | N175: k.A. | Q175: 0 | R175: 0 | V175: k.A. | X175: k.A. | AG175: 0
I176: k.A. | J176: k.A. | M176: k.A. | N176: k.A. | Q176: 0 | R176: 0 | V176: k.A. | X176: k.A. | AG176: 0
I177: k.A. | J177: k.A. | M177: k.A. | N177: k.A. | Q177: 0 | R177: 0 | V177: k.A. | X177: k.A. | AG177: 0
I178: k.A. | J178: k.A. | M178: k.A. | N178: k.A. | Q178: 0 | R178: 0 | V178: k.A. | X178: k.A. | AG178: 0
I179: k.A. | J179: k.A. | M179: k.A. | N179: k.A. | Q179: 0 | R179: 0 | V179: k.A. | X179: k.A. | AG179: 0
I180: k.A. | J180: k.A. | M180: k.A. | N180: k.A. | Q180: 0 | R180: 0 | V180: k.A. | X180: k.A. | AG180: 0
I181: k.A. | J181: k.A. | M181: k.A. | N181: k.A. | Q181: 0 | R181: 0 | V181: k.A. | X181: k.A. | AG181: 0
I182: k.A. | J182: k.A. | M182: k.A. | N182: k.A. | Q182: 0 | R182: 0 | V182: k.A. | X182: k.A. | AG182: 0
I183: k.A. | J183: k.A. | M183: k.A. | N183: k.A. | Q183: 0 | R183: 0 | V183: k.A. | X183: k.A. | AG183: 0
I184: k.A. | J184: k.A. | M184: k.A. | N184: k.A. | Q184: 0 | R184: 0 | V184: k.A. | X184: k.A. | AG184: 0
I185: k.A. | J185: k.A. | M185: k.A. | N185: k.A. | Q185: 0 | R185: 0 | V185: k.A. | X185: k.A. | AG185: 0
I186: k.A. | J186: k.A. | M186: k.A. | N186: k.A. | Q186: 0 | R186: 0 | V186: k.A. | X186: k.A. | AG186: 0
I187: k.A. | J187: k.A. | M187: k.A. | N187: k.A. | Q187: 0 | R187: 0 | V187: k.A. | X187: k.A. | AG187: 0
I188: k.A. | J188: k.A. | M188: k.A. | N188: k.A. | Q188: 0 | R188: 0 | V188: k.A. | X188: k.A. | AG188: 0
I189: k.A. | J189: k.A. | M189: k.A. | N189: k.A. | Q189: 0 | R189: 0 | V189: k.A. | X189: k.A. | AG189: 0
I190: k.A. | J190: k.A. | M190: k.A. | N190: k.A. | Q190: 0 | R190: 0 | V190: k.A. | X190: k.A. | AG190: 0
I191: k.A. | J191: k.A. | M191: k.A. | N191: k.A. | Q191: 0 | R191: 0 | V191: k.A. | X191: k.A. | AG191: 0
I192: k.A. | J192: k.A. | M192: k.A. | N192: k.A. | Q192: 0 | R192: 0 | V192: k.A. | X192: k.A. | AG192: 0
I193: k.A. | J193: k.A. | M193: k.A. | N193: k.A. | Q193: 0 | R193: 0 | V193: k.A. | X193: k.A. | AG193: 0
I194: k.A. | J194: k.A. | M194: k.A. | N194: k.A. | Q194: 0 | R194: 0 | V194: k.A. | X194: k.A. | AG194: 0
I195: k.A. | J195: k.A. | M195: k.A. | N195: k.A. | Q195: 0 | R195: 0 | V195: k.A. | X195: k.A. | AG195: 0
I196: k.A. | J196: k.A. | M196: k.A. | N196: k.A. | Q196: 0 | R196: 0 | V196: k.A. | X196: k.A. | AG196: 0
I197: k.A. | J197: k.A. | M197: k.A. | N197: k.A. | Q197: 0 | R197: 0 | V197: k.A. | X197: k.A. | AG197: 0
I198: k.A. | J198: k.A. | M198: k.A. | N198: k.A. | Q198: 0 | R198: 0 | V198: k.A. | X198: k.A. | AG198: 0
I199: =IF(OR(ISBLANK(F199)=TRUE,ISBLANK(G199)=TRUE),"k.A.",F199-G199) -> k.A. | J199: =IF(OR(I199="k.A.",ISNUMBER(I199)=FALSE),"k.A.",IF(I199>0,"über Flur","unter Flur")) -> k.A. | M199: =IF(OR(I199="k.A.",ISNUMBER(K199)=FALSE),"k.A.",K199+I199) -> k.A. | N199: =IF(OR(I199="k.A.",ISNUMBER(L199)=FALSE),"k.A.",L199+I199) -> k.A. | Q199: =L199-K199 -> 0 | R199: =IF(ISNUMBER(Q199),Q199+O199+P199,"") -> 0 | V199: =IF(ISBLANK(U199),"k.A.",IF(ISNUMBER(T199),IF(AND(U199="A",X199="unter"),"PN nicht mgl.",IF(U199="B",T199+$V$5,M199-1)),"mittlere DSH fehlt")) -> k.A. | X199: =IF(T199>0,(IF(Y199>0,"über", "unter")),"k.A.") -> k.A. | Y199: =IF(((PI()*POWER(W199/1000,2))/4*(M199-T199))<0,0,((PI()*POWER(W199/1000,2))/4*(M199-T199))) ->  | AC199: =(AB199)/AD199 ->  | AF199: =IF(AG199=0,"","ja") ->  | AG199: 0
I200: k.A. | J200: k.A. | M200: k.A. | N200: k.A. | Q200: 0 | R200: 0 | V200: k.A. | X200: k.A. | Z200: =IF(Y200>0,((PI()*POWER(S200/1000,2)/4)*(Q200)),((PI()*POWER(S200/1000,2)/4)*(Q200+(M200-T200)))) ->  | AA200: =((PI()*POWER(W200/1000,2)/4)*(N200-T200)) ->  | AB200: =IF(U200="A",Z200*1000*$AB$5,(Y200+(Z200*$AB$5))*1000) ->  | AG200: =SUM(AI200:BH200) -> 0
... 67 more rows

Sheet PN+AN
A1: LONGNAME | B1: INVNAME | C1: SMPNAME | D1: PRNR | E1: SMPDATE | F1: SMPTIME | G1: ULABOR | H1: BEARBEIT | I1: PRNA_ART | J1: GERAET | K1: UERBERGABE | L1: BEMERK_P | M1: LOTUNG | N1: MSTVERSCHL | O1: MSTZUSTAND | P1: PUMPDSOLL | Q1: KLARSSOLL | R1: PUMPMSOLL | T1: PUMPDAUER | U1: KLARSTROM | V1: PUMPMENGE | X1: PUMPDDIFF | Y1: KLARSDIFF | Z1: PUMPMDIFF | AB1: INTERVROK | AC1: WSPROKVO | AD1: WSTROKENTN | AE1: WSPROKNA | AF1: TW | AG1: TL | AH1: TRUEBUNG | AI1: FAERBUNG | AJ1: GERUCH | AK1: BODENSATZ | AL1: PH | AM1: LEITF | AN1: OX | AO1: O2 | AP1: GETUROK | AQ1: Schüssel GeODin wird soweit vorhanden automatisch ergänzt. | AR1: =VLOOKUP(AR2,Parameter!$B$2:$D$995,2,FALSE) ->  | AS1: =VLOOKUP(AS2,Parameter!$B$2:$D$995,2,FALSE) ->  | AT1: =VLOOKUP(AT2,Parameter!$B$2:$D$995,2,FALSE) ->  | AU1: =VLOOKUP(AU2,Parameter!$B$2:$D$995,2,FALSE) ->  | AV1: =VLOOKUP(AV2,Parameter!$B$2:$D$995,2,FALSE) ->  | AW1: =VLOOKUP(AW2,Parameter!$B$2:$D$995,2,FALSE) ->  | AX1: =VLOOKUP(AX2,Parameter!$B$2:$D$995,2,FALSE) ->  | AY1: =VLOOKUP(AY2,Parameter!$B$2:$D$995,2,FALSE) ->  | AZ1: =VLOOKUP(AZ2,Parameter!$B$2:$D$995,2,FALSE) ->  | BA1: =VLOOKUP(BA2,Parameter!$B$2:$D$995,2,FALSE) ->  | BB1: =VLOOKUP(BB2,Parameter!$B$2:$D$995,2,FALSE) ->  | BC1: =VLOOKUP(BC2,Parameter!$B$2:$D$995,2,FALSE) ->  | BD1: =VLOOKUP(BD2,Parameter!$B$2:$D$995,2,FALSE) ->  | BE1: =VLOOKUP(BE2,Parameter!$B$2:$D$995,2,FALSE) ->  | BF1: =VLOOKUP(BF2,Parameter!$B$2:$D$995,2,FALSE) ->  | BG1: =VLOOKUP(BG2,Parameter!$B$2:$D$995,2,FALSE) ->  | BH1: =VLOOKUP(BH2,Parameter!$B$2:$D$995,2,FALSE) ->  | BI1: =VLOOKUP(BI2,Parameter!$B$2:$D$995,2,FALSE) ->  | BJ1: =VLOOKUP(BJ2,Parameter!$B$2:$D$995,2,FALSE) ->  | BK1: =VLOOKUP(BK2,Parameter!$B$2:$D$995,2,FALSE) ->  | BL1: =VLOOKUP(BL2,Parameter!$B$2:$D$995,2,FALSE) ->  | BM1: =VLOOKUP(BM2,Parameter!$B$2:$D$995,2,FALSE) ->  | BN1: =VLOOKUP(BN2,Parameter!$B$2:$D$995,2,FALSE) ->  | BO1: =VLOOKUP(BO2,Parameter!$B$2:$D$995,2,FALSE) ->  | BP1: =VLOOKUP(BP2,Parameter!$B$2:$D$995,2,FALSE) ->  | BQ1: =VLOOKUP(BQ2,Parameter!$B$2:$D$995,2,FALSE) ->  | BR1: =VLOOKUP(BR2,Parameter!$B$2:$D$995,2,FALSE) ->  | BS1: =VLOOKUP(BS2,Parameter!$B$2:$D$995,2,FALSE) ->  | BT1: =VLOOKUP(BT2,Parameter!$B$2:$D$995,2,FALSE) ->  | BU1: =VLOOKUP(BU2,Parameter!$B$2:$D$995,2,FALSE) ->  | BV1: =VLOOKUP(BV2,Parameter!$B$2:$D$995,2,FALSE) ->  | BW1: =VLOOKUP(BW2,Parameter!$B$2:$D$995,2,FALSE) ->  | BX1: =VLOOKUP(BX2,Parameter!$B$2:$D$995,2,FALSE) ->  | BY1: =VLOOKUP(BY2,Parameter!$B$2:$D$995,2,FALSE) ->  | BZ1: =VLOOKUP(BZ2,Parameter!$B$2:$D$995,2,FALSE) ->  | CA1: =VLOOKUP(CA2,Parameter!$B$2:$D$995,2,FALSE) ->  | CB1: =VLOOKUP(CB2,Parameter!$B$2:$D$995,2,FALSE) ->  | CC1: =VLOOKUP(CC2,Parameter!$B$2:$D$995,2,FALSE) ->  | CD1: =VLOOKUP(CD2,Parameter!$B$2:$D$995,2,FALSE) ->  | CE1: =VLOOKUP(CE2,Parameter!$B$2:$D$995,2,FALSE) ->  | CF1: =VLOOKUP(CF2,Parameter!$B$2:$D$995,2,FALSE) ->  | CG1: =VLOOKUP(CG2,Parameter!$B$2:$D$995,2,FALSE) ->  | CH1: =VLOOKUP(CH2,Parameter!$B$2:$D$995,2,FALSE) ->  | CI1: =VLOOKUP(CI2,Parameter!$B$2:$D$995,2,FALSE) ->  | CJ1: =VLOOKUP(CJ2,Parameter!$B$2:$D$995,2,FALSE) ->  | CK1: =VLOOKUP(CK2,Parameter!$B$2:$D$995,2,FALSE) ->  | CL1: =VLOOKUP(CL2,Parameter!$B$2:$D$995,2,FALSE) ->  | CM1: =VLOOKUP(CM2,Parameter!$B$2:$D$995,2,FALSE) ->  | CN1: =VLOOKUP(CN2,Parameter!$B$2:$D$995,2,FALSE) ->  | CO1: =VLOOKUP(CO2,Parameter!$B$2:$D$995,2,FALSE) ->  | CP1: =VLOOKUP(CP2,Parameter!$B$2:$D$995,2,FALSE) ->  | CQ1: =VLOOKUP(CQ2,Parameter!$B$2:$D$995,2,FALSE) ->  | CR1: =VLOOKUP(CR2,Parameter!$B$2:$D$995,2,FALSE) ->  | CS1: =VLOOKUP(CS2,Parameter!$B$2:$D$995,2,FALSE) ->  | CT1: =VLOOKUP(CT2,Parameter!$B$2:$D$995,2,FALSE) ->  | CU1: =VLOOKUP(CU2,Parameter!$B$2:$D$995,2,FALSE) ->  | CV1: =VLOOKUP(CV2,Parameter!$B$2:$D$995,2,FALSE) ->  | CW1: =VLOOKUP(CW2,Parameter!$B$2:$D$995,2,FALSE) ->  | CX1: =VLOOKUP(CX2,Parameter!$B$2:$D$995,2,FALSE) ->  | CY1: =VLOOKUP(CY2,Parameter!$B$2:$D$995,2,FALSE) ->  | CZ1: =VLOOKUP(CZ2,Parameter!$B$2:$D$995,2,FALSE) ->  | DA1: =VLOOKUP(DA2,Parameter!$B$2:$D$995,2,FALSE) ->  | DB1: =VLOOKUP(DB2,Parameter!$B$2:$D$995,2,FALSE) ->  | DC1: =VLOOKUP(DC2,Parameter!$B$2:$D$995,2,FALSE) ->  | DD1: =VLOOKUP(DD2,Parameter!$B$2:$D$995,2,FALSE) ->  | DE1: =VLOOKUP(DE2,Parameter!$B$2:$D$995,2,FALSE) ->  | DF1: =VLOOKUP(DF2,Parameter!$B$2:$D$995,2,FALSE) ->  | DG1: =VLOOKUP(DG2,Parameter!$B$2:$D$995,2,FALSE) ->  | DH1: =VLOOKUP(DH2,Parameter!$B$2:$D$995,2,FALSE) ->  | DI1: =VLOOKUP(DI2,Parameter!$B$2:$D$995,2,FALSE) ->  | DJ1: =VLOOKUP(DJ2,Parameter!$B$2:$D$995,2,FALSE) ->  | DK1: =VLOOKUP(DK2,Parameter!$B$2:$D$995,2,FALSE) ->  | DL1: =VLOOKUP(DL2,Parameter!$B$2:$D$995,2,FALSE) ->  | DM1: =VLOOKUP(DM2,Parameter!$B$2:$D$995,2,FALSE) ->  | DN1: =VLOOKUP(DN2,Parameter!$B$2:$D$995,2,FALSE) ->  | DO1: =VLOOKUP(DO2,Parameter!$B$2:$D$995,2,FALSE) ->  | DP1: =VLOOKUP(DP2,Parameter!$B$2:$D$995,2,FALSE) ->  | DQ1: =VLOOKUP(DQ2,Parameter!$B$2:$D$995,2,FALSE) ->  | DR1: =VLOOKUP(DR2,Parameter!$B$2:$D$995,2,FALSE) ->  | DS1: =VLOOKUP(DS2,Parameter!$B$2:$D$995,2,FALSE) ->  | DT1: =VLOOKUP(DT2,Parameter!$B$2:$D$995,2,FALSE) ->  | DU1: =VLOOKUP(DU2,Parameter!$B$2:$D$995,2,FALSE) ->  | DV1: =VLOOKUP(DV2,Parameter!$B$2:$D$995,2,FALSE) ->  | DW1: =VLOOKUP(DW2,Parameter!$B$2:$D$995,2,FALSE) ->  | DX1: =VLOOKUP(DX2,Parameter!$B$2:$D$995,2,FALSE) ->  | DY1: =VLOOKUP(DY2,Parameter!$B$2:$D$995,2,FALSE) ->  | DZ1: =VLOOKUP(DZ2,Parameter!$B$2:$D$995,2,FALSE) ->  | EA1: =VLOOKUP(EA2,Parameter!$B$2:$D$995,2,FALSE) ->  | EB1: =VLOOKUP(EB2,Parameter!$B$2:$D$995,2,FALSE) ->  | EC1: =VLOOKUP(EC2,Parameter!$B$2:$D$995,2,FALSE) ->  | ED1: =VLOOKUP(ED2,Parameter!$B$2:$D$995,2,FALSE) ->  | EE1: =VLOOKUP(EE2,Parameter!$B$2:$D$995,2,FALSE) ->  | EF1: =VLOOKUP(EF2,Parameter!$B$2:$D$995,2,FALSE) ->  | EG1: =VLOOKUP(EG2,Parameter!$B$2:$D$995,2,FALSE) ->  | EH1: =VLOOKUP(EH2,Parameter!$B$2:$D$995,2,FALSE) ->  | EI1: =VLOOKUP(EI2,Parameter!$B$2:$D$995,2,FALSE) ->  | EJ1: =VLOOKUP(EJ2,Parameter!$B$2:$D$995,2,FALSE) ->  | EK1: =VLOOKUP(EK2,Parameter!$B$2:$D$995,2,FALSE) ->  | EL1: =VLOOKUP(EL2,Parameter!$B$2:$D$995,2,FALSE) ->  | EM1: =VLOOKUP(EM2,Parameter!$B$2:$D$995,2,FALSE) ->  | EN1: =VLOOKUP(EN2,Parameter!$B$2:$D$995,2,FALSE) ->  | EO1: =VLOOKUP(EO2,Parameter!$B$2:$D$995,2,FALSE) ->  | EP1: =VLOOKUP(EP2,Parameter!$B$2:$D$995,2,FALSE) ->  | EQ1: =VLOOKUP(EQ2,Parameter!$B$2:$D$995,2,FALSE) ->  | ER1: =VLOOKUP(ER2,Parameter!$B$2:$D$995,2,FALSE) ->  | ES1: =VLOOKUP(ES2,Parameter!$B$2:$D$995,2,FALSE) ->  | ET1: =VLOOKUP(ET2,Parameter!$B$2:$D$995,2,FALSE) ->  | EU1: =VLOOKUP(EU2,Parameter!$B$2:$D$995,2,FALSE) ->  | EV1: =VLOOKUP(EV2,Parameter!$B$2:$D$995,2,FALSE) ->  | EW1: =VLOOKUP(EW2,Parameter!$B$2:$D$995,2,FALSE) ->  | EX1: =VLOOKUP(EX2,Parameter!$B$2:$D$995,2,FALSE) ->  | EY1: =VLOOKUP(EY2,Parameter!$B$2:$D$995,2,FALSE) ->  | EZ1: =VLOOKUP(EZ2,Parameter!$B$2:$D$995,2,FALSE) ->  | FA1: =VLOOKUP(FA2,Parameter!$B$2:$D$995,2,FALSE) ->  | FB1: =VLOOKUP(FB2,Parameter!$B$2:$D$995,2,FALSE) ->  | FC1: =VLOOKUP(FC2,Parameter!$B$2:$D$995,2,FALSE) ->  | FD1: =VLOOKUP(FD2,Parameter!$B$2:$D$995,2,FALSE) ->  | FE1: =VLOOKUP(FE2,Parameter!$B$2:$D$995,2,FALSE) ->  | FF1: =VLOOKUP(FF2,Parameter!$B$2:$D$995,2,FALSE) ->  | FG1: =VLOOKUP(FG2,Parameter!$B$2:$D$995,2,FALSE) ->  | FH1: =VLOOKUP(FH2,Parameter!$B$2:$D$995,2,FALSE) ->  | FI1: =VLOOKUP(FI2,Parameter!$B$2:$D$995,2,FALSE) ->  | FJ1: =VLOOKUP(FJ2,Parameter!$B$2:$D$995,2,FALSE) ->  | FK1: =VLOOKUP(FK2,Parameter!$B$2:$D$995,2,FALSE) ->  | FL1: =VLOOKUP(FL2,Parameter!$B$2:$D$995,2,FALSE) ->  | FM1: =VLOOKUP(FM2,Parameter!$B$2:$D$995,2,FALSE) ->  | FN1: =VLOOKUP(FN2,Parameter!$B$2:$D$995,2,FALSE) ->  | FO1: =VLOOKUP(FO2,Parameter!$B$2:$D$995,2,FALSE) ->  | FP1: =VLOOKUP(FP2,Parameter!$B$2:$D$995,2,FALSE) ->  | FQ1: =VLOOKUP(FQ2,Parameter!$B$2:$D$995,2,FALSE) ->  | FR1: =VLOOKUP(FR2,Parameter!$B$2:$D$995,2,FALSE) ->  | FS1: =VLOOKUP(FS2,Parameter!$B$2:$D$995,2,FALSE) ->  | FT1: =VLOOKUP(FT2,Parameter!$B$2:$D$995,2,FALSE) ->  | FU1: =VLOOKUP(FU2,Parameter!$B$2:$D$995,2,FALSE) ->  | FV1: =VLOOKUP(FV2,Parameter!$B$2:$D$995,2,FALSE) ->  | FW1: =VLOOKUP(FW2,Parameter!$B$2:$D$995,2,FALSE) ->  | FX1: =VLOOKUP(FX2,Parameter!$B$2:$D$995,2,FALSE) ->  | FY1: =VLOOKUP(FY2,Parameter!$B$2:$D$995,2,FALSE) ->  | FZ1: =VLOOKUP(FZ2,Parameter!$B$2:$D$995,2,FALSE) ->  | GA1: =VLOOKUP(GA2,Parameter!$B$2:$D$995,2,FALSE) ->  | GB1: =VLOOKUP(GB2,Parameter!$B$2:$D$995,2,FALSE) ->  | GC1: =VLOOKUP(GC2,Parameter!$B$2:$D$995,2,FALSE) ->  | GD1: =VLOOKUP(GD2,Parameter!$B$2:$D$995,2,FALSE) ->  | GE1: =VLOOKUP(GE2,Parameter!$B$2:$D$995,2,FALSE) ->  | GF1: =VLOOKUP(GF2,Parameter!$B$2:$D$995,2,FALSE) ->  | GG1: =VLOOKUP(GG2,Parameter!$B$2:$D$995,2,FALSE) ->  | GH1: =VLOOKUP(GH2,Parameter!$B$2:$D$995,2,FALSE) ->  | GI1: =VLOOKUP(GI2,Parameter!$B$2:$D$995,2,FALSE) ->  | GJ1: =VLOOKUP(GJ2,Parameter!$B$2:$D$995,2,FALSE) ->  | GK1: =VLOOKUP(GK2,Parameter!$B$2:$D$995,2,FALSE) ->  | GL1: =VLOOKUP(GL2,Parameter!$B$2:$D$995,2,FALSE) ->  | GM1: =VLOOKUP(GM2,Parameter!$B$2:$D$995,2,FALSE) -> 
A2: Pegelbezeichnung lang | B2: Name des Messpunktes (GeODin) | C2: Probename | D2: Probennummer | E2: Datum Probe-nahme | F2: Uhrzeit Probe- nahme | G2: Untersuchungslabor | H2: Bearbeiter | I2: Probe-nahmeart | J2: Entnahme- gerät | K2: Proben- übergabe | L2: Bemerkung (Proben.) | M2: Teufen- Lotung | N2: Mess- stellen- verschluss | O2: Mess- stellen- zustand | P2: Pump- dauer SOLL | Q2: Klarpump- strom SOLL | R2: Förder- menge SOLL | S2: Einhäng-tiefe Tauch-pumpe | T2: Pump- dauer IST | U2: Klarpump- strom IST | V2: Förder- menge IST | W2: Einhäng-tiefe Tauch-pumpe | X2: Pump- dauer Differenz SOLL/IST | Y2: Klarpump- strom Differenz SOLL/IST | Z2: Förder- menge Differenz SOLL/IST | AA2: Einhäng-tiefe Tauch-pumpe | AB2: Entnahme- teufe (ROK) | AC2: Wasserst. vor Probe- nahme | AD2: Wasserst. während Probe- nahme | AE2: Wasserst. nach Probe- nahme | AF2: Temperatur (Wasser) | AG2: Temperatur (Luft) | AH2: Trübung (org.-lept.) | AI2: Färbung (org.-lept.) | AJ2: Geruch | AK2: Bodensatz | AL2: pH-Wert (Feld) | AM2: Leit- fähigkeit | AN2: Redox- potential | AO2: Sauerstoff | AP2: gelotete Endteufe | AQ2: → Auswahl Analysenparameter mittels Auswahlfeld.
A3: Text | B3: Text | C3: Text | E3: TT.MM.JJJJ | F3: hh:mm | M3: m | P3: min | Q3: L/min | R3: L | S3: m uROK | T3: min | U3: L/min | V3: L | W3: m uROK | X3: min | Y3: L/min | Z3: L | AA3: m uROK | AB3: m uROK | AC3: m uROK | AD3: m uROK | AE3: m uROK | AF3: °C | AG3: °C | AM3: µS/cm | AN3: mV | AO3: mg/L | AP3: m uROK | AQ3: Wird automatisch ergänzt. | AR3: =VLOOKUP(AR2,Parameter!$B$2:$D$995,3,FALSE) ->  | AS3: =VLOOKUP(AS2,Parameter!$B$2:$D$995,3,FALSE) ->  | AT3: =VLOOKUP(AT2,Parameter!$B$2:$D$995,3,FALSE) ->  | AU3: =VLOOKUP(AU2,Parameter!$B$2:$D$995,3,FALSE) ->  | AV3: =VLOOKUP(AV2,Parameter!$B$2:$D$995,3,FALSE) ->  | AW3: =VLOOKUP(AW2,Parameter!$B$2:$D$995,3,FALSE) ->  | AX3: =VLOOKUP(AX2,Parameter!$B$2:$D$995,3,FALSE) ->  | AY3: =VLOOKUP(AY2,Parameter!$B$2:$D$995,3,FALSE) ->  | AZ3: =VLOOKUP(AZ2,Parameter!$B$2:$D$995,3,FALSE) ->  | BA3: =VLOOKUP(BA2,Parameter!$B$2:$D$995,3,FALSE) ->  | BB3: =VLOOKUP(BB2,Parameter!$B$2:$D$995,3,FALSE) ->  | BC3: =VLOOKUP(BC2,Parameter!$B$2:$D$995,3,FALSE) ->  | BD3: =VLOOKUP(BD2,Parameter!$B$2:$D$995,3,FALSE) ->  | BE3: =VLOOKUP(BE2,Parameter!$B$2:$D$995,3,FALSE) ->  | BF3: =VLOOKUP(BF2,Parameter!$B$2:$D$995,3,FALSE) ->  | BG3: =VLOOKUP(BG2,Parameter!$B$2:$D$995,3,FALSE) ->  | BH3: =VLOOKUP(BH2,Parameter!$B$2:$D$995,3,FALSE) ->  | BI3: =VLOOKUP(BI2,Parameter!$B$2:$D$995,3,FALSE) ->  | BJ3: =VLOOKUP(BJ2,Parameter!$B$2:$D$995,3,FALSE) ->  | BK3: =VLOOKUP(BK2,Parameter!$B$2:$D$995,3,FALSE) ->  | BL3: =VLOOKUP(BL2,Parameter!$B$2:$D$995,3,FALSE) ->  | BM3: =VLOOKUP(BM2,Parameter!$B$2:$D$995,3,FALSE) ->  | BN3: =VLOOKUP(BN2,Parameter!$B$2:$D$995,3,FALSE) ->  | BO3: =VLOOKUP(BO2,Parameter!$B$2:$D$995,3,FALSE) ->  | BP3: =VLOOKUP(BP2,Parameter!$B$2:$D$995,3,FALSE) ->  | BQ3: =VLOOKUP(BQ2,Parameter!$B$2:$D$995,3,FALSE) ->  | BR3: =VLOOKUP(BR2,Parameter!$B$2:$D$995,3,FALSE) ->  | BS3: =VLOOKUP(BS2,Parameter!$B$2:$D$995,3,FALSE) ->  | BT3: =VLOOKUP(BT2,Parameter!$B$2:$D$995,3,FALSE) ->  | BU3: =VLOOKUP(BU2,Parameter!$B$2:$D$995,3,FALSE) ->  | BV3: =VLOOKUP(BV2,Parameter!$B$2:$D$995,3,FALSE) ->  | BW3: =VLOOKUP(BW2,Parameter!$B$2:$D$995,3,FALSE) ->  | BX3: =VLOOKUP(BX2,Parameter!$B$2:$D$995,3,FALSE) ->  | BY3: =VLOOKUP(BY2,Parameter!$B$2:$D$995,3,FALSE) ->  | BZ3: =VLOOKUP(BZ2,Parameter!$B$2:$D$995,3,FALSE) ->  | CA3: =VLOOKUP(CA2,Parameter!$B$2:$D$995,3,FALSE) ->  | CB3: =VLOOKUP(CB2,Parameter!$B$2:$D$995,3,FALSE) ->  | CC3: =VLOOKUP(CC2,Parameter!$B$2:$D$995,3,FALSE) ->  | CD3: =VLOOKUP(CD2,Parameter!$B$2:$D$995,3,FALSE) ->  | CE3: =VLOOKUP(CE2,Parameter!$B$2:$D$995,3,FALSE) ->  | CF3: =VLOOKUP(CF2,Parameter!$B$2:$D$995,3,FALSE) ->  | CG3: =VLOOKUP(CG2,Parameter!$B$2:$D$995,3,FALSE) ->  | CH3: =VLOOKUP(CH2,Parameter!$B$2:$D$995,3,FALSE) ->  | CI3: =VLOOKUP(CI2,Parameter!$B$2:$D$995,3,FALSE) ->  | CJ3: =VLOOKUP(CJ2,Parameter!$B$2:$D$995,3,FALSE) ->  | CK3: =VLOOKUP(CK2,Parameter!$B$2:$D$995,3,FALSE) ->  | CL3: =VLOOKUP(CL2,Parameter!$B$2:$D$995,3,FALSE) ->  | CM3: =VLOOKUP(CM2,Parameter!$B$2:$D$995,3,FALSE) ->  | CN3: =VLOOKUP(CN2,Parameter!$B$2:$D$995,3,FALSE) ->  | CO3: =VLOOKUP(CO2,Parameter!$B$2:$D$995,3,FALSE) ->  | CP3: =VLOOKUP(CP2,Parameter!$B$2:$D$995,3,FALSE) ->  | CQ3: =VLOOKUP(CQ2,Parameter!$B$2:$D$995,3,FALSE) ->  | CR3: =VLOOKUP(CR2,Parameter!$B$2:$D$995,3,FALSE) ->  | CS3: =VLOOKUP(CS2,Parameter!$B$2:$D$995,3,FALSE) ->  | CT3: =VLOOKUP(CT2,Parameter!$B$2:$D$995,3,FALSE) ->  | CU3: =VLOOKUP(CU2,Parameter!$B$2:$D$995,3,FALSE) ->  | CV3: =VLOOKUP(CV2,Parameter!$B$2:$D$995,3,FALSE) ->  | CW3: =VLOOKUP(CW2,Parameter!$B$2:$D$995,3,FALSE) ->  | CX3: =VLOOKUP(CX2,Parameter!$B$2:$D$995,3,FALSE) ->  | CY3: =VLOOKUP(CY2,Parameter!$B$2:$D$995,3,FALSE) ->  | CZ3: =VLOOKUP(CZ2,Parameter!$B$2:$D$995,3,FALSE) ->  | DA3: =VLOOKUP(DA2,Parameter!$B$2:$D$995,3,FALSE) ->  | DB3: =VLOOKUP(DB2,Parameter!$B$2:$D$995,3,FALSE) ->  | DC3: =VLOOKUP(DC2,Parameter!$B$2:$D$995,3,FALSE) ->  | DD3: =VLOOKUP(DD2,Parameter!$B$2:$D$995,3,FALSE) ->  | DE3: =VLOOKUP(DE2,Parameter!$B$2:$D$995,3,FALSE) ->  | DF3: =VLOOKUP(DF2,Parameter!$B$2:$D$995,3,FALSE) ->  | DG3: =VLOOKUP(DG2,Parameter!$B$2:$D$995,3,FALSE) ->  | DH3: =VLOOKUP(DH2,Parameter!$B$2:$D$995,3,FALSE) ->  | DI3: =VLOOKUP(DI2,Parameter!$B$2:$D$995,3,FALSE) ->  | DJ3: =VLOOKUP(DJ2,Parameter!$B$2:$D$995,3,FALSE) ->  | DK3: =VLOOKUP(DK2,Parameter!$B$2:$D$995,3,FALSE) ->  | DL3: =VLOOKUP(DL2,Parameter!$B$2:$D$995,3,FALSE) ->  | DM3: =VLOOKUP(DM2,Parameter!$B$2:$D$995,3,FALSE) ->  | DN3: =VLOOKUP(DN2,Parameter!$B$2:$D$995,3,FALSE) ->  | DO3: =VLOOKUP(DO2,Parameter!$B$2:$D$995,3,FALSE) ->  | DP3: =VLOOKUP(DP2,Parameter!$B$2:$D$995,3,FALSE) ->  | DQ3: =VLOOKUP(DQ2,Parameter!$B$2:$D$995,3,FALSE) ->  | DR3: =VLOOKUP(DR2,Parameter!$B$2:$D$995,3,FALSE) ->  | DS3: =VLOOKUP(DS2,Parameter!$B$2:$D$995,3,FALSE) ->  | DT3: =VLOOKUP(DT2,Parameter!$B$2:$D$995,3,FALSE) ->  | DU3: =VLOOKUP(DU2,Parameter!$B$2:$D$995,3,FALSE) ->  | DV3: =VLOOKUP(DV2,Parameter!$B$2:$D$995,3,FALSE) ->  | DW3: =VLOOKUP(DW2,Parameter!$B$2:$D$995,3,FALSE) ->  | DX3: =VLOOKUP(DX2,Parameter!$B$2:$D$995,3,FALSE) ->  | DY3: =VLOOKUP(DY2,Parameter!$B$2:$D$995,3,FALSE) ->  | DZ3: =VLOOKUP(DZ2,Parameter!$B$2:$D$995,3,FALSE) ->  | EA3: =VLOOKUP(EA2,Parameter!$B$2:$D$995,3,FALSE) ->  | EB3: =VLOOKUP(EB2,Parameter!$B$2:$D$995,3,FALSE) ->  | EC3: =VLOOKUP(EC2,Parameter!$B$2:$D$995,3,FALSE) ->  | ED3: =VLOOKUP(ED2,Parameter!$B$2:$D$995,3,FALSE) ->  | EE3: =VLOOKUP(EE2,Parameter!$B$2:$D$995,3,FALSE) ->  | EF3: =VLOOKUP(EF2,Parameter!$B$2:$D$995,3,FALSE) ->  | EG3: =VLOOKUP(EG2,Parameter!$B$2:$D$995,3,FALSE) ->  | EH3: =VLOOKUP(EH2,Parameter!$B$2:$D$995,3,FALSE) ->  | EI3: =VLOOKUP(EI2,Parameter!$B$2:$D$995,3,FALSE) ->  | EJ3: =VLOOKUP(EJ2,Parameter!$B$2:$D$995,3,FALSE) ->  | EK3: =VLOOKUP(EK2,Parameter!$B$2:$D$995,3,FALSE) ->  | EL3: =VLOOKUP(EL2,Parameter!$B$2:$D$995,3,FALSE) ->  | EM3: =VLOOKUP(EM2,Parameter!$B$2:$D$995,3,FALSE) ->  | EN3: =VLOOKUP(EN2,Parameter!$B$2:$D$995,3,FALSE) ->  | EO3: =VLOOKUP(EO2,Parameter!$B$2:$D$995,3,FALSE) ->  | EP3: =VLOOKUP(EP2,Parameter!$B$2:$D$995,3,FALSE) ->  | EQ3: =VLOOKUP(EQ2,Parameter!$B$2:$D$995,3,FALSE) ->  | ER3: =VLOOKUP(ER2,Parameter!$B$2:$D$995,3,FALSE) ->  | ES3: =VLOOKUP(ES2,Parameter!$B$2:$D$995,3,FALSE) ->  | ET3: =VLOOKUP(ET2,Parameter!$B$2:$D$995,3,FALSE) ->  | EU3: =VLOOKUP(EU2,Parameter!$B$2:$D$995,3,FALSE) ->  | EV3: =VLOOKUP(EV2,Parameter!$B$2:$D$995,3,FALSE) ->  | EW3: =VLOOKUP(EW2,Parameter!$B$2:$D$995,3,FALSE) ->  | EX3: =VLOOKUP(EX2,Parameter!$B$2:$D$995,3,FALSE) ->  | EY3: =VLOOKUP(EY2,Parameter!$B$2:$D$995,3,FALSE) ->  | EZ3: =VLOOKUP(EZ2,Parameter!$B$2:$D$995,3,FALSE) ->  | FA3: =VLOOKUP(FA2,Parameter!$B$2:$D$995,3,FALSE) ->  | FB3: =VLOOKUP(FB2,Parameter!$B$2:$D$995,3,FALSE) ->  | FC3: =VLOOKUP(FC2,Parameter!$B$2:$D$995,3,FALSE) ->  | FD3: =VLOOKUP(FD2,Parameter!$B$2:$D$995,3,FALSE) ->  | FE3: =VLOOKUP(FE2,Parameter!$B$2:$D$995,3,FALSE) ->  | FF3: =VLOOKUP(FF2,Parameter!$B$2:$D$995,3,FALSE) ->  | FG3: =VLOOKUP(FG2,Parameter!$B$2:$D$995,3,FALSE) ->  | FH3: =VLOOKUP(FH2,Parameter!$B$2:$D$995,3,FALSE) ->  | FI3: =VLOOKUP(FI2,Parameter!$B$2:$D$995,3,FALSE) ->  | FJ3: =VLOOKUP(FJ2,Parameter!$B$2:$D$995,3,FALSE) ->  | FK3: =VLOOKUP(FK2,Parameter!$B$2:$D$995,3,FALSE) ->  | FL3: =VLOOKUP(FL2,Parameter!$B$2:$D$995,3,FALSE) ->  | FM3: =VLOOKUP(FM2,Parameter!$B$2:$D$995,3,FALSE) ->  | FN3: =VLOOKUP(FN2,Parameter!$B$2:$D$995,3,FALSE) ->  | FO3: =VLOOKUP(FO2,Parameter!$B$2:$D$995,3,FALSE) ->  | FP3: =VLOOKUP(FP2,Parameter!$B$2:$D$995,3,FALSE) ->  | FQ3: =VLOOKUP(FQ2,Parameter!$B$2:$D$995,3,FALSE) ->  | FR3: =VLOOKUP(FR2,Parameter!$B$2:$D$995,3,FALSE) ->  | FS3: =VLOOKUP(FS2,Parameter!$B$2:$D$995,3,FALSE) ->  | FT3: =VLOOKUP(FT2,Parameter!$B$2:$D$995,3,FALSE) ->  | FU3: =VLOOKUP(FU2,Parameter!$B$2:$D$995,3,FALSE) ->  | FV3: =VLOOKUP(FV2,Parameter!$B$2:$D$995,3,FALSE) ->  | FW3: =VLOOKUP(FW2,Parameter!$B$2:$D$995,3,FALSE) ->  | FX3: =VLOOKUP(FX2,Parameter!$B$2:$D$995,3,FALSE) ->  | FY3: =VLOOKUP(FY2,Parameter!$B$2:$D$995,3,FALSE) ->  | FZ3: =VLOOKUP(FZ2,Parameter!$B$2:$D$995,3,FALSE) ->  | GA3: =VLOOKUP(GA2,Parameter!$B$2:$D$995,3,FALSE) ->  | GB3: =VLOOKUP(GB2,Parameter!$B$2:$D$995,3,FALSE) ->  | GC3: =VLOOKUP(GC2,Parameter!$B$2:$D$995,3,FALSE) ->  | GD3: =VLOOKUP(GD2,Parameter!$B$2:$D$995,3,FALSE) ->  | GE3: =VLOOKUP(GE2,Parameter!$B$2:$D$995,3,FALSE) ->  | GF3: =VLOOKUP(GF2,Parameter!$B$2:$D$995,3,FALSE) ->  | GG3: =VLOOKUP(GG2,Parameter!$B$2:$D$995,3,FALSE) ->  | GH3: =VLOOKUP(GH2,Parameter!$B$2:$D$995,3,FALSE) ->  | GI3: =VLOOKUP(GI2,Parameter!$B$2:$D$995,3,FALSE) ->  | GJ3: =VLOOKUP(GJ2,Parameter!$B$2:$D$995,3,FALSE) ->  | GK3: =VLOOKUP(GK2,Parameter!$B$2:$D$995,3,FALSE) ->  | GL3: =VLOOKUP(GL2,Parameter!$B$2:$D$995,3,FALSE) ->  | GM3: =VLOOKUP(GM2,Parameter!$B$2:$D$995,3,FALSE) -> 
A4: Übertrag | B4: Übertrag | C4: Übertrag | D4: Eingabe | E4: Eingabe | F4: Eingabe | G4: Eingabe | H4: Eingabe | I4: Eingabe | J4: Eingabe | K4: Eingabe | L4: Eingabe | M4: Eingabe | N4: Eingabe | O4: Eingabe | P4: Übertrag | Q4: Übertrag | R4: Übertrag | S4: Übertrag | T4: Eingabe | U4: Eingabe | V4: Eingabe | W4: Eintrag | X4: Formel | Y4: Formel | Z4: Formel | AA4: Übertrag | AB4: Eingabe | AC4: Eingabe | AD4: Eingabe | AE4: Eingabe | AF4: Eingabe | AG4: Eingabe | AH4: Eingabe | AI4: Eingabe | AJ4: Eingabe | AK4: Eingabe | AL4: Eingabe | AM4: Eingabe | AN4: Eingabe | AO4: Eingabe | AP4: Eingabe | AR4: Eingabe | AS4: Eingabe | AT4: Eingabe | AU4: Eingabe | AV4: Eingabe | AW4: Eingabe | AX4: Eingabe | AY4: Eingabe | AZ4: Eingabe | BA4: Eingabe | BB4: Eingabe | BC4: Eingabe | BD4: Eingabe | BE4: Eingabe | BF4: Eingabe | BG4: Eingabe | BH4: Eingabe | BI4: Eingabe | BJ4: Eingabe | BK4: Eingabe | BL4: Eingabe | BM4: Eingabe | BN4: Eingabe | BO4: Eingabe | BP4: Eingabe | BQ4: Eingabe | BR4: Eingabe | BS4: Eingabe | BT4: Eingabe | BU4: Eingabe | BV4: Eingabe | BW4: Eingabe | BX4: Eingabe | BY4: Eingabe | BZ4: Eingabe | CA4: Eingabe | CB4: Eingabe | CC4: Eingabe | CD4: Eingabe | CE4: Eingabe | CF4: Eingabe | CG4: Eingabe | CH4: Eingabe | CI4: Eingabe | CJ4: Eingabe | CK4: Eingabe | CL4: Eingabe | CM4: Eingabe | CN4: Eingabe | CO4: Eingabe | CP4: Eingabe | CQ4: Eingabe | CR4: Eingabe | CS4: Eingabe | CT4: Eingabe | CU4: Eingabe | CV4: Eingabe | CW4: Eingabe | CX4: Eingabe | CY4: Eingabe | CZ4: Eingabe | DA4: Eingabe | DB4: Eingabe | DC4: Eingabe | DD4: Eingabe | DE4: Eingabe | DF4: Eingabe | DG4: Eingabe | DH4: Eingabe | DI4: Eingabe | DJ4: Eingabe | DK4: Eingabe | DL4: Eingabe | DM4: Eingabe | DN4: Eingabe | DO4: Eingabe | DP4: Eingabe | DQ4: Eingabe | DR4: Eingabe | DS4: Eingabe | DT4: Eingabe | DU4: Eingabe | DV4: Eingabe | DW4: Eingabe | DX4: Eingabe | DY4: Eingabe | DZ4: Eingabe | EA4: Eingabe | EB4: Eingabe | EC4: Eingabe | ED4: Eingabe | EE4: Eingabe | EF4: Eingabe | EG4: Eingabe | EH4: Eingabe | EI4: Eingabe | EJ4: Eingabe | EK4: Eingabe | EL4: Eingabe | EM4: Eingabe | EN4: Eingabe | EO4: Eingabe | EP4: Eingabe | EQ4: Eingabe | ER4: Eingabe | ES4: Eingabe | ET4: Eingabe | EU4: Eingabe | EV4: Eingabe | EW4: Eingabe | EX4: Eingabe | EY4: Eingabe | EZ4: Eingabe | FA4: Eingabe | FB4: Eingabe | FC4: Eingabe | FD4: Eingabe | FE4: Eingabe | FF4: Eingabe | FG4: Eingabe | FH4: Eingabe | FI4: Eingabe | FJ4: Eingabe | FK4: Eingabe | FL4: Eingabe | FM4: Eingabe | FN4: Eingabe | FO4: Eingabe | FP4: Eingabe | FQ4: Eingabe | FR4: Eingabe | FS4: Eingabe | FT4: Eingabe | FU4: Eingabe | FV4: Eingabe | FW4: Eingabe | FX4: Eingabe | FY4: Eingabe | FZ4: Eingabe | GA4: Eingabe | GB4: Eingabe | GC4: Eingabe | GD4: Eingabe | GE4: Eingabe | GF4: Eingabe | GG4: Eingabe | GH4: Eingabe | GI4: Eingabe | GJ4: Eingabe | GK4: Eingabe | GL4: Eingabe | GM4: Eingabe
A5: Filter
A6: =IF(Stammdaten_Analysenprogramm!AG7>0,Stammdaten_Analysenprogramm!A7,"") -> Beispiel GWMS XX/XX | B6: =IF(Stammdaten_Analysenprogramm!AG7>0,Stammdaten_Analysenprogramm!C7,"") -> GWMS XX/XX (FOK - FUK m) | C6: =A6 -> Beispiel GWMS XX/XX | P6: =Stammdaten_Analysenprogramm!AC7 -> 19.29450362 | Q6: =Stammdaten_Analysenprogramm!AD7 -> 20 | R6: =Stammdaten_Analysenprogramm!AB7 -> 385.8900723 | S6: =Stammdaten_Analysenprogramm!V7 -> 5.44 | X6: =T6-P6 -> -19.29450362 | Y6: =Q6-U6 -> 20 | Z6: =V6-R6 -> -385.8900723 | AA6: =W6-S6 -> -5.44
A7: =IF(Stammdaten_Analysenprogramm!AG8>0,Stammdaten_Analysenprogramm!A8,"") ->  | B7: =IF(Stammdaten_Analysenprogramm!AG8>0,Stammdaten_Analysenprogramm!C8,"") ->  | C7: =A7 ->  | P7: =Stammdaten_Analysenprogramm!AC8 ->  | Q7: =Stammdaten_Analysenprogramm!AD8 -> 0 | R7: =Stammdaten_Analysenprogramm!AB8 ->  | S7: =Stammdaten_Analysenprogramm!V8 -> k.A. | X7: =T7-P7 ->  | Y7: =Q7-U7 -> 0 | Z7: =V7-R7 ->  | AA7: =W7-S7 -> 
A8: =IF(Stammdaten_Analysenprogramm!AG9>0,Stammdaten_Analysenprogramm!A9,"") ->  | B8: =IF(Stammdaten_Analysenprogramm!AG9>0,Stammdaten_Analysenprogramm!C9,"") ->  | P8: =Stammdaten_Analysenprogramm!AC9 ->  | Q8: =Stammdaten_Analysenprogramm!AD9 -> 0 | R8: =Stammdaten_Analysenprogramm!AB9 ->  | S8: =Stammdaten_Analysenprogramm!V9 -> k.A. | Y8: 0
A9: =IF(Stammdaten_Analysenprogramm!AG10>0,Stammdaten_Analysenprogramm!A10,"") ->  | B9: =IF(Stammdaten_Analysenprogramm!AG10>0,Stammdaten_Analysenprogramm!C10,"") ->  | P9: =Stammdaten_Analysenprogramm!AC10 ->  | Q9: =Stammdaten_Analysenprogramm!AD10 -> 0 | R9: =Stammdaten_Analysenprogramm!AB10 ->  | S9: =Stammdaten_Analysenprogramm!V10 -> k.A. | Y9: 0
A10: =IF(Stammdaten_Analysenprogramm!AG11>0,Stammdaten_Analysenprogramm!A11,"") ->  | B10: =IF(Stammdaten_Analysenprogramm!AG11>0,Stammdaten_Analysenprogramm!C11,"") ->  | P10: =Stammdaten_Analysenprogramm!AC11 ->  | Q10: =Stammdaten_Analysenprogramm!AD11 -> 0 | R10: =Stammdaten_Analysenprogramm!AB11 ->  | S10: =Stammdaten_Analysenprogramm!V11 -> k.A. | Y10: 0
A11: =IF(Stammdaten_Analysenprogramm!AG12>0,Stammdaten_Analysenprogramm!A12,"") ->  | B11: =IF(Stammdaten_Analysenprogramm!AG12>0,Stammdaten_Analysenprogramm!C12,"") ->  | P11: =Stammdaten_Analysenprogramm!AC12 ->  | Q11: =Stammdaten_Analysenprogramm!AD12 -> 0 | R11: =Stammdaten_Analysenprogramm!AB12 ->  | S11: =Stammdaten_Analysenprogramm!V12 -> k.A. | Y11: 0
A12: =IF(Stammdaten_Analysenprogramm!AG13>0,Stammdaten_Analysenprogramm!A13,"") ->  | B12: =IF(Stammdaten_Analysenprogramm!AG13>0,Stammdaten_Analysenprogramm!C13,"") ->  | P12: =Stammdaten_Analysenprogramm!AC13 ->  | Q12: =Stammdaten_Analysenprogramm!AD13 -> 0 | R12: =Stammdaten_Analysenprogramm!AB13 ->  | S12: =Stammdaten_Analysenprogramm!V13 -> k.A. | Y12: 0
A13: =IF(Stammdaten_Analysenprogramm!AG14>0,Stammdaten_Analysenprogramm!A14,"") ->  | B13: =IF(Stammdaten_Analysenprogramm!AG14>0,Stammdaten_Analysenprogramm!C14,"") ->  | P13: =Stammdaten_Analysenprogramm!AC14 ->  | Q13: =Stammdaten_Analysenprogramm!AD14 -> 0 | R13: =Stammdaten_Analysenprogramm!AB14 ->  | S13: =Stammdaten_Analysenprogramm!V14 -> k.A. | Y13: 0
A14: =IF(Stammdaten_Analysenprogramm!AG15>0,Stammdaten_Analysenprogramm!A15,"") ->  | B14: =IF(Stammdaten_Analysenprogramm!AG15>0,Stammdaten_Analysenprogramm!C15,"") ->  | P14: =Stammdaten_Analysenprogramm!AC15 ->  | Q14: =Stammdaten_Analysenprogramm!AD15 -> 0 | R14: =Stammdaten_Analysenprogramm!AB15 ->  | S14: =Stammdaten_Analysenprogramm!V15 -> k.A. | Y14: 0
A15: =IF(Stammdaten_Analysenprogramm!AG16>0,Stammdaten_Analysenprogramm!A16,"") ->  | B15: =IF(Stammdaten_Analysenprogramm!AG16>0,Stammdaten_Analysenprogramm!C16,"") ->  | P15: =Stammdaten_Analysenprogramm!AC16 ->  | Q15: =Stammdaten_Analysenprogramm!AD16 -> 0 | R15: =Stammdaten_Analysenprogramm!AB16 ->  | S15: =Stammdaten_Analysenprogramm!V16 -> k.A. | Y15: 0
A16: =IF(Stammdaten_Analysenprogramm!AG17>0,Stammdaten_Analysenprogramm!A17,"") ->  | B16: =IF(Stammdaten_Analysenprogramm!AG17>0,Stammdaten_Analysenprogramm!C17,"") ->  | P16: =Stammdaten_Analysenprogramm!AC17 ->  | Q16: =Stammdaten_Analysenprogramm!AD17 -> 0 | R16: =Stammdaten_Analysenprogramm!AB17 ->  | S16: =Stammdaten_Analysenprogramm!V17 -> k.A. | Y16: 0
A17: =IF(Stammdaten_Analysenprogramm!AG18>0,Stammdaten_Analysenprogramm!A18,"") ->  | B17: =IF(Stammdaten_Analysenprogramm!AG18>0,Stammdaten_Analysenprogramm!C18,"") ->  | P17: =Stammdaten_Analysenprogramm!AC18 ->  | Q17: =Stammdaten_Analysenprogramm!AD18 -> 0 | R17: =Stammdaten_Analysenprogramm!AB18 ->  | S17: =Stammdaten_Analysenprogramm!V18 -> k.A. | Y17: 0
A18: =IF(Stammdaten_Analysenprogramm!AG19>0,Stammdaten_Analysenprogramm!A19,"") ->  | B18: =IF(Stammdaten_Analysenprogramm!AG19>0,Stammdaten_Analysenprogramm!C19,"") ->  | P18: =Stammdaten_Analysenprogramm!AC19 ->  | Q18: =Stammdaten_Analysenprogramm!AD19 -> 0 | R18: =Stammdaten_Analysenprogramm!AB19 ->  | S18: =Stammdaten_Analysenprogramm!V19 -> k.A. | Y18: 0
A19: =IF(Stammdaten_Analysenprogramm!AG20>0,Stammdaten_Analysenprogramm!A20,"") ->  | B19: =IF(Stammdaten_Analysenprogramm!AG20>0,Stammdaten_Analysenprogramm!C20,"") ->  | P19: =Stammdaten_Analysenprogramm!AC20 ->  | Q19: =Stammdaten_Analysenprogramm!AD20 -> 0 | R19: =Stammdaten_Analysenprogramm!AB20 ->  | S19: =Stammdaten_Analysenprogramm!V20 -> k.A. | Y19: 0
A20: =IF(Stammdaten_Analysenprogramm!AG21>0,Stammdaten_Analysenprogramm!A21,"") ->  | B20: =IF(Stammdaten_Analysenprogramm!AG21>0,Stammdaten_Analysenprogramm!C21,"") ->  | P20: =Stammdaten_Analysenprogramm!AC21 ->  | Q20: =Stammdaten_Analysenprogramm!AD21 -> 0 | R20: =Stammdaten_Analysenprogramm!AB21 ->  | S20: =Stammdaten_Analysenprogramm!V21 -> k.A. | Y20: 0
A21: =IF(Stammdaten_Analysenprogramm!AG22>0,Stammdaten_Analysenprogramm!A22,"") ->  | B21: =IF(Stammdaten_Analysenprogramm!AG22>0,Stammdaten_Analysenprogramm!C22,"") ->  | P21: =Stammdaten_Analysenprogramm!AC22 ->  | Q21: =Stammdaten_Analysenprogramm!AD22 -> 0 | R21: =Stammdaten_Analysenprogramm!AB22 ->  | S21: =Stammdaten_Analysenprogramm!V22 -> k.A. | Y21: 0
A22: =IF(Stammdaten_Analysenprogramm!AG23>0,Stammdaten_Analysenprogramm!A23,"") ->  | B22: =IF(Stammdaten_Analysenprogramm!AG23>0,Stammdaten_Analysenprogramm!C23,"") ->  | P22: =Stammdaten_Analysenprogramm!AC23 ->  | Q22: =Stammdaten_Analysenprogramm!AD23 -> 0 | R22: =Stammdaten_Analysenprogramm!AB23 ->  | S22: =Stammdaten_Analysenprogramm!V23 -> k.A. | Y22: 0
A23: =IF(Stammdaten_Analysenprogramm!AG24>0,Stammdaten_Analysenprogramm!A24,"") ->  | B23: =IF(Stammdaten_Analysenprogramm!AG24>0,Stammdaten_Analysenprogramm!C24,"") ->  | P23: =Stammdaten_Analysenprogramm!AC24 ->  | Q23: =Stammdaten_Analysenprogramm!AD24 -> 0 | R23: =Stammdaten_Analysenprogramm!AB24 ->  | S23: =Stammdaten_Analysenprogramm!V24 -> k.A. | Y23: 0
A24: =IF(Stammdaten_Analysenprogramm!AG25>0,Stammdaten_Analysenprogramm!A25,"") ->  | B24: =IF(Stammdaten_Analysenprogramm!AG25>0,Stammdaten_Analysenprogramm!C25,"") ->  | P24: =Stammdaten_Analysenprogramm!AC25 ->  | Q24: =Stammdaten_Analysenprogramm!AD25 -> 0 | R24: =Stammdaten_Analysenprogramm!AB25 ->  | S24: =Stammdaten_Analysenprogramm!V25 -> k.A. | Y24: 0
A25: =IF(Stammdaten_Analysenprogramm!AG26>0,Stammdaten_Analysenprogramm!A26,"") ->  | B25: =IF(Stammdaten_Analysenprogramm!AG26>0,Stammdaten_Analysenprogramm!C26,"") ->  | P25: =Stammdaten_Analysenprogramm!AC26 ->  | Q25: =Stammdaten_Analysenprogramm!AD26 -> 0 | R25: =Stammdaten_Analysenprogramm!AB26 ->  | S25: =Stammdaten_Analysenprogramm!V26 -> k.A. | Y25: 0
A26: =IF(Stammdaten_Analysenprogramm!AG27>0,Stammdaten_Analysenprogramm!A27,"") ->  | B26: =IF(Stammdaten_Analysenprogramm!AG27>0,Stammdaten_Analysenprogramm!C27,"") ->  | P26: =Stammdaten_Analysenprogramm!AC27 ->  | Q26: =Stammdaten_Analysenprogramm!AD27 -> 0 | R26: =Stammdaten_Analysenprogramm!AB27 ->  | S26: =Stammdaten_Analysenprogramm!V27 -> k.A. | Y26: 0
A27: =IF(Stammdaten_Analysenprogramm!AG28>0,Stammdaten_Analysenprogramm!A28,"") ->  | B27: =IF(Stammdaten_Analysenprogramm!AG28>0,Stammdaten_Analysenprogramm!C28,"") ->  | P27: =Stammdaten_Analysenprogramm!AC28 ->  | Q27: =Stammdaten_Analysenprogramm!AD28 -> 0 | R27: =Stammdaten_Analysenprogramm!AB28 ->  | S27: =Stammdaten_Analysenprogramm!V28 -> k.A. | Y27: 0
A28: =IF(Stammdaten_Analysenprogramm!AG29>0,Stammdaten_Analysenprogramm!A29,"") ->  | B28: =IF(Stammdaten_Analysenprogramm!AG29>0,Stammdaten_Analysenprogramm!C29,"") ->  | P28: =Stammdaten_Analysenprogramm!AC29 ->  | Q28: =Stammdaten_Analysenprogramm!AD29 -> 0 | R28: =Stammdaten_Analysenprogramm!AB29 ->  | S28: =Stammdaten_Analysenprogramm!V29 -> k.A. | Y28: 0
A29: =IF(Stammdaten_Analysenprogramm!AG30>0,Stammdaten_Analysenprogramm!A30,"") ->  | B29: =IF(Stammdaten_Analysenprogramm!AG30>0,Stammdaten_Analysenprogramm!C30,"") ->  | P29: =Stammdaten_Analysenprogramm!AC30 ->  | Q29: =Stammdaten_Analysenprogramm!AD30 -> 0 | R29: =Stammdaten_Analysenprogramm!AB30 ->  | S29: =Stammdaten_Analysenprogramm!V30 -> k.A. | Y29: 0
A30: =IF(Stammdaten_Analysenprogramm!AG31>0,Stammdaten_Analysenprogramm!A31,"") ->  | B30: =IF(Stammdaten_Analysenprogramm!AG31>0,Stammdaten_Analysenprogramm!C31,"") ->  | P30: =Stammdaten_Analysenprogramm!AC31 ->  | Q30: =Stammdaten_Analysenprogramm!AD31 -> 0 | R30: =Stammdaten_Analysenprogramm!AB31 ->  | S30: =Stammdaten_Analysenprogramm!V31 -> k.A. | Y30: 0
A31: =IF(Stammdaten_Analysenprogramm!AG32>0,Stammdaten_Analysenprogramm!A32,"") ->  | B31: =IF(Stammdaten_Analysenprogramm!AG32>0,Stammdaten_Analysenprogramm!C32,"") ->  | P31: =Stammdaten_Analysenprogramm!AC32 ->  | Q31: =Stammdaten_Analysenprogramm!AD32 -> 0 | R31: =Stammdaten_Analysenprogramm!AB32 ->  | S31: =Stammdaten_Analysenprogramm!V32 -> k.A. | Y31: 0
A32: =IF(Stammdaten_Analysenprogramm!AG33>0,Stammdaten_Analysenprogramm!A33,"") ->  | B32: =IF(Stammdaten_Analysenprogramm!AG33>0,Stammdaten_Analysenprogramm!C33,"") ->  | P32: =Stammdaten_Analysenprogramm!AC33 ->  | Q32: =Stammdaten_Analysenprogramm!AD33 -> 0 | R32: =Stammdaten_Analysenprogramm!AB33 ->  | S32: =Stammdaten_Analysenprogramm!V33 -> k.A. | Y32: 0
A33: =IF(Stammdaten_Analysenprogramm!AG34>0,Stammdaten_Analysenprogramm!A34,"") ->  | B33: =IF(Stammdaten_Analysenprogramm!AG34>0,Stammdaten_Analysenprogramm!C34,"") ->  | P33: =Stammdaten_Analysenprogramm!AC34 ->  | Q33: =Stammdaten_Analysenprogramm!AD34 -> 0 | R33: =Stammdaten_Analysenprogramm!AB34 ->  | S33: =Stammdaten_Analysenprogramm!V34 -> k.A. | Y33: 0
A34: =IF(Stammdaten_Analysenprogramm!AG35>0,Stammdaten_Analysenprogramm!A35,"") ->  | B34: =IF(Stammdaten_Analysenprogramm!AG35>0,Stammdaten_Analysenprogramm!C35,"") ->  | P34: =Stammdaten_Analysenprogramm!AC35 ->  | Q34: =Stammdaten_Analysenprogramm!AD35 -> 0 | R34: =Stammdaten_Analysenprogramm!AB35 ->  | S34: =Stammdaten_Analysenprogramm!V35 -> k.A. | Y34: 0
A35: =IF(Stammdaten_Analysenprogramm!AG36>0,Stammdaten_Analysenprogramm!A36,"") ->  | B35: =IF(Stammdaten_Analysenprogramm!AG36>0,Stammdaten_Analysenprogramm!C36,"") ->  | P35: =Stammdaten_Analysenprogramm!AC36 ->  | Q35: =Stammdaten_Analysenprogramm!AD36 -> 0 | R35: =Stammdaten_Analysenprogramm!AB36 ->  | S35: =Stammdaten_Analysenprogramm!V36 -> k.A. | Y35: 0
A36: =IF(Stammdaten_Analysenprogramm!AG37>0,Stammdaten_Analysenprogramm!A37,"") ->  | B36: =IF(Stammdaten_Analysenprogramm!AG37>0,Stammdaten_Analysenprogramm!C37,"") ->  | P36: =Stammdaten_Analysenprogramm!AC37 ->  | Q36: =Stammdaten_Analysenprogramm!AD37 -> 0 | R36: =Stammdaten_Analysenprogramm!AB37 ->  | S36: =Stammdaten_Analysenprogramm!V37 -> k.A. | Y36: 0
A37: =IF(Stammdaten_Analysenprogramm!AG38>0,Stammdaten_Analysenprogramm!A38,"") ->  | B37: =IF(Stammdaten_Analysenprogramm!AG38>0,Stammdaten_Analysenprogramm!C38,"") ->  | P37: =Stammdaten_Analysenprogramm!AC38 ->  | Q37: =Stammdaten_Analysenprogramm!AD38 -> 0 | R37: =Stammdaten_Analysenprogramm!AB38 ->  | S37: =Stammdaten_Analysenprogramm!V38 -> k.A. | Y37: 0
A38: =IF(Stammdaten_Analysenprogramm!AG39>0,Stammdaten_Analysenprogramm!A39,"") ->  | B38: =IF(Stammdaten_Analysenprogramm!AG39>0,Stammdaten_Analysenprogramm!C39,"") ->  | P38: =Stammdaten_Analysenprogramm!AC39 ->  | Q38: =Stammdaten_Analysenprogramm!AD39 -> 0 | R38: =Stammdaten_Analysenprogramm!AB39 ->  | S38: =Stammdaten_Analysenprogramm!V39 -> k.A. | Y38: 0
A39: =IF(Stammdaten_Analysenprogramm!AG40>0,Stammdaten_Analysenprogramm!A40,"") ->  | B39: =IF(Stammdaten_Analysenprogramm!AG40>0,Stammdaten_Analysenprogramm!C40,"") ->  | P39: =Stammdaten_Analysenprogramm!AC40 ->  | Q39: =Stammdaten_Analysenprogramm!AD40 -> 0 | R39: =Stammdaten_Analysenprogramm!AB40 ->  | S39: =Stammdaten_Analysenprogramm!V40 -> k.A. | Y39: 0
A40: =IF(Stammdaten_Analysenprogramm!AG41>0,Stammdaten_Analysenprogramm!A41,"") ->  | B40: =IF(Stammdaten_Analysenprogramm!AG41>0,Stammdaten_Analysenprogramm!C41,"") ->  | P40: =Stammdaten_Analysenprogramm!AC41 ->  | Q40: =Stammdaten_Analysenprogramm!AD41 -> 0 | R40: =Stammdaten_Analysenprogramm!AB41 ->  | S40: =Stammdaten_Analysenprogramm!V41 -> k.A. | Y40: 0
A41: =IF(Stammdaten_Analysenprogramm!AG42>0,Stammdaten_Analysenprogramm!A42,"") ->  | B41: =IF(Stammdaten_Analysenprogramm!AG42>0,Stammdaten_Analysenprogramm!C42,"") ->  | P41: =Stammdaten_Analysenprogramm!AC42 ->  | Q41: =Stammdaten_Analysenprogramm!AD42 -> 0 | R41: =Stammdaten_Analysenprogramm!AB42 ->  | S41: =Stammdaten_Analysenprogramm!V42 -> k.A. | Y41: 0
A42: =IF(Stammdaten_Analysenprogramm!AG43>0,Stammdaten_Analysenprogramm!A43,"") ->  | B42: =IF(Stammdaten_Analysenprogramm!AG43>0,Stammdaten_Analysenprogramm!C43,"") ->  | P42: =Stammdaten_Analysenprogramm!AC43 ->  | Q42: =Stammdaten_Analysenprogramm!AD43 -> 0 | R42: =Stammdaten_Analysenprogramm!AB43 ->  | S42: =Stammdaten_Analysenprogramm!V43 -> k.A. | Y42: 0
A43: =IF(Stammdaten_Analysenprogramm!AG44>0,Stammdaten_Analysenprogramm!A44,"") ->  | B43: =IF(Stammdaten_Analysenprogramm!AG44>0,Stammdaten_Analysenprogramm!C44,"") ->  | P43: =Stammdaten_Analysenprogramm!AC44 ->  | Q43: =Stammdaten_Analysenprogramm!AD44 -> 0 | R43: =Stammdaten_Analysenprogramm!AB44 ->  | S43: =Stammdaten_Analysenprogramm!V44 -> k.A. | Y43: 0
A44: =IF(Stammdaten_Analysenprogramm!AG45>0,Stammdaten_Analysenprogramm!A45,"") ->  | B44: =IF(Stammdaten_Analysenprogramm!AG45>0,Stammdaten_Analysenprogramm!C45,"") ->  | P44: =Stammdaten_Analysenprogramm!AC45 ->  | Q44: =Stammdaten_Analysenprogramm!AD45 -> 0 | R44: =Stammdaten_Analysenprogramm!AB45 ->  | S44: =Stammdaten_Analysenprogramm!V45 -> k.A. | Y44: 0
A45: =IF(Stammdaten_Analysenprogramm!AG46>0,Stammdaten_Analysenprogramm!A46,"") ->  | B45: =IF(Stammdaten_Analysenprogramm!AG46>0,Stammdaten_Analysenprogramm!C46,"") ->  | P45: =Stammdaten_Analysenprogramm!AC46 ->  | Q45: =Stammdaten_Analysenprogramm!AD46 -> 0 | R45: =Stammdaten_Analysenprogramm!AB46 ->  | S45: =Stammdaten_Analysenprogramm!V46 -> k.A. | Y45: 0
A46: =IF(Stammdaten_Analysenprogramm!AG47>0,Stammdaten_Analysenprogramm!A47,"") ->  | B46: =IF(Stammdaten_Analysenprogramm!AG47>0,Stammdaten_Analysenprogramm!C47,"") ->  | P46: =Stammdaten_Analysenprogramm!AC47 ->  | Q46: =Stammdaten_Analysenprogramm!AD47 -> 0 | R46: =Stammdaten_Analysenprogramm!AB47 ->  | S46: =Stammdaten_Analysenprogramm!V47 -> k.A. | Y46: 0
A47: =IF(Stammdaten_Analysenprogramm!AG48>0,Stammdaten_Analysenprogramm!A48,"") ->  | B47: =IF(Stammdaten_Analysenprogramm!AG48>0,Stammdaten_Analysenprogramm!C48,"") ->  | P47: =Stammdaten_Analysenprogramm!AC48 ->  | Q47: =Stammdaten_Analysenprogramm!AD48 -> 0 | R47: =Stammdaten_Analysenprogramm!AB48 ->  | S47: =Stammdaten_Analysenprogramm!V48 -> k.A. | Y47: 0
A48: =IF(Stammdaten_Analysenprogramm!AG49>0,Stammdaten_Analysenprogramm!A49,"") ->  | B48: =IF(Stammdaten_Analysenprogramm!AG49>0,Stammdaten_Analysenprogramm!C49,"") ->  | P48: =Stammdaten_Analysenprogramm!AC49 ->  | Q48: =Stammdaten_Analysenprogramm!AD49 -> 0 | R48: =Stammdaten_Analysenprogramm!AB49 ->  | S48: =Stammdaten_Analysenprogramm!V49 -> k.A. | Y48: 0
A49: =IF(Stammdaten_Analysenprogramm!AG50>0,Stammdaten_Analysenprogramm!A50,"") ->  | B49: =IF(Stammdaten_Analysenprogramm!AG50>0,Stammdaten_Analysenprogramm!C50,"") ->  | P49: =Stammdaten_Analysenprogramm!AC50 ->  | Q49: =Stammdaten_Analysenprogramm!AD50 -> 0 | R49: =Stammdaten_Analysenprogramm!AB50 ->  | S49: =Stammdaten_Analysenprogramm!V50 -> k.A. | Y49: 0
A50: =IF(Stammdaten_Analysenprogramm!AG51>0,Stammdaten_Analysenprogramm!A51,"") ->  | B50: =IF(Stammdaten_Analysenprogramm!AG51>0,Stammdaten_Analysenprogramm!C51,"") ->  | P50: =Stammdaten_Analysenprogramm!AC51 ->  | Q50: =Stammdaten_Analysenprogramm!AD51 -> 0 | R50: =Stammdaten_Analysenprogramm!AB51 ->  | S50: =Stammdaten_Analysenprogramm!V51 -> k.A. | Y50: 0
A51: =IF(Stammdaten_Analysenprogramm!AG52>0,Stammdaten_Analysenprogramm!A52,"") ->  | B51: =IF(Stammdaten_Analysenprogramm!AG52>0,Stammdaten_Analysenprogramm!C52,"") ->  | P51: =Stammdaten_Analysenprogramm!AC52 ->  | Q51: =Stammdaten_Analysenprogramm!AD52 -> 0 | R51: =Stammdaten_Analysenprogramm!AB52 ->  | S51: =Stammdaten_Analysenprogramm!V52 -> k.A. | Y51: 0
A52: =IF(Stammdaten_Analysenprogramm!AG53>0,Stammdaten_Analysenprogramm!A53,"") ->  | B52: =IF(Stammdaten_Analysenprogramm!AG53>0,Stammdaten_Analysenprogramm!C53,"") ->  | P52: =Stammdaten_Analysenprogramm!AC53 ->  | Q52: =Stammdaten_Analysenprogramm!AD53 -> 0 | R52: =Stammdaten_Analysenprogramm!AB53 ->  | S52: =Stammdaten_Analysenprogramm!V53 -> k.A. | Y52: 0
A53: =IF(Stammdaten_Analysenprogramm!AG54>0,Stammdaten_Analysenprogramm!A54,"") ->  | B53: =IF(Stammdaten_Analysenprogramm!AG54>0,Stammdaten_Analysenprogramm!C54,"") ->  | P53: =Stammdaten_Analysenprogramm!AC54 ->  | Q53: =Stammdaten_Analysenprogramm!AD54 -> 0 | R53: =Stammdaten_Analysenprogramm!AB54 ->  | S53: =Stammdaten_Analysenprogramm!V54 -> k.A. | Y53: 0
A54: =IF(Stammdaten_Analysenprogramm!AG55>0,Stammdaten_Analysenprogramm!A55,"") ->  | B54: =IF(Stammdaten_Analysenprogramm!AG55>0,Stammdaten_Analysenprogramm!C55,"") ->  | P54: =Stammdaten_Analysenprogramm!AC55 ->  | Q54: =Stammdaten_Analysenprogramm!AD55 -> 0 | R54: =Stammdaten_Analysenprogramm!AB55 ->  | S54: =Stammdaten_Analysenprogramm!V55 -> k.A. | Y54: 0
A55: =IF(Stammdaten_Analysenprogramm!AG56>0,Stammdaten_Analysenprogramm!A56,"") ->  | B55: =IF(Stammdaten_Analysenprogramm!AG56>0,Stammdaten_Analysenprogramm!C56,"") ->  | P55: =Stammdaten_Analysenprogramm!AC56 ->  | Q55: =Stammdaten_Analysenprogramm!AD56 -> 0 | R55: =Stammdaten_Analysenprogramm!AB56 ->  | S55: =Stammdaten_Analysenprogramm!V56 -> k.A. | Y55: 0
A56: =IF(Stammdaten_Analysenprogramm!AG57>0,Stammdaten_Analysenprogramm!A57,"") ->  | B56: =IF(Stammdaten_Analysenprogramm!AG57>0,Stammdaten_Analysenprogramm!C57,"") ->  | P56: =Stammdaten_Analysenprogramm!AC57 ->  | Q56: =Stammdaten_Analysenprogramm!AD57 -> 0 | R56: =Stammdaten_Analysenprogramm!AB57 ->  | S56: =Stammdaten_Analysenprogramm!V57 -> k.A. | Y56: 0
A57: =IF(Stammdaten_Analysenprogramm!AG58>0,Stammdaten_Analysenprogramm!A58,"") ->  | B57: =IF(Stammdaten_Analysenprogramm!AG58>0,Stammdaten_Analysenprogramm!C58,"") ->  | P57: =Stammdaten_Analysenprogramm!AC58 ->  | Q57: =Stammdaten_Analysenprogramm!AD58 -> 0 | R57: =Stammdaten_Analysenprogramm!AB58 ->  | S57: =Stammdaten_Analysenprogramm!V58 -> k.A. | Y57: 0
A58: =IF(Stammdaten_Analysenprogramm!AG59>0,Stammdaten_Analysenprogramm!A59,"") ->  | B58: =IF(Stammdaten_Analysenprogramm!AG59>0,Stammdaten_Analysenprogramm!C59,"") ->  | P58: =Stammdaten_Analysenprogramm!AC59 ->  | Q58: =Stammdaten_Analysenprogramm!AD59 -> 0 | R58: =Stammdaten_Analysenprogramm!AB59 ->  | S58: =Stammdaten_Analysenprogramm!V59 -> k.A. | Y58: 0
A59: =IF(Stammdaten_Analysenprogramm!AG60>0,Stammdaten_Analysenprogramm!A60,"") ->  | B59: =IF(Stammdaten_Analysenprogramm!AG60>0,Stammdaten_Analysenprogramm!C60,"") ->  | P59: =Stammdaten_Analysenprogramm!AC60 ->  | Q59: =Stammdaten_Analysenprogramm!AD60 -> 0 | R59: =Stammdaten_Analysenprogramm!AB60 ->  | S59: =Stammdaten_Analysenprogramm!V60 -> k.A. | Y59: 0
A60: =IF(Stammdaten_Analysenprogramm!AG61>0,Stammdaten_Analysenprogramm!A61,"") ->  | B60: =IF(Stammdaten_Analysenprogramm!AG61>0,Stammdaten_Analysenprogramm!C61,"") ->  | P60: =Stammdaten_Analysenprogramm!AC61 ->  | Q60: =Stammdaten_Analysenprogramm!AD61 -> 0 | R60: =Stammdaten_Analysenprogramm!AB61 ->  | S60: =Stammdaten_Analysenprogramm!V61 -> k.A. | Y60: 0
A61: =IF(Stammdaten_Analysenprogramm!AG62>0,Stammdaten_Analysenprogramm!A62,"") ->  | B61: =IF(Stammdaten_Analysenprogramm!AG62>0,Stammdaten_Analysenprogramm!C62,"") ->  | P61: =Stammdaten_Analysenprogramm!AC62 ->  | Q61: =Stammdaten_Analysenprogramm!AD62 -> 0 | R61: =Stammdaten_Analysenprogramm!AB62 ->  | S61: =Stammdaten_Analysenprogramm!V62 -> k.A. | Y61: 0
A62: =IF(Stammdaten_Analysenprogramm!AG63>0,Stammdaten_Analysenprogramm!A63,"") ->  | B62: =IF(Stammdaten_Analysenprogramm!AG63>0,Stammdaten_Analysenprogramm!C63,"") ->  | P62: =Stammdaten_Analysenprogramm!AC63 ->  | Q62: =Stammdaten_Analysenprogramm!AD63 -> 0 | R62: =Stammdaten_Analysenprogramm!AB63 ->  | S62: =Stammdaten_Analysenprogramm!V63 -> k.A. | Y62: 0
A63: =IF(Stammdaten_Analysenprogramm!AG64>0,Stammdaten_Analysenprogramm!A64,"") ->  | B63: =IF(Stammdaten_Analysenprogramm!AG64>0,Stammdaten_Analysenprogramm!C64,"") ->  | P63: =Stammdaten_Analysenprogramm!AC64 ->  | Q63: =Stammdaten_Analysenprogramm!AD64 -> 0 | R63: =Stammdaten_Analysenprogramm!AB64 ->  | S63: =Stammdaten_Analysenprogramm!V64 -> k.A. | Y63: 0
A64: =IF(Stammdaten_Analysenprogramm!AG65>0,Stammdaten_Analysenprogramm!A65,"") ->  | B64: =IF(Stammdaten_Analysenprogramm!AG65>0,Stammdaten_Analysenprogramm!C65,"") ->  | P64: =Stammdaten_Analysenprogramm!AC65 ->  | Q64: =Stammdaten_Analysenprogramm!AD65 -> 0 | R64: =Stammdaten_Analysenprogramm!AB65 ->  | S64: =Stammdaten_Analysenprogramm!V65 -> k.A. | Y64: 0
A65: =IF(Stammdaten_Analysenprogramm!AG66>0,Stammdaten_Analysenprogramm!A66,"") ->  | B65: =IF(Stammdaten_Analysenprogramm!AG66>0,Stammdaten_Analysenprogramm!C66,"") ->  | P65: =Stammdaten_Analysenprogramm!AC66 ->  | Q65: =Stammdaten_Analysenprogramm!AD66 -> 0 | R65: =Stammdaten_Analysenprogramm!AB66 ->  | S65: =Stammdaten_Analysenprogramm!V66 -> k.A. | Y65: 0
A66: =IF(Stammdaten_Analysenprogramm!AG67>0,Stammdaten_Analysenprogramm!A67,"") ->  | B66: =IF(Stammdaten_Analysenprogramm!AG67>0,Stammdaten_Analysenprogramm!C67,"") ->  | P66: =Stammdaten_Analysenprogramm!AC67 ->  | Q66: =Stammdaten_Analysenprogramm!AD67 -> 0 | R66: =Stammdaten_Analysenprogramm!AB67 ->  | S66: =Stammdaten_Analysenprogramm!V67 -> k.A. | Y66: 0
A67: =IF(Stammdaten_Analysenprogramm!AG68>0,Stammdaten_Analysenprogramm!A68,"") ->  | B67: =IF(Stammdaten_Analysenprogramm!AG68>0,Stammdaten_Analysenprogramm!C68,"") ->  | P67: =Stammdaten_Analysenprogramm!AC68 ->  | Q67: =Stammdaten_Analysenprogramm!AD68 -> 0 | R67: =Stammdaten_Analysenprogramm!AB68 ->  | S67: =Stammdaten_Analysenprogramm!V68 -> k.A. | Y67: 0
A68: =IF(Stammdaten_Analysenprogramm!AG69>0,Stammdaten_Analysenprogramm!A69,"") ->  | B68: =IF(Stammdaten_Analysenprogramm!AG69>0,Stammdaten_Analysenprogramm!C69,"") ->  | P68: =Stammdaten_Analysenprogramm!AC69 ->  | Q68: =Stammdaten_Analysenprogramm!AD69 -> 0 | R68: =Stammdaten_Analysenprogramm!AB69 ->  | S68: =Stammdaten_Analysenprogramm!V69 -> k.A. | Y68: 0
A69: =IF(Stammdaten_Analysenprogramm!AG70>0,Stammdaten_Analysenprogramm!A70,"") ->  | B69: =IF(Stammdaten_Analysenprogramm!AG70>0,Stammdaten_Analysenprogramm!C70,"") ->  | P69: =Stammdaten_Analysenprogramm!AC70 ->  | Q69: =Stammdaten_Analysenprogramm!AD70 -> 0 | R69: =Stammdaten_Analysenprogramm!AB70 ->  | S69: =Stammdaten_Analysenprogramm!V70 -> k.A. | Y69: 0
A70: =IF(Stammdaten_Analysenprogramm!AG71>0,Stammdaten_Analysenprogramm!A71,"") ->  | B70: =IF(Stammdaten_Analysenprogramm!AG71>0,Stammdaten_Analysenprogramm!C71,"") ->  | P70: =Stammdaten_Analysenprogramm!AC71 ->  | Q70: =Stammdaten_Analysenprogramm!AD71 -> 0 | R70: =Stammdaten_Analysenprogramm!AB71 ->  | S70: =Stammdaten_Analysenprogramm!V71 -> k.A. | X70: =T70-P70 ->  | Y70: =Q70-U70 -> 0 | Z70: =V70-R70 ->  | AA70: =W70-S70 -> 
A71: =IF(Stammdaten_Analysenprogramm!AG72>0,Stammdaten_Analysenprogramm!A72,"") ->  | B71: =IF(Stammdaten_Analysenprogramm!AG72>0,Stammdaten_Analysenprogramm!C72,"") ->  | C71: =A71 ->  | P71: =Stammdaten_Analysenprogramm!AC72 ->  | Q71: =Stammdaten_Analysenprogramm!AD72 -> 0 | R71: =Stammdaten_Analysenprogramm!AB72 ->  | S71: =Stammdaten_Analysenprogramm!V72 -> k.A. | Y71: 0
A72: =IF(Stammdaten_Analysenprogramm!AG73>0,Stammdaten_Analysenprogramm!A73,"") ->  | B72: =IF(Stammdaten_Analysenprogramm!AG73>0,Stammdaten_Analysenprogramm!C73,"") ->  | P72: =Stammdaten_Analysenprogramm!AC73 ->  | Q72: =Stammdaten_Analysenprogramm!AD73 -> 0 | R72: =Stammdaten_Analysenprogramm!AB73 ->  | S72: =Stammdaten_Analysenprogramm!V73 -> k.A. | Y72: 0
A73: =IF(Stammdaten_Analysenprogramm!AG74>0,Stammdaten_Analysenprogramm!A74,"") ->  | B73: =IF(Stammdaten_Analysenprogramm!AG74>0,Stammdaten_Analysenprogramm!C74,"") ->  | P73: =Stammdaten_Analysenprogramm!AC74 ->  | Q73: =Stammdaten_Analysenprogramm!AD74 -> 0 | R73: =Stammdaten_Analysenprogramm!AB74 ->  | S73: =Stammdaten_Analysenprogramm!V74 -> k.A. | Y73: 0
A74: =IF(Stammdaten_Analysenprogramm!AG75>0,Stammdaten_Analysenprogramm!A75,"") ->  | B74: =IF(Stammdaten_Analysenprogramm!AG75>0,Stammdaten_Analysenprogramm!C75,"") ->  | P74: =Stammdaten_Analysenprogramm!AC75 ->  | Q74: =Stammdaten_Analysenprogramm!AD75 -> 0 | R74: =Stammdaten_Analysenprogramm!AB75 ->  | S74: =Stammdaten_Analysenprogramm!V75 -> k.A. | Y74: 0
A75: =IF(Stammdaten_Analysenprogramm!AG76>0,Stammdaten_Analysenprogramm!A76,"") ->  | B75: =IF(Stammdaten_Analysenprogramm!AG76>0,Stammdaten_Analysenprogramm!C76,"") ->  | P75: =Stammdaten_Analysenprogramm!AC76 ->  | Q75: =Stammdaten_Analysenprogramm!AD76 -> 0 | R75: =Stammdaten_Analysenprogramm!AB76 ->  | S75: =Stammdaten_Analysenprogramm!V76 -> k.A. | Y75: 0
A76: =IF(Stammdaten_Analysenprogramm!AG77>0,Stammdaten_Analysenprogramm!A77,"") ->  | B76: =IF(Stammdaten_Analysenprogramm!AG77>0,Stammdaten_Analysenprogramm!C77,"") ->  | P76: =Stammdaten_Analysenprogramm!AC77 ->  | Q76: =Stammdaten_Analysenprogramm!AD77 -> 0 | R76: =Stammdaten_Analysenprogramm!AB77 ->  | S76: =Stammdaten_Analysenprogramm!V77 -> k.A. | Y76: 0
A77: =IF(Stammdaten_Analysenprogramm!AG78>0,Stammdaten_Analysenprogramm!A78,"") ->  | B77: =IF(Stammdaten_Analysenprogramm!AG78>0,Stammdaten_Analysenprogramm!C78,"") ->  | P77: =Stammdaten_Analysenprogramm!AC78 ->  | Q77: =Stammdaten_Analysenprogramm!AD78 -> 0 | R77: =Stammdaten_Analysenprogramm!AB78 ->  | S77: =Stammdaten_Analysenprogramm!V78 -> k.A. | Y77: 0
A78: =IF(Stammdaten_Analysenprogramm!AG79>0,Stammdaten_Analysenprogramm!A79,"") ->  | B78: =IF(Stammdaten_Analysenprogramm!AG79>0,Stammdaten_Analysenprogramm!C79,"") ->  | P78: =Stammdaten_Analysenprogramm!AC79 ->  | Q78: =Stammdaten_Analysenprogramm!AD79 -> 0 | R78: =Stammdaten_Analysenprogramm!AB79 ->  | S78: =Stammdaten_Analysenprogramm!V79 -> k.A. | Y78: 0
A79: =IF(Stammdaten_Analysenprogramm!AG80>0,Stammdaten_Analysenprogramm!A80,"") ->  | B79: =IF(Stammdaten_Analysenprogramm!AG80>0,Stammdaten_Analysenprogramm!C80,"") ->  | P79: =Stammdaten_Analysenprogramm!AC80 ->  | Q79: =Stammdaten_Analysenprogramm!AD80 -> 0 | R79: =Stammdaten_Analysenprogramm!AB80 ->  | S79: =Stammdaten_Analysenprogramm!V80 -> k.A. | Y79: 0
A80: =IF(Stammdaten_Analysenprogramm!AG81>0,Stammdaten_Analysenprogramm!A81,"") ->  | B80: =IF(Stammdaten_Analysenprogramm!AG81>0,Stammdaten_Analysenprogramm!C81,"") ->  | P80: =Stammdaten_Analysenprogramm!AC81 ->  | Q80: =Stammdaten_Analysenprogramm!AD81 -> 0 | R80: =Stammdaten_Analysenprogramm!AB81 ->  | S80: =Stammdaten_Analysenprogramm!V81 -> k.A. | Y80: 0
A81: =IF(Stammdaten_Analysenprogramm!AG82>0,Stammdaten_Analysenprogramm!A82,"") ->  | B81: =IF(Stammdaten_Analysenprogramm!AG82>0,Stammdaten_Analysenprogramm!C82,"") ->  | P81: =Stammdaten_Analysenprogramm!AC82 ->  | Q81: =Stammdaten_Analysenprogramm!AD82 -> 0 | R81: =Stammdaten_Analysenprogramm!AB82 ->  | S81: =Stammdaten_Analysenprogramm!V82 -> k.A. | Y81: 0
A82: =IF(Stammdaten_Analysenprogramm!AG83>0,Stammdaten_Analysenprogramm!A83,"") ->  | B82: =IF(Stammdaten_Analysenprogramm!AG83>0,Stammdaten_Analysenprogramm!C83,"") ->  | P82: =Stammdaten_Analysenprogramm!AC83 ->  | Q82: =Stammdaten_Analysenprogramm!AD83 -> 0 | R82: =Stammdaten_Analysenprogramm!AB83 ->  | S82: =Stammdaten_Analysenprogramm!V83 -> k.A. | Y82: 0
A83: =IF(Stammdaten_Analysenprogramm!AG84>0,Stammdaten_Analysenprogramm!A84,"") ->  | B83: =IF(Stammdaten_Analysenprogramm!AG84>0,Stammdaten_Analysenprogramm!C84,"") ->  | P83: =Stammdaten_Analysenprogramm!AC84 ->  | Q83: =Stammdaten_Analysenprogramm!AD84 -> 0 | R83: =Stammdaten_Analysenprogramm!AB84 ->  | S83: =Stammdaten_Analysenprogramm!V84 -> k.A. | Y83: 0
A84: =IF(Stammdaten_Analysenprogramm!AG85>0,Stammdaten_Analysenprogramm!A85,"") ->  | B84: =IF(Stammdaten_Analysenprogramm!AG85>0,Stammdaten_Analysenprogramm!C85,"") ->  | P84: =Stammdaten_Analysenprogramm!AC85 ->  | Q84: =Stammdaten_Analysenprogramm!AD85 -> 0 | R84: =Stammdaten_Analysenprogramm!AB85 ->  | S84: =Stammdaten_Analysenprogramm!V85 -> k.A. | Y84: 0
A85: =IF(Stammdaten_Analysenprogramm!AG86>0,Stammdaten_Analysenprogramm!A86,"") ->  | B85: =IF(Stammdaten_Analysenprogramm!AG86>0,Stammdaten_Analysenprogramm!C86,"") ->  | P85: =Stammdaten_Analysenprogramm!AC86 ->  | Q85: =Stammdaten_Analysenprogramm!AD86 -> 0 | R85: =Stammdaten_Analysenprogramm!AB86 ->  | S85: =Stammdaten_Analysenprogramm!V86 -> k.A. | Y85: 0
A86: =IF(Stammdaten_Analysenprogramm!AG87>0,Stammdaten_Analysenprogramm!A87,"") ->  | B86: =IF(Stammdaten_Analysenprogramm!AG87>0,Stammdaten_Analysenprogramm!C87,"") ->  | P86: =Stammdaten_Analysenprogramm!AC87 ->  | Q86: =Stammdaten_Analysenprogramm!AD87 -> 0 | R86: =Stammdaten_Analysenprogramm!AB87 ->  | S86: =Stammdaten_Analysenprogramm!V87 -> k.A. | Y86: 0
A87: =IF(Stammdaten_Analysenprogramm!AG88>0,Stammdaten_Analysenprogramm!A88,"") ->  | B87: =IF(Stammdaten_Analysenprogramm!AG88>0,Stammdaten_Analysenprogramm!C88,"") ->  | P87: =Stammdaten_Analysenprogramm!AC88 ->  | Q87: =Stammdaten_Analysenprogramm!AD88 -> 0 | R87: =Stammdaten_Analysenprogramm!AB88 ->  | S87: =Stammdaten_Analysenprogramm!V88 -> k.A. | Y87: 0
A88: =IF(Stammdaten_Analysenprogramm!AG89>0,Stammdaten_Analysenprogramm!A89,"") ->  | B88: =IF(Stammdaten_Analysenprogramm!AG89>0,Stammdaten_Analysenprogramm!C89,"") ->  | P88: =Stammdaten_Analysenprogramm!AC89 ->  | Q88: =Stammdaten_Analysenprogramm!AD89 -> 0 | R88: =Stammdaten_Analysenprogramm!AB89 ->  | S88: =Stammdaten_Analysenprogramm!V89 -> k.A. | Y88: 0
A89: =IF(Stammdaten_Analysenprogramm!AG90>0,Stammdaten_Analysenprogramm!A90,"") ->  | B89: =IF(Stammdaten_Analysenprogramm!AG90>0,Stammdaten_Analysenprogramm!C90,"") ->  | P89: =Stammdaten_Analysenprogramm!AC90 ->  | Q89: =Stammdaten_Analysenprogramm!AD90 -> 0 | R89: =Stammdaten_Analysenprogramm!AB90 ->  | S89: =Stammdaten_Analysenprogramm!V90 -> k.A. | Y89: 0
A90: =IF(Stammdaten_Analysenprogramm!AG91>0,Stammdaten_Analysenprogramm!A91,"") ->  | B90: =IF(Stammdaten_Analysenprogramm!AG91>0,Stammdaten_Analysenprogramm!C91,"") ->  | P90: =Stammdaten_Analysenprogramm!AC91 ->  | Q90: =Stammdaten_Analysenprogramm!AD91 -> 0 | R90: =Stammdaten_Analysenprogramm!AB91 ->  | S90: =Stammdaten_Analysenprogramm!V91 -> k.A. | Y90: 0
A91: =IF(Stammdaten_Analysenprogramm!AG92>0,Stammdaten_Analysenprogramm!A92,"") ->  | B91: =IF(Stammdaten_Analysenprogramm!AG92>0,Stammdaten_Analysenprogramm!C92,"") ->  | P91: =Stammdaten_Analysenprogramm!AC92 ->  | Q91: =Stammdaten_Analysenprogramm!AD92 -> 0 | R91: =Stammdaten_Analysenprogramm!AB92 ->  | S91: =Stammdaten_Analysenprogramm!V92 -> k.A. | Y91: 0
A92: =IF(Stammdaten_Analysenprogramm!AG93>0,Stammdaten_Analysenprogramm!A93,"") ->  | B92: =IF(Stammdaten_Analysenprogramm!AG93>0,Stammdaten_Analysenprogramm!C93,"") ->  | P92: =Stammdaten_Analysenprogramm!AC93 ->  | Q92: =Stammdaten_Analysenprogramm!AD93 -> 0 | R92: =Stammdaten_Analysenprogramm!AB93 ->  | S92: =Stammdaten_Analysenprogramm!V93 -> k.A. | Y92: 0
A93: =IF(Stammdaten_Analysenprogramm!AG94>0,Stammdaten_Analysenprogramm!A94,"") ->  | B93: =IF(Stammdaten_Analysenprogramm!AG94>0,Stammdaten_Analysenprogramm!C94,"") ->  | P93: =Stammdaten_Analysenprogramm!AC94 ->  | Q93: =Stammdaten_Analysenprogramm!AD94 -> 0 | R93: =Stammdaten_Analysenprogramm!AB94 ->  | S93: =Stammdaten_Analysenprogramm!V94 -> k.A. | Y93: 0
A94: =IF(Stammdaten_Analysenprogramm!AG95>0,Stammdaten_Analysenprogramm!A95,"") ->  | B94: =IF(Stammdaten_Analysenprogramm!AG95>0,Stammdaten_Analysenprogramm!C95,"") ->  | P94: =Stammdaten_Analysenprogramm!AC95 ->  | Q94: =Stammdaten_Analysenprogramm!AD95 -> 0 | R94: =Stammdaten_Analysenprogramm!AB95 ->  | S94: =Stammdaten_Analysenprogramm!V95 -> k.A. | Y94: 0
A95: =IF(Stammdaten_Analysenprogramm!AG96>0,Stammdaten_Analysenprogramm!A96,"") ->  | B95: =IF(Stammdaten_Analysenprogramm!AG96>0,Stammdaten_Analysenprogramm!C96,"") ->  | P95: =Stammdaten_Analysenprogramm!AC96 ->  | Q95: =Stammdaten_Analysenprogramm!AD96 -> 0 | R95: =Stammdaten_Analysenprogramm!AB96 ->  | S95: =Stammdaten_Analysenprogramm!V96 -> k.A. | Y95: 0
A96: =IF(Stammdaten_Analysenprogramm!AG97>0,Stammdaten_Analysenprogramm!A97,"") ->  | B96: =IF(Stammdaten_Analysenprogramm!AG97>0,Stammdaten_Analysenprogramm!C97,"") ->  | P96: =Stammdaten_Analysenprogramm!AC97 ->  | Q96: =Stammdaten_Analysenprogramm!AD97 -> 0 | R96: =Stammdaten_Analysenprogramm!AB97 ->  | S96: =Stammdaten_Analysenprogramm!V97 -> k.A. | Y96: 0
A97: =IF(Stammdaten_Analysenprogramm!AG98>0,Stammdaten_Analysenprogramm!A98,"") ->  | B97: =IF(Stammdaten_Analysenprogramm!AG98>0,Stammdaten_Analysenprogramm!C98,"") ->  | P97: =Stammdaten_Analysenprogramm!AC98 ->  | Q97: =Stammdaten_Analysenprogramm!AD98 -> 0 | R97: =Stammdaten_Analysenprogramm!AB98 ->  | S97: =Stammdaten_Analysenprogramm!V98 -> k.A. | Y97: 0
A98: =IF(Stammdaten_Analysenprogramm!AG99>0,Stammdaten_Analysenprogramm!A99,"") ->  | B98: =IF(Stammdaten_Analysenprogramm!AG99>0,Stammdaten_Analysenprogramm!C99,"") ->  | P98: =Stammdaten_Analysenprogramm!AC99 ->  | Q98: =Stammdaten_Analysenprogramm!AD99 -> 0 | R98: =Stammdaten_Analysenprogramm!AB99 ->  | S98: =Stammdaten_Analysenprogramm!V99 -> k.A. | Y98: 0
A99: =IF(Stammdaten_Analysenprogramm!AG100>0,Stammdaten_Analysenprogramm!A100,"") ->  | B99: =IF(Stammdaten_Analysenprogramm!AG100>0,Stammdaten_Analysenprogramm!C100,"") ->  | P99: =Stammdaten_Analysenprogramm!AC100 ->  | Q99: =Stammdaten_Analysenprogramm!AD100 -> 0 | R99: =Stammdaten_Analysenprogramm!AB100 ->  | S99: =Stammdaten_Analysenprogramm!V100 -> k.A. | Y99: 0
A100: =IF(Stammdaten_Analysenprogramm!AG101>0,Stammdaten_Analysenprogramm!A101,"") ->  | B100: =IF(Stammdaten_Analysenprogramm!AG101>0,Stammdaten_Analysenprogramm!C101,"") ->  | P100: =Stammdaten_Analysenprogramm!AC101 ->  | Q100: =Stammdaten_Analysenprogramm!AD101 -> 0 | R100: =Stammdaten_Analysenprogramm!AB101 ->  | S100: =Stammdaten_Analysenprogramm!V101 -> k.A. | Y100: 0
A101: =IF(Stammdaten_Analysenprogramm!AG102>0,Stammdaten_Analysenprogramm!A102,"") ->  | B101: =IF(Stammdaten_Analysenprogramm!AG102>0,Stammdaten_Analysenprogramm!C102,"") ->  | P101: =Stammdaten_Analysenprogramm!AC102 ->  | Q101: =Stammdaten_Analysenprogramm!AD102 -> 0 | R101: =Stammdaten_Analysenprogramm!AB102 ->  | S101: =Stammdaten_Analysenprogramm!V102 -> k.A. | Y101: 0
A102: =IF(Stammdaten_Analysenprogramm!AG103>0,Stammdaten_Analysenprogramm!A103,"") ->  | B102: =IF(Stammdaten_Analysenprogramm!AG103>0,Stammdaten_Analysenprogramm!C103,"") ->  | P102: =Stammdaten_Analysenprogramm!AC103 ->  | Q102: =Stammdaten_Analysenprogramm!AD103 -> 0 | R102: =Stammdaten_Analysenprogramm!AB103 ->  | S102: =Stammdaten_Analysenprogramm!V103 -> k.A. | Y102: 0
A103: =IF(Stammdaten_Analysenprogramm!AG104>0,Stammdaten_Analysenprogramm!A104,"") ->  | B103: =IF(Stammdaten_Analysenprogramm!AG104>0,Stammdaten_Analysenprogramm!C104,"") ->  | P103: =Stammdaten_Analysenprogramm!AC104 ->  | Q103: =Stammdaten_Analysenprogramm!AD104 -> 0 | R103: =Stammdaten_Analysenprogramm!AB104 ->  | S103: =Stammdaten_Analysenprogramm!V104 -> k.A. | Y103: 0
A104: =IF(Stammdaten_Analysenprogramm!AG105>0,Stammdaten_Analysenprogramm!A105,"") ->  | B104: =IF(Stammdaten_Analysenprogramm!AG105>0,Stammdaten_Analysenprogramm!C105,"") ->  | P104: =Stammdaten_Analysenprogramm!AC105 ->  | Q104: =Stammdaten_Analysenprogramm!AD105 -> 0 | R104: =Stammdaten_Analysenprogramm!AB105 ->  | S104: =Stammdaten_Analysenprogramm!V105 -> k.A. | Y104: 0
A105: =IF(Stammdaten_Analysenprogramm!AG106>0,Stammdaten_Analysenprogramm!A106,"") ->  | B105: =IF(Stammdaten_Analysenprogramm!AG106>0,Stammdaten_Analysenprogramm!C106,"") ->  | P105: =Stammdaten_Analysenprogramm!AC106 ->  | Q105: =Stammdaten_Analysenprogramm!AD106 -> 0 | R105: =Stammdaten_Analysenprogramm!AB106 ->  | S105: =Stammdaten_Analysenprogramm!V106 -> k.A. | Y105: 0
A106: =IF(Stammdaten_Analysenprogramm!AG107>0,Stammdaten_Analysenprogramm!A107,"") ->  | B106: =IF(Stammdaten_Analysenprogramm!AG107>0,Stammdaten_Analysenprogramm!C107,"") ->  | P106: =Stammdaten_Analysenprogramm!AC107 ->  | Q106: =Stammdaten_Analysenprogramm!AD107 -> 0 | R106: =Stammdaten_Analysenprogramm!AB107 ->  | S106: =Stammdaten_Analysenprogramm!V107 -> k.A. | Y106: 0
A107: =IF(Stammdaten_Analysenprogramm!AG108>0,Stammdaten_Analysenprogramm!A108,"") ->  | B107: =IF(Stammdaten_Analysenprogramm!AG108>0,Stammdaten_Analysenprogramm!C108,"") ->  | P107: =Stammdaten_Analysenprogramm!AC108 ->  | Q107: =Stammdaten_Analysenprogramm!AD108 -> 0 | R107: =Stammdaten_Analysenprogramm!AB108 ->  | S107: =Stammdaten_Analysenprogramm!V108 -> k.A. | Y107: 0
A108: =IF(Stammdaten_Analysenprogramm!AG109>0,Stammdaten_Analysenprogramm!A109,"") ->  | B108: =IF(Stammdaten_Analysenprogramm!AG109>0,Stammdaten_Analysenprogramm!C109,"") ->  | P108: =Stammdaten_Analysenprogramm!AC109 ->  | Q108: =Stammdaten_Analysenprogramm!AD109 -> 0 | R108: =Stammdaten_Analysenprogramm!AB109 ->  | S108: =Stammdaten_Analysenprogramm!V109 -> k.A. | Y108: 0
A109: =IF(Stammdaten_Analysenprogramm!AG110>0,Stammdaten_Analysenprogramm!A110,"") ->  | B109: =IF(Stammdaten_Analysenprogramm!AG110>0,Stammdaten_Analysenprogramm!C110,"") ->  | P109: =Stammdaten_Analysenprogramm!AC110 ->  | Q109: =Stammdaten_Analysenprogramm!AD110 -> 0 | R109: =Stammdaten_Analysenprogramm!AB110 ->  | S109: =Stammdaten_Analysenprogramm!V110 -> k.A. | Y109: 0
A110: =IF(Stammdaten_Analysenprogramm!AG111>0,Stammdaten_Analysenprogramm!A111,"") ->  | B110: =IF(Stammdaten_Analysenprogramm!AG111>0,Stammdaten_Analysenprogramm!C111,"") ->  | P110: =Stammdaten_Analysenprogramm!AC111 ->  | Q110: =Stammdaten_Analysenprogramm!AD111 -> 0 | R110: =Stammdaten_Analysenprogramm!AB111 ->  | S110: =Stammdaten_Analysenprogramm!V111 -> k.A. | Y110: 0
A111: =IF(Stammdaten_Analysenprogramm!AG112>0,Stammdaten_Analysenprogramm!A112,"") ->  | B111: =IF(Stammdaten_Analysenprogramm!AG112>0,Stammdaten_Analysenprogramm!C112,"") ->  | P111: =Stammdaten_Analysenprogramm!AC112 ->  | Q111: =Stammdaten_Analysenprogramm!AD112 -> 0 | R111: =Stammdaten_Analysenprogramm!AB112 ->  | S111: =Stammdaten_Analysenprogramm!V112 -> k.A. | Y111: 0
A112: =IF(Stammdaten_Analysenprogramm!AG113>0,Stammdaten_Analysenprogramm!A113,"") ->  | B112: =IF(Stammdaten_Analysenprogramm!AG113>0,Stammdaten_Analysenprogramm!C113,"") ->  | P112: =Stammdaten_Analysenprogramm!AC113 ->  | Q112: =Stammdaten_Analysenprogramm!AD113 -> 0 | R112: =Stammdaten_Analysenprogramm!AB113 ->  | S112: =Stammdaten_Analysenprogramm!V113 -> k.A. | Y112: 0
A113: =IF(Stammdaten_Analysenprogramm!AG114>0,Stammdaten_Analysenprogramm!A114,"") ->  | B113: =IF(Stammdaten_Analysenprogramm!AG114>0,Stammdaten_Analysenprogramm!C114,"") ->  | P113: =Stammdaten_Analysenprogramm!AC114 ->  | Q113: =Stammdaten_Analysenprogramm!AD114 -> 0 | R113: =Stammdaten_Analysenprogramm!AB114 ->  | S113: =Stammdaten_Analysenprogramm!V114 -> k.A. | Y113: 0
A114: =IF(Stammdaten_Analysenprogramm!AG115>0,Stammdaten_Analysenprogramm!A115,"") ->  | B114: =IF(Stammdaten_Analysenprogramm!AG115>0,Stammdaten_Analysenprogramm!C115,"") ->  | P114: =Stammdaten_Analysenprogramm!AC115 ->  | Q114: =Stammdaten_Analysenprogramm!AD115 -> 0 | R114: =Stammdaten_Analysenprogramm!AB115 ->  | S114: =Stammdaten_Analysenprogramm!V115 -> k.A. | Y114: 0
A115: =IF(Stammdaten_Analysenprogramm!AG116>0,Stammdaten_Analysenprogramm!A116,"") ->  | B115: =IF(Stammdaten_Analysenprogramm!AG116>0,Stammdaten_Analysenprogramm!C116,"") ->  | P115: =Stammdaten_Analysenprogramm!AC116 ->  | Q115: =Stammdaten_Analysenprogramm!AD116 -> 0 | R115: =Stammdaten_Analysenprogramm!AB116 ->  | S115: =Stammdaten_Analysenprogramm!V116 -> k.A. | Y115: 0
A116: =IF(Stammdaten_Analysenprogramm!AG117>0,Stammdaten_Analysenprogramm!A117,"") ->  | B116: =IF(Stammdaten_Analysenprogramm!AG117>0,Stammdaten_Analysenprogramm!C117,"") ->  | P116: =Stammdaten_Analysenprogramm!AC117 ->  | Q116: =Stammdaten_Analysenprogramm!AD117 -> 0 | R116: =Stammdaten_Analysenprogramm!AB117 ->  | S116: =Stammdaten_Analysenprogramm!V117 -> k.A. | Y116: 0
A117: =IF(Stammdaten_Analysenprogramm!AG118>0,Stammdaten_Analysenprogramm!A118,"") ->  | B117: =IF(Stammdaten_Analysenprogramm!AG118>0,Stammdaten_Analysenprogramm!C118,"") ->  | P117: =Stammdaten_Analysenprogramm!AC118 ->  | Q117: =Stammdaten_Analysenprogramm!AD118 -> 0 | R117: =Stammdaten_Analysenprogramm!AB118 ->  | S117: =Stammdaten_Analysenprogramm!V118 -> k.A. | Y117: 0
A118: =IF(Stammdaten_Analysenprogramm!AG119>0,Stammdaten_Analysenprogramm!A119,"") ->  | B118: =IF(Stammdaten_Analysenprogramm!AG119>0,Stammdaten_Analysenprogramm!C119,"") ->  | P118: =Stammdaten_Analysenprogramm!AC119 ->  | Q118: =Stammdaten_Analysenprogramm!AD119 -> 0 | R118: =Stammdaten_Analysenprogramm!AB119 ->  | S118: =Stammdaten_Analysenprogramm!V119 -> k.A. | Y118: 0
A119: =IF(Stammdaten_Analysenprogramm!AG120>0,Stammdaten_Analysenprogramm!A120,"") ->  | B119: =IF(Stammdaten_Analysenprogramm!AG120>0,Stammdaten_Analysenprogramm!C120,"") ->  | P119: =Stammdaten_Analysenprogramm!AC120 ->  | Q119: =Stammdaten_Analysenprogramm!AD120 -> 0 | R119: =Stammdaten_Analysenprogramm!AB120 ->  | S119: =Stammdaten_Analysenprogramm!V120 -> k.A. | Y119: 0
A120: =IF(Stammdaten_Analysenprogramm!AG121>0,Stammdaten_Analysenprogramm!A121,"") ->  | B120: =IF(Stammdaten_Analysenprogramm!AG121>0,Stammdaten_Analysenprogramm!C121,"") ->  | P120: =Stammdaten_Analysenprogramm!AC121 ->  | Q120: =Stammdaten_Analysenprogramm!AD121 -> 0 | R120: =Stammdaten_Analysenprogramm!AB121 ->  | S120: =Stammdaten_Analysenprogramm!V121 -> k.A. | Y120: 0
A121: =IF(Stammdaten_Analysenprogramm!AG122>0,Stammdaten_Analysenprogramm!A122,"") ->  | B121: =IF(Stammdaten_Analysenprogramm!AG122>0,Stammdaten_Analysenprogramm!C122,"") ->  | P121: =Stammdaten_Analysenprogramm!AC122 ->  | Q121: =Stammdaten_Analysenprogramm!AD122 -> 0 | R121: =Stammdaten_Analysenprogramm!AB122 ->  | S121: =Stammdaten_Analysenprogramm!V122 -> k.A. | Y121: 0
A122: =IF(Stammdaten_Analysenprogramm!AG123>0,Stammdaten_Analysenprogramm!A123,"") ->  | B122: =IF(Stammdaten_Analysenprogramm!AG123>0,Stammdaten_Analysenprogramm!C123,"") ->  | P122: =Stammdaten_Analysenprogramm!AC123 ->  | Q122: =Stammdaten_Analysenprogramm!AD123 -> 0 | R122: =Stammdaten_Analysenprogramm!AB123 ->  | S122: =Stammdaten_Analysenprogramm!V123 -> k.A. | Y122: 0
A123: =IF(Stammdaten_Analysenprogramm!AG124>0,Stammdaten_Analysenprogramm!A124,"") ->  | B123: =IF(Stammdaten_Analysenprogramm!AG124>0,Stammdaten_Analysenprogramm!C124,"") ->  | P123: =Stammdaten_Analysenprogramm!AC124 ->  | Q123: =Stammdaten_Analysenprogramm!AD124 -> 0 | R123: =Stammdaten_Analysenprogramm!AB124 ->  | S123: =Stammdaten_Analysenprogramm!V124 -> k.A. | Y123: 0
A124: =IF(Stammdaten_Analysenprogramm!AG125>0,Stammdaten_Analysenprogramm!A125,"") ->  | B124: =IF(Stammdaten_Analysenprogramm!AG125>0,Stammdaten_Analysenprogramm!C125,"") ->  | P124: =Stammdaten_Analysenprogramm!AC125 ->  | Q124: =Stammdaten_Analysenprogramm!AD125 -> 0 | R124: =Stammdaten_Analysenprogramm!AB125 ->  | S124: =Stammdaten_Analysenprogramm!V125 -> k.A. | Y124: 0
A125: =IF(Stammdaten_Analysenprogramm!AG126>0,Stammdaten_Analysenprogramm!A126,"") ->  | B125: =IF(Stammdaten_Analysenprogramm!AG126>0,Stammdaten_Analysenprogramm!C126,"") ->  | P125: =Stammdaten_Analysenprogramm!AC126 ->  | Q125: =Stammdaten_Analysenprogramm!AD126 -> 0 | R125: =Stammdaten_Analysenprogramm!AB126 ->  | S125: =Stammdaten_Analysenprogramm!V126 -> k.A. | Y125: 0
A126: =IF(Stammdaten_Analysenprogramm!AG127>0,Stammdaten_Analysenprogramm!A127,"") ->  | B126: =IF(Stammdaten_Analysenprogramm!AG127>0,Stammdaten_Analysenprogramm!C127,"") ->  | P126: =Stammdaten_Analysenprogramm!AC127 ->  | Q126: =Stammdaten_Analysenprogramm!AD127 -> 0 | R126: =Stammdaten_Analysenprogramm!AB127 ->  | S126: =Stammdaten_Analysenprogramm!V127 -> k.A. | Y126: 0
A127: =IF(Stammdaten_Analysenprogramm!AG128>0,Stammdaten_Analysenprogramm!A128,"") ->  | B127: =IF(Stammdaten_Analysenprogramm!AG128>0,Stammdaten_Analysenprogramm!C128,"") ->  | P127: =Stammdaten_Analysenprogramm!AC128 ->  | Q127: =Stammdaten_Analysenprogramm!AD128 -> 0 | R127: =Stammdaten_Analysenprogramm!AB128 ->  | S127: =Stammdaten_Analysenprogramm!V128 -> k.A. | Y127: 0
A128: =IF(Stammdaten_Analysenprogramm!AG129>0,Stammdaten_Analysenprogramm!A129,"") ->  | B128: =IF(Stammdaten_Analysenprogramm!AG129>0,Stammdaten_Analysenprogramm!C129,"") ->  | P128: =Stammdaten_Analysenprogramm!AC129 ->  | Q128: =Stammdaten_Analysenprogramm!AD129 -> 0 | R128: =Stammdaten_Analysenprogramm!AB129 ->  | S128: =Stammdaten_Analysenprogramm!V129 -> k.A. | Y128: 0
A129: =IF(Stammdaten_Analysenprogramm!AG130>0,Stammdaten_Analysenprogramm!A130,"") ->  | B129: =IF(Stammdaten_Analysenprogramm!AG130>0,Stammdaten_Analysenprogramm!C130,"") ->  | P129: =Stammdaten_Analysenprogramm!AC130 ->  | Q129: =Stammdaten_Analysenprogramm!AD130 -> 0 | R129: =Stammdaten_Analysenprogramm!AB130 ->  | S129: =Stammdaten_Analysenprogramm!V130 -> k.A. | Y129: 0
A130: =IF(Stammdaten_Analysenprogramm!AG131>0,Stammdaten_Analysenprogramm!A131,"") ->  | B130: =IF(Stammdaten_Analysenprogramm!AG131>0,Stammdaten_Analysenprogramm!C131,"") ->  | P130: =Stammdaten_Analysenprogramm!AC131 ->  | Q130: =Stammdaten_Analysenprogramm!AD131 -> 0 | R130: =Stammdaten_Analysenprogramm!AB131 ->  | S130: =Stammdaten_Analysenprogramm!V131 -> k.A. | Y130: 0
A131: =IF(Stammdaten_Analysenprogramm!AG132>0,Stammdaten_Analysenprogramm!A132,"") ->  | B131: =IF(Stammdaten_Analysenprogramm!AG132>0,Stammdaten_Analysenprogramm!C132,"") ->  | P131: =Stammdaten_Analysenprogramm!AC132 ->  | Q131: =Stammdaten_Analysenprogramm!AD132 -> 0 | R131: =Stammdaten_Analysenprogramm!AB132 ->  | S131: =Stammdaten_Analysenprogramm!V132 -> k.A. | Y131: 0
A132: =IF(Stammdaten_Analysenprogramm!AG133>0,Stammdaten_Analysenprogramm!A133,"") ->  | B132: =IF(Stammdaten_Analysenprogramm!AG133>0,Stammdaten_Analysenprogramm!C133,"") ->  | P132: =Stammdaten_Analysenprogramm!AC133 ->  | Q132: =Stammdaten_Analysenprogramm!AD133 -> 0 | R132: =Stammdaten_Analysenprogramm!AB133 ->  | S132: =Stammdaten_Analysenprogramm!V133 -> k.A. | Y132: 0
A133: =IF(Stammdaten_Analysenprogramm!AG134>0,Stammdaten_Analysenprogramm!A134,"") ->  | B133: =IF(Stammdaten_Analysenprogramm!AG134>0,Stammdaten_Analysenprogramm!C134,"") ->  | P133: =Stammdaten_Analysenprogramm!AC134 ->  | Q133: =Stammdaten_Analysenprogramm!AD134 -> 0 | R133: =Stammdaten_Analysenprogramm!AB134 ->  | S133: =Stammdaten_Analysenprogramm!V134 -> k.A. | Y133: 0
A134: =IF(Stammdaten_Analysenprogramm!AG135>0,Stammdaten_Analysenprogramm!A135,"") ->  | B134: =IF(Stammdaten_Analysenprogramm!AG135>0,Stammdaten_Analysenprogramm!C135,"") ->  | P134: =Stammdaten_Analysenprogramm!AC135 ->  | Q134: =Stammdaten_Analysenprogramm!AD135 -> 0 | R134: =Stammdaten_Analysenprogramm!AB135 ->  | S134: =Stammdaten_Analysenprogramm!V135 -> k.A. | X134: =T134-P134 ->  | Y134: =Q134-U134 -> 0 | Z134: =V134-R134 ->  | AA134: =W134-S134 -> 
A135: =IF(Stammdaten_Analysenprogramm!AG136>0,Stammdaten_Analysenprogramm!A136,"") ->  | B135: =IF(Stammdaten_Analysenprogramm!AG136>0,Stammdaten_Analysenprogramm!C136,"") ->  | C135: =A135 ->  | P135: =Stammdaten_Analysenprogramm!AC136 ->  | Q135: =Stammdaten_Analysenprogramm!AD136 -> 0 | R135: =Stammdaten_Analysenprogramm!AB136 ->  | S135: =Stammdaten_Analysenprogramm!V136 -> k.A. | Y135: 0
A136: =IF(Stammdaten_Analysenprogramm!AG137>0,Stammdaten_Analysenprogramm!A137,"") ->  | B136: =IF(Stammdaten_Analysenprogramm!AG137>0,Stammdaten_Analysenprogramm!C137,"") ->  | P136: =Stammdaten_Analysenprogramm!AC137 ->  | Q136: =Stammdaten_Analysenprogramm!AD137 -> 0 | R136: =Stammdaten_Analysenprogramm!AB137 ->  | S136: =Stammdaten_Analysenprogramm!V137 -> k.A. | Y136: 0
A137: =IF(Stammdaten_Analysenprogramm!AG138>0,Stammdaten_Analysenprogramm!A138,"") ->  | B137: =IF(Stammdaten_Analysenprogramm!AG138>0,Stammdaten_Analysenprogramm!C138,"") ->  | P137: =Stammdaten_Analysenprogramm!AC138 ->  | Q137: =Stammdaten_Analysenprogramm!AD138 -> 0 | R137: =Stammdaten_Analysenprogramm!AB138 ->  | S137: =Stammdaten_Analysenprogramm!V138 -> k.A. | Y137: 0
A138: =IF(Stammdaten_Analysenprogramm!AG139>0,Stammdaten_Analysenprogramm!A139,"") ->  | B138: =IF(Stammdaten_Analysenprogramm!AG139>0,Stammdaten_Analysenprogramm!C139,"") ->  | P138: =Stammdaten_Analysenprogramm!AC139 ->  | Q138: =Stammdaten_Analysenprogramm!AD139 -> 0 | R138: =Stammdaten_Analysenprogramm!AB139 ->  | S138: =Stammdaten_Analysenprogramm!V139 -> k.A. | Y138: 0
A139: =IF(Stammdaten_Analysenprogramm!AG140>0,Stammdaten_Analysenprogramm!A140,"") ->  | B139: =IF(Stammdaten_Analysenprogramm!AG140>0,Stammdaten_Analysenprogramm!C140,"") ->  | P139: =Stammdaten_Analysenprogramm!AC140 ->  | Q139: =Stammdaten_Analysenprogramm!AD140 -> 0 | R139: =Stammdaten_Analysenprogramm!AB140 ->  | S139: =Stammdaten_Analysenprogramm!V140 -> k.A. | Y139: 0
A140: =IF(Stammdaten_Analysenprogramm!AG141>0,Stammdaten_Analysenprogramm!A141,"") ->  | B140: =IF(Stammdaten_Analysenprogramm!AG141>0,Stammdaten_Analysenprogramm!C141,"") ->  | P140: =Stammdaten_Analysenprogramm!AC141 ->  | Q140: =Stammdaten_Analysenprogramm!AD141 -> 0 | R140: =Stammdaten_Analysenprogramm!AB141 ->  | S140: =Stammdaten_Analysenprogramm!V141 -> k.A. | Y140: 0
A141: =IF(Stammdaten_Analysenprogramm!AG142>0,Stammdaten_Analysenprogramm!A142,"") ->  | B141: =IF(Stammdaten_Analysenprogramm!AG142>0,Stammdaten_Analysenprogramm!C142,"") ->  | P141: =Stammdaten_Analysenprogramm!AC142 ->  | Q141: =Stammdaten_Analysenprogramm!AD142 -> 0 | R141: =Stammdaten_Analysenprogramm!AB142 ->  | S141: =Stammdaten_Analysenprogramm!V142 -> k.A. | Y141: 0
A142: =IF(Stammdaten_Analysenprogramm!AG143>0,Stammdaten_Analysenprogramm!A143,"") ->  | B142: =IF(Stammdaten_Analysenprogramm!AG143>0,Stammdaten_Analysenprogramm!C143,"") ->  | P142: =Stammdaten_Analysenprogramm!AC143 ->  | Q142: =Stammdaten_Analysenprogramm!AD143 -> 0 | R142: =Stammdaten_Analysenprogramm!AB143 ->  | S142: =Stammdaten_Analysenprogramm!V143 -> k.A. | Y142: 0
A143: =IF(Stammdaten_Analysenprogramm!AG144>0,Stammdaten_Analysenprogramm!A144,"") ->  | B143: =IF(Stammdaten_Analysenprogramm!AG144>0,Stammdaten_Analysenprogramm!C144,"") ->  | P143: =Stammdaten_Analysenprogramm!AC144 ->  | Q143: =Stammdaten_Analysenprogramm!AD144 -> 0 | R143: =Stammdaten_Analysenprogramm!AB144 ->  | S143: =Stammdaten_Analysenprogramm!V144 -> k.A. | Y143: 0
A144: =IF(Stammdaten_Analysenprogramm!AG145>0,Stammdaten_Analysenprogramm!A145,"") ->  | B144: =IF(Stammdaten_Analysenprogramm!AG145>0,Stammdaten_Analysenprogramm!C145,"") ->  | P144: =Stammdaten_Analysenprogramm!AC145 ->  | Q144: =Stammdaten_Analysenprogramm!AD145 -> 0 | R144: =Stammdaten_Analysenprogramm!AB145 ->  | S144: =Stammdaten_Analysenprogramm!V145 -> k.A. | Y144: 0
A145: =IF(Stammdaten_Analysenprogramm!AG146>0,Stammdaten_Analysenprogramm!A146,"") ->  | B145: =IF(Stammdaten_Analysenprogramm!AG146>0,Stammdaten_Analysenprogramm!C146,"") ->  | P145: =Stammdaten_Analysenprogramm!AC146 ->  | Q145: =Stammdaten_Analysenprogramm!AD146 -> 0 | R145: =Stammdaten_Analysenprogramm!AB146 ->  | S145: =Stammdaten_Analysenprogramm!V146 -> k.A. | Y145: 0
A146: =IF(Stammdaten_Analysenprogramm!AG147>0,Stammdaten_Analysenprogramm!A147,"") ->  | B146: =IF(Stammdaten_Analysenprogramm!AG147>0,Stammdaten_Analysenprogramm!C147,"") ->  | P146: =Stammdaten_Analysenprogramm!AC147 ->  | Q146: =Stammdaten_Analysenprogramm!AD147 -> 0 | R146: =Stammdaten_Analysenprogramm!AB147 ->  | S146: =Stammdaten_Analysenprogramm!V147 -> k.A. | Y146: 0
A147: =IF(Stammdaten_Analysenprogramm!AG148>0,Stammdaten_Analysenprogramm!A148,"") ->  | B147: =IF(Stammdaten_Analysenprogramm!AG148>0,Stammdaten_Analysenprogramm!C148,"") ->  | P147: =Stammdaten_Analysenprogramm!AC148 ->  | Q147: =Stammdaten_Analysenprogramm!AD148 -> 0 | R147: =Stammdaten_Analysenprogramm!AB148 ->  | S147: =Stammdaten_Analysenprogramm!V148 -> k.A. | Y147: 0
A148: =IF(Stammdaten_Analysenprogramm!AG149>0,Stammdaten_Analysenprogramm!A149,"") ->  | B148: =IF(Stammdaten_Analysenprogramm!AG149>0,Stammdaten_Analysenprogramm!C149,"") ->  | P148: =Stammdaten_Analysenprogramm!AC149 ->  | Q148: =Stammdaten_Analysenprogramm!AD149 -> 0 | R148: =Stammdaten_Analysenprogramm!AB149 ->  | S148: =Stammdaten_Analysenprogramm!V149 -> k.A. | Y148: 0
A149: =IF(Stammdaten_Analysenprogramm!AG150>0,Stammdaten_Analysenprogramm!A150,"") ->  | B149: =IF(Stammdaten_Analysenprogramm!AG150>0,Stammdaten_Analysenprogramm!C150,"") ->  | P149: =Stammdaten_Analysenprogramm!AC150 ->  | Q149: =Stammdaten_Analysenprogramm!AD150 -> 0 | R149: =Stammdaten_Analysenprogramm!AB150 ->  | S149: =Stammdaten_Analysenprogramm!V150 -> k.A. | Y149: 0
A150: =IF(Stammdaten_Analysenprogramm!AG151>0,Stammdaten_Analysenprogramm!A151,"") ->  | B150: =IF(Stammdaten_Analysenprogramm!AG151>0,Stammdaten_Analysenprogramm!C151,"") ->  | P150: =Stammdaten_Analysenprogramm!AC151 ->  | Q150: =Stammdaten_Analysenprogramm!AD151 -> 0 | R150: =Stammdaten_Analysenprogramm!AB151 ->  | S150: =Stammdaten_Analysenprogramm!V151 -> k.A. | Y150: 0
A151: =IF(Stammdaten_Analysenprogramm!AG152>0,Stammdaten_Analysenprogramm!A152,"") ->  | B151: =IF(Stammdaten_Analysenprogramm!AG152>0,Stammdaten_Analysenprogramm!C152,"") ->  | P151: =Stammdaten_Analysenprogramm!AC152 ->  | Q151: =Stammdaten_Analysenprogramm!AD152 -> 0 | R151: =Stammdaten_Analysenprogramm!AB152 ->  | S151: =Stammdaten_Analysenprogramm!V152 -> k.A. | Y151: 0
A152: =IF(Stammdaten_Analysenprogramm!AG153>0,Stammdaten_Analysenprogramm!A153,"") ->  | B152: =IF(Stammdaten_Analysenprogramm!AG153>0,Stammdaten_Analysenprogramm!C153,"") ->  | P152: =Stammdaten_Analysenprogramm!AC153 ->  | Q152: =Stammdaten_Analysenprogramm!AD153 -> 0 | R152: =Stammdaten_Analysenprogramm!AB153 ->  | S152: =Stammdaten_Analysenprogramm!V153 -> k.A. | Y152: 0
A153: =IF(Stammdaten_Analysenprogramm!AG154>0,Stammdaten_Analysenprogramm!A154,"") ->  | B153: =IF(Stammdaten_Analysenprogramm!AG154>0,Stammdaten_Analysenprogramm!C154,"") ->  | P153: =Stammdaten_Analysenprogramm!AC154 ->  | Q153: =Stammdaten_Analysenprogramm!AD154 -> 0 | R153: =Stammdaten_Analysenprogramm!AB154 ->  | S153: =Stammdaten_Analysenprogramm!V154 -> k.A. | Y153: 0
A154: =IF(Stammdaten_Analysenprogramm!AG155>0,Stammdaten_Analysenprogramm!A155,"") ->  | B154: =IF(Stammdaten_Analysenprogramm!AG155>0,Stammdaten_Analysenprogramm!C155,"") ->  | P154: =Stammdaten_Analysenprogramm!AC155 ->  | Q154: =Stammdaten_Analysenprogramm!AD155 -> 0 | R154: =Stammdaten_Analysenprogramm!AB155 ->  | S154: =Stammdaten_Analysenprogramm!V155 -> k.A. | Y154: 0
A155: =IF(Stammdaten_Analysenprogramm!AG156>0,Stammdaten_Analysenprogramm!A156,"") ->  | B155: =IF(Stammdaten_Analysenprogramm!AG156>0,Stammdaten_Analysenprogramm!C156,"") ->  | P155: =Stammdaten_Analysenprogramm!AC156 ->  | Q155: =Stammdaten_Analysenprogramm!AD156 -> 0 | R155: =Stammdaten_Analysenprogramm!AB156 ->  | S155: =Stammdaten_Analysenprogramm!V156 -> k.A. | Y155: 0
A156: =IF(Stammdaten_Analysenprogramm!AG157>0,Stammdaten_Analysenprogramm!A157,"") ->  | B156: =IF(Stammdaten_Analysenprogramm!AG157>0,Stammdaten_Analysenprogramm!C157,"") ->  | P156: =Stammdaten_Analysenprogramm!AC157 ->  | Q156: =Stammdaten_Analysenprogramm!AD157 -> 0 | R156: =Stammdaten_Analysenprogramm!AB157 ->  | S156: =Stammdaten_Analysenprogramm!V157 -> k.A. | Y156: 0
A157: =IF(Stammdaten_Analysenprogramm!AG158>0,Stammdaten_Analysenprogramm!A158,"") ->  | B157: =IF(Stammdaten_Analysenprogramm!AG158>0,Stammdaten_Analysenprogramm!C158,"") ->  | P157: =Stammdaten_Analysenprogramm!AC158 ->  | Q157: =Stammdaten_Analysenprogramm!AD158 -> 0 | R157: =Stammdaten_Analysenprogramm!AB158 ->  | S157: =Stammdaten_Analysenprogramm!V158 -> k.A. | Y157: 0
A158: =IF(Stammdaten_Analysenprogramm!AG159>0,Stammdaten_Analysenprogramm!A159,"") ->  | B158: =IF(Stammdaten_Analysenprogramm!AG159>0,Stammdaten_Analysenprogramm!C159,"") ->  | P158: =Stammdaten_Analysenprogramm!AC159 ->  | Q158: =Stammdaten_Analysenprogramm!AD159 -> 0 | R158: =Stammdaten_Analysenprogramm!AB159 ->  | S158: =Stammdaten_Analysenprogramm!V159 -> k.A. | Y158: 0
A159: =IF(Stammdaten_Analysenprogramm!AG160>0,Stammdaten_Analysenprogramm!A160,"") ->  | B159: =IF(Stammdaten_Analysenprogramm!AG160>0,Stammdaten_Analysenprogramm!C160,"") ->  | P159: =Stammdaten_Analysenprogramm!AC160 ->  | Q159: =Stammdaten_Analysenprogramm!AD160 -> 0 | R159: =Stammdaten_Analysenprogramm!AB160 ->  | S159: =Stammdaten_Analysenprogramm!V160 -> k.A. | Y159: 0
A160: =IF(Stammdaten_Analysenprogramm!AG161>0,Stammdaten_Analysenprogramm!A161,"") ->  | B160: =IF(Stammdaten_Analysenprogramm!AG161>0,Stammdaten_Analysenprogramm!C161,"") ->  | P160: =Stammdaten_Analysenprogramm!AC161 ->  | Q160: =Stammdaten_Analysenprogramm!AD161 -> 0 | R160: =Stammdaten_Analysenprogramm!AB161 ->  | S160: =Stammdaten_Analysenprogramm!V161 -> k.A. | Y160: 0
A161: =IF(Stammdaten_Analysenprogramm!AG162>0,Stammdaten_Analysenprogramm!A162,"") ->  | B161: =IF(Stammdaten_Analysenprogramm!AG162>0,Stammdaten_Analysenprogramm!C162,"") ->  | P161: =Stammdaten_Analysenprogramm!AC162 ->  | Q161: =Stammdaten_Analysenprogramm!AD162 -> 0 | R161: =Stammdaten_Analysenprogramm!AB162 ->  | S161: =Stammdaten_Analysenprogramm!V162 -> k.A. | Y161: 0
A162: =IF(Stammdaten_Analysenprogramm!AG163>0,Stammdaten_Analysenprogramm!A163,"") ->  | B162: =IF(Stammdaten_Analysenprogramm!AG163>0,Stammdaten_Analysenprogramm!C163,"") ->  | P162: =Stammdaten_Analysenprogramm!AC163 ->  | Q162: =Stammdaten_Analysenprogramm!AD163 -> 0 | R162: =Stammdaten_Analysenprogramm!AB163 ->  | S162: =Stammdaten_Analysenprogramm!V163 -> k.A. | Y162: 0
A163: =IF(Stammdaten_Analysenprogramm!AG164>0,Stammdaten_Analysenprogramm!A164,"") ->  | B163: =IF(Stammdaten_Analysenprogramm!AG164>0,Stammdaten_Analysenprogramm!C164,"") ->  | P163: =Stammdaten_Analysenprogramm!AC164 ->  | Q163: =Stammdaten_Analysenprogramm!AD164 -> 0 | R163: =Stammdaten_Analysenprogramm!AB164 ->  | S163: =Stammdaten_Analysenprogramm!V164 -> k.A. | Y163: 0
A164: =IF(Stammdaten_Analysenprogramm!AG165>0,Stammdaten_Analysenprogramm!A165,"") ->  | B164: =IF(Stammdaten_Analysenprogramm!AG165>0,Stammdaten_Analysenprogramm!C165,"") ->  | P164: =Stammdaten_Analysenprogramm!AC165 ->  | Q164: =Stammdaten_Analysenprogramm!AD165 -> 0 | R164: =Stammdaten_Analysenprogramm!AB165 ->  | S164: =Stammdaten_Analysenprogramm!V165 -> k.A. | Y164: 0
A165: =IF(Stammdaten_Analysenprogramm!AG166>0,Stammdaten_Analysenprogramm!A166,"") ->  | B165: =IF(Stammdaten_Analysenprogramm!AG166>0,Stammdaten_Analysenprogramm!C166,"") ->  | P165: =Stammdaten_Analysenprogramm!AC166 ->  | Q165: =Stammdaten_Analysenprogramm!AD166 -> 0 | R165: =Stammdaten_Analysenprogramm!AB166 ->  | S165: =Stammdaten_Analysenprogramm!V166 -> k.A. | Y165: 0
A166: =IF(Stammdaten_Analysenprogramm!AG167>0,Stammdaten_Analysenprogramm!A167,"") ->  | B166: =IF(Stammdaten_Analysenprogramm!AG167>0,Stammdaten_Analysenprogramm!C167,"") ->  | P166: =Stammdaten_Analysenprogramm!AC167 ->  | Q166: =Stammdaten_Analysenprogramm!AD167 -> 0 | R166: =Stammdaten_Analysenprogramm!AB167 ->  | S166: =Stammdaten_Analysenprogramm!V167 -> k.A. | Y166: 0
A167: =IF(Stammdaten_Analysenprogramm!AG168>0,Stammdaten_Analysenprogramm!A168,"") ->  | B167: =IF(Stammdaten_Analysenprogramm!AG168>0,Stammdaten_Analysenprogramm!C168,"") ->  | P167: =Stammdaten_Analysenprogramm!AC168 ->  | Q167: =Stammdaten_Analysenprogramm!AD168 -> 0 | R167: =Stammdaten_Analysenprogramm!AB168 ->  | S167: =Stammdaten_Analysenprogramm!V168 -> k.A. | Y167: 0
A168: =IF(Stammdaten_Analysenprogramm!AG169>0,Stammdaten_Analysenprogramm!A169,"") ->  | B168: =IF(Stammdaten_Analysenprogramm!AG169>0,Stammdaten_Analysenprogramm!C169,"") ->  | P168: =Stammdaten_Analysenprogramm!AC169 ->  | Q168: =Stammdaten_Analysenprogramm!AD169 -> 0 | R168: =Stammdaten_Analysenprogramm!AB169 ->  | S168: =Stammdaten_Analysenprogramm!V169 -> k.A. | Y168: 0
A169: =IF(Stammdaten_Analysenprogramm!AG170>0,Stammdaten_Analysenprogramm!A170,"") ->  | B169: =IF(Stammdaten_Analysenprogramm!AG170>0,Stammdaten_Analysenprogramm!C170,"") ->  | P169: =Stammdaten_Analysenprogramm!AC170 ->  | Q169: =Stammdaten_Analysenprogramm!AD170 -> 0 | R169: =Stammdaten_Analysenprogramm!AB170 ->  | S169: =Stammdaten_Analysenprogramm!V170 -> k.A. | Y169: 0
A170: =IF(Stammdaten_Analysenprogramm!AG171>0,Stammdaten_Analysenprogramm!A171,"") ->  | B170: =IF(Stammdaten_Analysenprogramm!AG171>0,Stammdaten_Analysenprogramm!C171,"") ->  | P170: =Stammdaten_Analysenprogramm!AC171 ->  | Q170: =Stammdaten_Analysenprogramm!AD171 -> 0 | R170: =Stammdaten_Analysenprogramm!AB171 ->  | S170: =Stammdaten_Analysenprogramm!V171 -> k.A. | Y170: 0
A171: =IF(Stammdaten_Analysenprogramm!AG172>0,Stammdaten_Analysenprogramm!A172,"") ->  | B171: =IF(Stammdaten_Analysenprogramm!AG172>0,Stammdaten_Analysenprogramm!C172,"") ->  | P171: =Stammdaten_Analysenprogramm!AC172 ->  | Q171: =Stammdaten_Analysenprogramm!AD172 -> 0 | R171: =Stammdaten_Analysenprogramm!AB172 ->  | S171: =Stammdaten_Analysenprogramm!V172 -> k.A. | Y171: 0
A172: =IF(Stammdaten_Analysenprogramm!AG173>0,Stammdaten_Analysenprogramm!A173,"") ->  | B172: =IF(Stammdaten_Analysenprogramm!AG173>0,Stammdaten_Analysenprogramm!C173,"") ->  | P172: =Stammdaten_Analysenprogramm!AC173 ->  | Q172: =Stammdaten_Analysenprogramm!AD173 -> 0 | R172: =Stammdaten_Analysenprogramm!AB173 ->  | S172: =Stammdaten_Analysenprogramm!V173 -> k.A. | Y172: 0
A173: =IF(Stammdaten_Analysenprogramm!AG174>0,Stammdaten_Analysenprogramm!A174,"") ->  | B173: =IF(Stammdaten_Analysenprogramm!AG174>0,Stammdaten_Analysenprogramm!C174,"") ->  | P173: =Stammdaten_Analysenprogramm!AC174 ->  | Q173: =Stammdaten_Analysenprogramm!AD174 -> 0 | R173: =Stammdaten_Analysenprogramm!AB174 ->  | S173: =Stammdaten_Analysenprogramm!V174 -> k.A. | Y173: 0
A174: =IF(Stammdaten_Analysenprogramm!AG175>0,Stammdaten_Analysenprogramm!A175,"") ->  | B174: =IF(Stammdaten_Analysenprogramm!AG175>0,Stammdaten_Analysenprogramm!C175,"") ->  | P174: =Stammdaten_Analysenprogramm!AC175 ->  | Q174: =Stammdaten_Analysenprogramm!AD175 -> 0 | R174: =Stammdaten_Analysenprogramm!AB175 ->  | S174: =Stammdaten_Analysenprogramm!V175 -> k.A. | Y174: 0
A175: =IF(Stammdaten_Analysenprogramm!AG176>0,Stammdaten_Analysenprogramm!A176,"") ->  | B175: =IF(Stammdaten_Analysenprogramm!AG176>0,Stammdaten_Analysenprogramm!C176,"") ->  | P175: =Stammdaten_Analysenprogramm!AC176 ->  | Q175: =Stammdaten_Analysenprogramm!AD176 -> 0 | R175: =Stammdaten_Analysenprogramm!AB176 ->  | S175: =Stammdaten_Analysenprogramm!V176 -> k.A. | Y175: 0
A176: =IF(Stammdaten_Analysenprogramm!AG177>0,Stammdaten_Analysenprogramm!A177,"") ->  | B176: =IF(Stammdaten_Analysenprogramm!AG177>0,Stammdaten_Analysenprogramm!C177,"") ->  | P176: =Stammdaten_Analysenprogramm!AC177 ->  | Q176: =Stammdaten_Analysenprogramm!AD177 -> 0 | R176: =Stammdaten_Analysenprogramm!AB177 ->  | S176: =Stammdaten_Analysenprogramm!V177 -> k.A. | Y176: 0
A177: =IF(Stammdaten_Analysenprogramm!AG178>0,Stammdaten_Analysenprogramm!A178,"") ->  | B177: =IF(Stammdaten_Analysenprogramm!AG178>0,Stammdaten_Analysenprogramm!C178,"") ->  | P177: =Stammdaten_Analysenprogramm!AC178 ->  | Q177: =Stammdaten_Analysenprogramm!AD178 -> 0 | R177: =Stammdaten_Analysenprogramm!AB178 ->  | S177: =Stammdaten_Analysenprogramm!V178 -> k.A. | Y177: 0
A178: =IF(Stammdaten_Analysenprogramm!AG179>0,Stammdaten_Analysenprogramm!A179,"") ->  | B178: =IF(Stammdaten_Analysenprogramm!AG179>0,Stammdaten_Analysenprogramm!C179,"") ->  | P178: =Stammdaten_Analysenprogramm!AC179 ->  | Q178: =Stammdaten_Analysenprogramm!AD179 -> 0 | R178: =Stammdaten_Analysenprogramm!AB179 ->  | S178: =Stammdaten_Analysenprogramm!V179 -> k.A. | Y178: 0
A179: =IF(Stammdaten_Analysenprogramm!AG180>0,Stammdaten_Analysenprogramm!A180,"") ->  | B179: =IF(Stammdaten_Analysenprogramm!AG180>0,Stammdaten_Analysenprogramm!C180,"") ->  | P179: =Stammdaten_Analysenprogramm!AC180 ->  | Q179: =Stammdaten_Analysenprogramm!AD180 -> 0 | R179: =Stammdaten_Analysenprogramm!AB180 ->  | S179: =Stammdaten_Analysenprogramm!V180 -> k.A. | Y179: 0
A180: =IF(Stammdaten_Analysenprogramm!AG181>0,Stammdaten_Analysenprogramm!A181,"") ->  | B180: =IF(Stammdaten_Analysenprogramm!AG181>0,Stammdaten_Analysenprogramm!C181,"") ->  | P180: =Stammdaten_Analysenprogramm!AC181 ->  | Q180: =Stammdaten_Analysenprogramm!AD181 -> 0 | R180: =Stammdaten_Analysenprogramm!AB181 ->  | S180: =Stammdaten_Analysenprogramm!V181 -> k.A. | Y180: 0
A181: =IF(Stammdaten_Analysenprogramm!AG182>0,Stammdaten_Analysenprogramm!A182,"") ->  | B181: =IF(Stammdaten_Analysenprogramm!AG182>0,Stammdaten_Analysenprogramm!C182,"") ->  | P181: =Stammdaten_Analysenprogramm!AC182 ->  | Q181: =Stammdaten_Analysenprogramm!AD182 -> 0 | R181: =Stammdaten_Analysenprogramm!AB182 ->  | S181: =Stammdaten_Analysenprogramm!V182 -> k.A. | Y181: 0
A182: =IF(Stammdaten_Analysenprogramm!AG183>0,Stammdaten_Analysenprogramm!A183,"") ->  | B182: =IF(Stammdaten_Analysenprogramm!AG183>0,Stammdaten_Analysenprogramm!C183,"") ->  | P182: =Stammdaten_Analysenprogramm!AC183 ->  | Q182: =Stammdaten_Analysenprogramm!AD183 -> 0 | R182: =Stammdaten_Analysenprogramm!AB183 ->  | S182: =Stammdaten_Analysenprogramm!V183 -> k.A. | Y182: 0
A183: =IF(Stammdaten_Analysenprogramm!AG184>0,Stammdaten_Analysenprogramm!A184,"") ->  | B183: =IF(Stammdaten_Analysenprogramm!AG184>0,Stammdaten_Analysenprogramm!C184,"") ->  | P183: =Stammdaten_Analysenprogramm!AC184 ->  | Q183: =Stammdaten_Analysenprogramm!AD184 -> 0 | R183: =Stammdaten_Analysenprogramm!AB184 ->  | S183: =Stammdaten_Analysenprogramm!V184 -> k.A. | Y183: 0
A184: =IF(Stammdaten_Analysenprogramm!AG185>0,Stammdaten_Analysenprogramm!A185,"") ->  | B184: =IF(Stammdaten_Analysenprogramm!AG185>0,Stammdaten_Analysenprogramm!C185,"") ->  | P184: =Stammdaten_Analysenprogramm!AC185 ->  | Q184: =Stammdaten_Analysenprogramm!AD185 -> 0 | R184: =Stammdaten_Analysenprogramm!AB185 ->  | S184: =Stammdaten_Analysenprogramm!V185 -> k.A. | Y184: 0
A185: =IF(Stammdaten_Analysenprogramm!AG186>0,Stammdaten_Analysenprogramm!A186,"") ->  | B185: =IF(Stammdaten_Analysenprogramm!AG186>0,Stammdaten_Analysenprogramm!C186,"") ->  | P185: =Stammdaten_Analysenprogramm!AC186 ->  | Q185: =Stammdaten_Analysenprogramm!AD186 -> 0 | R185: =Stammdaten_Analysenprogramm!AB186 ->  | S185: =Stammdaten_Analysenprogramm!V186 -> k.A. | Y185: 0
A186: =IF(Stammdaten_Analysenprogramm!AG187>0,Stammdaten_Analysenprogramm!A187,"") ->  | B186: =IF(Stammdaten_Analysenprogramm!AG187>0,Stammdaten_Analysenprogramm!C187,"") ->  | P186: =Stammdaten_Analysenprogramm!AC187 ->  | Q186: =Stammdaten_Analysenprogramm!AD187 -> 0 | R186: =Stammdaten_Analysenprogramm!AB187 ->  | S186: =Stammdaten_Analysenprogramm!V187 -> k.A. | Y186: 0
A187: =IF(Stammdaten_Analysenprogramm!AG188>0,Stammdaten_Analysenprogramm!A188,"") ->  | B187: =IF(Stammdaten_Analysenprogramm!AG188>0,Stammdaten_Analysenprogramm!C188,"") ->  | P187: =Stammdaten_Analysenprogramm!AC188 ->  | Q187: =Stammdaten_Analysenprogramm!AD188 -> 0 | R187: =Stammdaten_Analysenprogramm!AB188 ->  | S187: =Stammdaten_Analysenprogramm!V188 -> k.A. | Y187: 0
A188: =IF(Stammdaten_Analysenprogramm!AG189>0,Stammdaten_Analysenprogramm!A189,"") ->  | B188: =IF(Stammdaten_Analysenprogramm!AG189>0,Stammdaten_Analysenprogramm!C189,"") ->  | P188: =Stammdaten_Analysenprogramm!AC189 ->  | Q188: =Stammdaten_Analysenprogramm!AD189 -> 0 | R188: =Stammdaten_Analysenprogramm!AB189 ->  | S188: =Stammdaten_Analysenprogramm!V189 -> k.A. | Y188: 0
A189: =IF(Stammdaten_Analysenprogramm!AG190>0,Stammdaten_Analysenprogramm!A190,"") ->  | B189: =IF(Stammdaten_Analysenprogramm!AG190>0,Stammdaten_Analysenprogramm!C190,"") ->  | P189: =Stammdaten_Analysenprogramm!AC190 ->  | Q189: =Stammdaten_Analysenprogramm!AD190 -> 0 | R189: =Stammdaten_Analysenprogramm!AB190 ->  | S189: =Stammdaten_Analysenprogramm!V190 -> k.A. | Y189: 0
A190: =IF(Stammdaten_Analysenprogramm!AG191>0,Stammdaten_Analysenprogramm!A191,"") ->  | B190: =IF(Stammdaten_Analysenprogramm!AG191>0,Stammdaten_Analysenprogramm!C191,"") ->  | P190: =Stammdaten_Analysenprogramm!AC191 ->  | Q190: =Stammdaten_Analysenprogramm!AD191 -> 0 | R190: =Stammdaten_Analysenprogramm!AB191 ->  | S190: =Stammdaten_Analysenprogramm!V191 -> k.A. | Y190: 0
A191: =IF(Stammdaten_Analysenprogramm!AG192>0,Stammdaten_Analysenprogramm!A192,"") ->  | B191: =IF(Stammdaten_Analysenprogramm!AG192>0,Stammdaten_Analysenprogramm!C192,"") ->  | P191: =Stammdaten_Analysenprogramm!AC192 ->  | Q191: =Stammdaten_Analysenprogramm!AD192 -> 0 | R191: =Stammdaten_Analysenprogramm!AB192 ->  | S191: =Stammdaten_Analysenprogramm!V192 -> k.A. | Y191: 0
A192: =IF(Stammdaten_Analysenprogramm!AG193>0,Stammdaten_Analysenprogramm!A193,"") ->  | B192: =IF(Stammdaten_Analysenprogramm!AG193>0,Stammdaten_Analysenprogramm!C193,"") ->  | P192: =Stammdaten_Analysenprogramm!AC193 ->  | Q192: =Stammdaten_Analysenprogramm!AD193 -> 0 | R192: =Stammdaten_Analysenprogramm!AB193 ->  | S192: =Stammdaten_Analysenprogramm!V193 -> k.A. | Y192: 0
A193: =IF(Stammdaten_Analysenprogramm!AG194>0,Stammdaten_Analysenprogramm!A194,"") ->  | B193: =IF(Stammdaten_Analysenprogramm!AG194>0,Stammdaten_Analysenprogramm!C194,"") ->  | P193: =Stammdaten_Analysenprogramm!AC194 ->  | Q193: =Stammdaten_Analysenprogramm!AD194 -> 0 | R193: =Stammdaten_Analysenprogramm!AB194 ->  | S193: =Stammdaten_Analysenprogramm!V194 -> k.A. | Y193: 0
A194: =IF(Stammdaten_Analysenprogramm!AG195>0,Stammdaten_Analysenprogramm!A195,"") ->  | B194: =IF(Stammdaten_Analysenprogramm!AG195>0,Stammdaten_Analysenprogramm!C195,"") ->  | P194: =Stammdaten_Analysenprogramm!AC195 ->  | Q194: =Stammdaten_Analysenprogramm!AD195 -> 0 | R194: =Stammdaten_Analysenprogramm!AB195 ->  | S194: =Stammdaten_Analysenprogramm!V195 -> k.A. | Y194: 0
A195: =IF(Stammdaten_Analysenprogramm!AG196>0,Stammdaten_Analysenprogramm!A196,"") ->  | B195: =IF(Stammdaten_Analysenprogramm!AG196>0,Stammdaten_Analysenprogramm!C196,"") ->  | P195: =Stammdaten_Analysenprogramm!AC196 ->  | Q195: =Stammdaten_Analysenprogramm!AD196 -> 0 | R195: =Stammdaten_Analysenprogramm!AB196 ->  | S195: =Stammdaten_Analysenprogramm!V196 -> k.A. | Y195: 0
A196: =IF(Stammdaten_Analysenprogramm!AG197>0,Stammdaten_Analysenprogramm!A197,"") ->  | B196: =IF(Stammdaten_Analysenprogramm!AG197>0,Stammdaten_Analysenprogramm!C197,"") ->  | P196: =Stammdaten_Analysenprogramm!AC197 ->  | Q196: =Stammdaten_Analysenprogramm!AD197 -> 0 | R196: =Stammdaten_Analysenprogramm!AB197 ->  | S196: =Stammdaten_Analysenprogramm!V197 -> k.A. | Y196: 0
A197: =IF(Stammdaten_Analysenprogramm!AG198>0,Stammdaten_Analysenprogramm!A198,"") ->  | B197: =IF(Stammdaten_Analysenprogramm!AG198>0,Stammdaten_Analysenprogramm!C198,"") ->  | P197: =Stammdaten_Analysenprogramm!AC198 ->  | Q197: =Stammdaten_Analysenprogramm!AD198 -> 0 | R197: =Stammdaten_Analysenprogramm!AB198 ->  | S197: =Stammdaten_Analysenprogramm!V198 -> k.A. | Y197: 0
A198: =IF(Stammdaten_Analysenprogramm!AG199>0,Stammdaten_Analysenprogramm!A199,"") ->  | B198: =IF(Stammdaten_Analysenprogramm!AG199>0,Stammdaten_Analysenprogramm!C199,"") ->  | P198: =Stammdaten_Analysenprogramm!AC199 ->  | Q198: =Stammdaten_Analysenprogramm!AD199 -> 0 | R198: =Stammdaten_Analysenprogramm!AB199 ->  | S198: =Stammdaten_Analysenprogramm!V199 -> k.A. | X198: =T198-P198 ->  | Y198: =Q198-U198 -> 0 | Z198: =V198-R198 ->  | AA198: =W198-S198 -> 
A199: =IF(Stammdaten_Analysenprogramm!AG200>0,Stammdaten_Analysenprogramm!A200,"") ->  | B199: =IF(Stammdaten_Analysenprogramm!AG200>0,Stammdaten_Analysenprogramm!C200,"") ->  | C199: =A199 ->  | P199: =Stammdaten_Analysenprogramm!AC200 ->  | Q199: =Stammdaten_Analysenprogramm!AD200 -> 0 | R199: =Stammdaten_Analysenprogramm!AB200 ->  | S199: =Stammdaten_Analysenprogramm!V200 -> k.A. | Y199: 0
A200: =IF(Stammdaten_Analysenprogramm!AG201>0,Stammdaten_Analysenprogramm!A201,"") ->  | B200: =IF(Stammdaten_Analysenprogramm!AG201>0,Stammdaten_Analysenprogramm!C201,"") ->  | P200: =Stammdaten_Analysenprogramm!AC201 ->  | Q200: =Stammdaten_Analysenprogramm!AD201 -> 0 | R200: =Stammdaten_Analysenprogramm!AB201 ->  | S200: =Stammdaten_Analysenprogramm!V201 -> k.A. | Y200: 0
... 65 more rows

Sheet STGW
A1: LONGNAME | B1: INVNAME | C1: SMPNAME | D1: ROK_AKTNHN | E1: SMPDATE | F1: SMPTIME | G1: ULABOR | H1: BEARBEITER | I1: GERAET | J1: BEMERKUNG | K1: LOTUNG | L1: WASSPROK | M1: WASSPNHN
A2: Pegelbezeichnung | B2: Name des Messpunktes (GeODin) | C2: Probename | D2: Höhe ROK | E2: Datum Messung | F2: Uhrzeit Messung | G2: Unter- suchungs- labor | H2: Bearbeiter | I2: Mess- gerät | J2: Bemerkung (Proben.) | K2: Teufen- Lotung | L2: Ruhewasserstand | M2: Ruhewasserstand
D3: mNN/ NHN | E3: TT.MM.JJJJ | F3: hh:mm | K3: m | L3: m uROK | M3: mNN/ NHN
A4: Formel | B4: Formel | C4: Übertrag | D4: Formel | E4: Eingabe | F4: Eingabe | G4: Eingabe | H4: Eingabe | I4: Eingabe | J4: Eingabe | K4: Eingabe | L4: Eingabe | M4: Formel
A5: =IF(Stammdaten_Analysenprogramm!AE7="Ja",Stammdaten_Analysenprogramm!A7,"") -> Beispiel GWMS XX/XX | B5: =IF(Stammdaten_Analysenprogramm!AE7="Ja",Stammdaten_Analysenprogramm!C7,"") -> GWMS XX/XX (FOK - FUK m) | C5: =A5 -> Beispiel GWMS XX/XX | D5: =IF(A5="","",IF(ISNUMBER(Stammdaten_Analysenprogramm!F7),Stammdaten_Analysenprogramm!F7,"fehlt")) -> 31 | L5: 3.5 | M5: =IF(AND(ISNUMBER(L5),ISNUMBER(D5)),D5-L5,"") -> 27.5
A6: =IF(Stammdaten_Analysenprogramm!AE8="Ja",Stammdaten_Analysenprogramm!A8,"") ->  | B6: =IF(Stammdaten_Analysenprogramm!AE8="Ja",Stammdaten_Analysenprogramm!C8,"") ->  | C6: =A6 ->  | D6: =IF(A6="","",IF(ISNUMBER(Stammdaten_Analysenprogramm!F8),Stammdaten_Analysenprogramm!F8,"fehlt")) ->  | M6: =IF(AND(ISNUMBER(L6),ISNUMBER(D6)),D6-L6,"") -> 
A7: =IF(Stammdaten_Analysenprogramm!AE9="Ja",Stammdaten_Analysenprogramm!A9,"") ->  | B7: =IF(Stammdaten_Analysenprogramm!AE9="Ja",Stammdaten_Analysenprogramm!C9,"") ->  | D7: =IF(A7="","",IF(ISNUMBER(Stammdaten_Analysenprogramm!F9),Stammdaten_Analysenprogramm!F9,"fehlt")) -> 
A8: =IF(Stammdaten_Analysenprogramm!AE10="Ja",Stammdaten_Analysenprogramm!A10,"") ->  | B8: =IF(Stammdaten_Analysenprogramm!AE10="Ja",Stammdaten_Analysenprogramm!C10,"") ->  | D8: =IF(A8="","",IF(ISNUMBER(Stammdaten_Analysenprogramm!F10),Stammdaten_Analysenprogramm!F10,"fehlt")) -> 
A9: =IF(Stammdaten_Analysenprogramm!AE11="Ja",Stammdaten_Analysenprogramm!A11,"") ->  | B9: =IF(Stammdaten_Analysenprogramm!AE11="Ja",Stammdaten_Analysenprogramm!C11,"") ->  | D9: =IF(A9="","",IF(ISNUMBER(Stammdaten_Analysenprogramm!F11),Stammdaten_Analysenprogramm!F11,"fehlt")) -> 
A10: =IF(Stammdaten_Analysenprogramm!AE12="Ja",Stammdaten_Analysenprogramm!A12,"") ->  | B10: =IF(Stammdaten_Analysenprogramm!AE12="Ja",Stammdaten_Analysenprogramm!C12,"") ->  | D10: =IF(A10="","",IF(ISNUMBER(Stammdaten_Analysenprogramm!F12),Stammdaten_Analysenprogramm!F12,"fehlt")) -> 
A11: =IF(Stammdaten_Analysenprogramm!AE13="Ja",Stammdaten_Analysenprogramm!A13,"") ->  | B11: =IF(Stammdaten_Analysenprogramm!AE13="Ja",Stammdaten_Analysenprogramm!C13,"") ->  | D11: =IF(A11="","",IF(ISNUMBER(Stammdaten_Analysenprogramm!F13),Stammdaten_Analysenprogramm!F13,"fehlt")) -> 
A12: =IF(Stammdaten_Analysenprogramm!AE14="Ja",Stammdaten_Analysenprogramm!A14,"") ->  | B12: =IF(Stammdaten_Analysenprogramm!AE14="Ja",Stammdaten_Analysenprogramm!C14,"") ->  | D12: =IF(A12="","",IF(ISNUMBER(Stammdaten_Analysenprogramm!F14),Stammdaten_Analysenprogramm!F14,"fehlt")) -> 
A13: =IF(Stammdaten_Analysenprogramm!AE15="Ja",Stammdaten_Analysenprogramm!A15,"") ->  | B13: =IF(Stammdaten_Analysenprogramm!AE15="Ja",Stammdaten_Analysenprogramm!C15,"") ->  | D13: =IF(A13="","",IF(ISNUMBER(Stammdaten_Analysenprogramm!F15),Stammdaten_Analysenprogramm!F15,"fehlt")) -> 
A14: =IF(Stammdaten_Analysenprogramm!AE16="Ja",Stammdaten_Analysenprogramm!A16,"") ->  | B14: =IF(Stammdaten_Analysenprogramm!AE16="Ja",Stammdaten_Analysenprogramm!C16,"") ->  | D14: =IF(A14="","",IF(ISNUMBER(Stammdaten_Analysenprogramm!F16),Stammdaten_Analysenprogramm!F16,"fehlt")) -> 
A15: =IF(Stammdaten_Analysenprogramm!AE17="Ja",Stammdaten_Analysenprogramm!A17,"") ->  | B15: =IF(Stammdaten_Analysenprogramm!AE17="Ja",Stammdaten_Analysenprogramm!C17,"") ->  | D15: =IF(A15="","",IF(ISNUMBER(Stammdaten_Analysenprogramm!F17),Stammdaten_Analysenprogramm!F17,"fehlt")) -> 
A16: =IF(Stammdaten_Analysenprogramm!AE18="Ja",Stammdaten_Analysenprogramm!A18,"") ->  | B16: =IF(Stammdaten_Analysenprogramm!AE18="Ja",Stammdaten_Analysenprogramm!C18,"") ->  | D16: =IF(A16="","",IF(ISNUMBER(Stammdaten_Analysenprogramm!F18),Stammdaten_Analysenprogramm!F18,"fehlt")) -> 
A17: =IF(Stammdaten_Analysenprogramm!AE19="Ja",Stammdaten_Analysenprogramm!A19,"") ->  | B17: =IF(Stammdaten_Analysenprogramm!AE19="Ja",Stammdaten_Analysenprogramm!C19,"") ->  | D17: =IF(A17="","",IF(ISNUMBER(Stammdaten_Analysenprogramm!F19),Stammdaten_Analysenprogramm!F19,"fehlt")) -> 
A18: =IF(Stammdaten_Analysenprogramm!AE20="Ja",Stammdaten_Analysenprogramm!A20,"") ->  | B18: =IF(Stammdaten_Analysenprogramm!AE20="Ja",Stammdaten_Analysenprogramm!C20,"") ->  | D18: =IF(A18="","",IF(ISNUMBER(Stammdaten_Analysenprogramm!F20),Stammdaten_Analysenprogramm!F20,"fehlt")) -> 
A19: =IF(Stammdaten_Analysenprogramm!AE21="Ja",Stammdaten_Analysenprogramm!A21,"") ->  | B19: =IF(Stammdaten_Analysenprogramm!AE21="Ja",Stammdaten_Analysenprogramm!C21,"") ->  | D19: =IF(A19="","",IF(ISNUMBER(Stammdaten_Analysenprogramm!F21),Stammdaten_Analysenprogramm!F21,"fehlt")) -> 
A20: =IF(Stammdaten_Analysenprogramm!AE22="Ja",Stammdaten_Analysenprogramm!A22,"") ->  | B20: =IF(Stammdaten_Analysenprogramm!AE22="Ja",Stammdaten_Analysenprogramm!C22,"") ->  | D20: =IF(A20="","",IF(ISNUMBER(Stammdaten_Analysenprogramm!F22),Stammdaten_Analysenprogramm!F22,"fehlt")) -> 
A21: =IF(Stammdaten_Analysenprogramm!AE23="Ja",Stammdaten_Analysenprogramm!A23,"") ->  | B21: =IF(Stammdaten_Analysenprogramm!AE23="Ja",Stammdaten_Analysenprogramm!C23,"") ->  | D21: =IF(A21="","",IF(ISNUMBER(Stammdaten_Analysenprogramm!F23),Stammdaten_Analysenprogramm!F23,"fehlt")) -> 
A22: =IF(Stammdaten_Analysenprogramm!AE24="Ja",Stammdaten_Analysenprogramm!A24,"") ->  | B22: =IF(Stammdaten_Analysenprogramm!AE24="Ja",Stammdaten_Analysenprogramm!C24,"") ->  | D22: =IF(A22="","",IF(ISNUMBER(Stammdaten_Analysenprogramm!F24),Stammdaten_Analysenprogramm!F24,"fehlt")) -> 
A23: =IF(Stammdaten_Analysenprogramm!AE25="Ja",Stammdaten_Analysenprogramm!A25,"") ->  | B23: =IF(Stammdaten_Analysenprogramm!AE25="Ja",Stammdaten_Analysenprogramm!C25,"") ->  | D23: =IF(A23="","",IF(ISNUMBER(Stammdaten_Analysenprogramm!F25),Stammdaten_Analysenprogramm!F25,"fehlt")) -> 
A24: =IF(Stammdaten_Analysenprogramm!AE26="Ja",Stammdaten_Analysenprogramm!A26,"") ->  | B24: =IF(Stammdaten_Analysenprogramm!AE26="Ja",Stammdaten_Analysenprogramm!C26,"") ->  | D24: =IF(A24="","",IF(ISNUMBER(Stammdaten_Analysenprogramm!F26),Stammdaten_Analysenprogramm!F26,"fehlt")) -> 
A25: =IF(Stammdaten_Analysenprogramm!AE27="Ja",Stammdaten_Analysenprogramm!A27,"") ->  | B25: =IF(Stammdaten_Analysenprogramm!AE27="Ja",Stammdaten_Analysenprogramm!C27,"") ->  | D25: =IF(A25="","",IF(ISNUMBER(Stammdaten_Analysenprogramm!F27),Stammdaten_Analysenprogramm!F27,"fehlt")) -> 
A26: =IF(Stammdaten_Analysenprogramm!AE28="Ja",Stammdaten_Analysenprogramm!A28,"") ->  | B26: =IF(Stammdaten_Analysenprogramm!AE28="Ja",Stammdaten_Analysenprogramm!C28,"") ->  | D26: =IF(A26="","",IF(ISNUMBER(Stammdaten_Analysenprogramm!F28),Stammdaten_Analysenprogramm!F28,"fehlt")) -> 
A27: =IF(Stammdaten_Analysenprogramm!AE29="Ja",Stammdaten_Analysenprogramm!A29,"") ->  | B27: =IF(Stammdaten_Analysenprogramm!AE29="Ja",Stammdaten_Analysenprogramm!C29,"") ->  | D27: =IF(A27="","",IF(ISNUMBER(Stammdaten_Analysenprogramm!F29),Stammdaten_Analysenprogramm!F29,"fehlt")) -> 
A28: =IF(Stammdaten_Analysenprogramm!AE30="Ja",Stammdaten_Analysenprogramm!A30,"") ->  | B28: =IF(Stammdaten_Analysenprogramm!AE30="Ja",Stammdaten_Analysenprogramm!C30,"") ->  | D28: =IF(A28="","",IF(ISNUMBER(Stammdaten_Analysenprogramm!F30),Stammdaten_Analysenprogramm!F30,"fehlt")) -> 
A29: =IF(Stammdaten_Analysenprogramm!AE31="Ja",Stammdaten_Analysenprogramm!A31,"") ->  | B29: =IF(Stammdaten_Analysenprogramm!AE31="Ja",Stammdaten_Analysenprogramm!C31,"") ->  | D29: =IF(A29="","",IF(ISNUMBER(Stammdaten_Analysenprogramm!F31),Stammdaten_Analysenprogramm!F31,"fehlt")) -> 
A30: =IF(Stammdaten_Analysenprogramm!AE32="Ja",Stammdaten_Analysenprogramm!A32,"") ->  | B30: =IF(Stammdaten_Analysenprogramm!AE32="Ja",Stammdaten_Analysenprogramm!C32,"") ->  | D30: =IF(A30="","",IF(ISNUMBER(Stammdaten_Analysenprogramm!F32),Stammdaten_Analysenprogramm!F32,"fehlt")) -> 
A31: =IF(Stammdaten_Analysenprogramm!AE33="Ja",Stammdaten_Analysenprogramm!A33,"") ->  | B31: =IF(Stammdaten_Analysenprogramm!AE33="Ja",Stammdaten_Analysenprogramm!C33,"") ->  | D31: =IF(A31="","",IF(ISNUMBER(Stammdaten_Analysenprogramm!F33),Stammdaten_Analysenprogramm!F33,"fehlt")) -> 
A32: =IF(Stammdaten_Analysenprogramm!AE34="Ja",Stammdaten_Analysenprogramm!A34,"") ->  | B32: =IF(Stammdaten_Analysenprogramm!AE34="Ja",Stammdaten_Analysenprogramm!C34,"") ->  | D32: =IF(A32="","",IF(ISNUMBER(Stammdaten_Analysenprogramm!F34),Stammdaten_Analysenprogramm!F34,"fehlt")) -> 
A33: =IF(Stammdaten_Analysenprogramm!AE35="Ja",Stammdaten_Analysenprogramm!A35,"") ->  | B33: =IF(Stammdaten_Analysenprogramm!AE35="Ja",Stammdaten_Analysenprogramm!C35,"") ->  | D33: =IF(A33="","",IF(ISNUMBER(Stammdaten_Analysenprogramm!F35),Stammdaten_Analysenprogramm!F35,"fehlt")) -> 
A34: =IF(Stammdaten_Analysenprogramm!AE36="Ja",Stammdaten_Analysenprogramm!A36,"") ->  | B34: =IF(Stammdaten_Analysenprogramm!AE36="Ja",Stammdaten_Analysenprogramm!C36,"") ->  | D34: =IF(A34="","",IF(ISNUMBER(Stammdaten_Analysenprogramm!F36),Stammdaten_Analysenprogramm!F36,"fehlt")) -> 
A35: =IF(Stammdaten_Analysenprogramm!AE37="Ja",Stammdaten_Analysenprogramm!A37,"") ->  | B35: =IF(Stammdaten_Analysenprogramm!AE37="Ja",Stammdaten_Analysenprogramm!C37,"") ->  | D35: =IF(A35="","",IF(ISNUMBER(Stammdaten_Analysenprogramm!F37),Stammdaten_Analysenprogramm!F37,"fehlt")) -> 
A36: =IF(Stammdaten_Analysenprogramm!AE38="Ja",Stammdaten_Analysenprogramm!A38,"") ->  | B36: =IF(Stammdaten_Analysenprogramm!AE38="Ja",Stammdaten_Analysenprogramm!C38,"") ->  | D36: =IF(A36="","",IF(ISNUMBER(Stammdaten_Analysenprogramm!F38),Stammdaten_Analysenprogramm!F38,"fehlt")) -> 
A37: =IF(Stammdaten_Analysenprogramm!AE39="Ja",Stammdaten_Analysenprogramm!A39,"") ->  | B37: =IF(Stammdaten_Analysenprogramm!AE39="Ja",Stammdaten_Analysenprogramm!C39,"") ->  | D37: =IF(A37="","",IF(ISNUMBER(Stammdaten_Analysenprogramm!F39),Stammdaten_Analysenprogramm!F39,"fehlt")) -> 
A38: =IF(Stammdaten_Analysenprogramm!AE40="Ja",Stammdaten_Analysenprogramm!A40,"") ->  | B38: =IF(Stammdaten_Analysenprogramm!AE40="Ja",Stammdaten_Analysenprogramm!C40,"") ->  | D38: =IF(A38="","",IF(ISNUMBER(Stammdaten_Analysenprogramm!F40),Stammdaten_Analysenprogramm!F40,"fehlt")) -> 
A39: =IF(Stammdaten_Analysenprogramm!AE41="Ja",Stammdaten_Analysenprogramm!A41,"") ->  | B39: =IF(Stammdaten_Analysenprogramm!AE41="Ja",Stammdaten_Analysenprogramm!C41,"") ->  | D39: =IF(A39="","",IF(ISNUMBER(Stammdaten_Analysenprogramm!F41),Stammdaten_Analysenprogramm!F41,"fehlt")) -> 
A40: =IF(Stammdaten_Analysenprogramm!AE42="Ja",Stammdaten_Analysenprogramm!A42,"") ->  | B40: =IF(Stammdaten_Analysenprogramm!AE42="Ja",Stammdaten_Analysenprogramm!C42,"") ->  | D40: =IF(A40="","",IF(ISNUMBER(Stammdaten_Analysenprogramm!F42),Stammdaten_Analysenprogramm!F42,"fehlt")) -> 
A41: =IF(Stammdaten_Analysenprogramm!AE43="Ja",Stammdaten_Analysenprogramm!A43,"") ->  | B41: =IF(Stammdaten_Analysenprogramm!AE43="Ja",Stammdaten_Analysenprogramm!C43,"") ->  | D41: =IF(A41="","",IF(ISNUMBER(Stammdaten_Analysenprogramm!F43),Stammdaten_Analysenprogramm!F43,"fehlt")) -> 
A42: =IF(Stammdaten_Analysenprogramm!AE44="Ja",Stammdaten_Analysenprogramm!A44,"") ->  | B42: =IF(Stammdaten_Analysenprogramm!AE44="Ja",Stammdaten_Analysenprogramm!C44,"") ->  | D42: =IF(A42="","",IF(ISNUMBER(Stammdaten_Analysenprogramm!F44),Stammdaten_Analysenprogramm!F44,"fehlt")) -> 
A43: =IF(Stammdaten_Analysenprogramm!AE45="Ja",Stammdaten_Analysenprogramm!A45,"") ->  | B43: =IF(Stammdaten_Analysenprogramm!AE45="Ja",Stammdaten_Analysenprogramm!C45,"") ->  | D43: =IF(A43="","",IF(ISNUMBER(Stammdaten_Analysenprogramm!F45),Stammdaten_Analysenprogramm!F45,"fehlt")) -> 
A44: =IF(Stammdaten_Analysenprogramm!AE46="Ja",Stammdaten_Analysenprogramm!A46,"") ->  | B44: =IF(Stammdaten_Analysenprogramm!AE46="Ja",Stammdaten_Analysenprogramm!C46,"") ->  | D44: =IF(A44="","",IF(ISNUMBER(Stammdaten_Analysenprogramm!F46),Stammdaten_Analysenprogramm!F46,"fehlt")) -> 
A45: =IF(Stammdaten_Analysenprogramm!AE47="Ja",Stammdaten_Analysenprogramm!A47,"") ->  | B45: =IF(Stammdaten_Analysenprogramm!AE47="Ja",Stammdaten_Analysenprogramm!C47,"") ->  | D45: =IF(A45="","",IF(ISNUMBER(Stammdaten_Analysenprogramm!F47),Stammdaten_Analysenprogramm!F47,"fehlt")) -> 
A46: =IF(Stammdaten_Analysenprogramm!AE48="Ja",Stammdaten_Analysenprogramm!A48,"") ->  | B46: =IF(Stammdaten_Analysenprogramm!AE48="Ja",Stammdaten_Analysenprogramm!C48,"") ->  | D46: =IF(A46="","",IF(ISNUMBER(Stammdaten_Analysenprogramm!F48),Stammdaten_Analysenprogramm!F48,"fehlt")) -> 
A47: =IF(Stammdaten_Analysenprogramm!AE49="Ja",Stammdaten_Analysenprogramm!A49,"") ->  | B47: =IF(Stammdaten_Analysenprogramm!AE49="Ja",Stammdaten_Analysenprogramm!C49,"") ->  | D47: =IF(A47="","",IF(ISNUMBER(Stammdaten_Analysenprogramm!F49),Stammdaten_Analysenprogramm!F49,"fehlt")) -> 
A48: =IF(Stammdaten_Analysenprogramm!AE50="Ja",Stammdaten_Analysenprogramm!A50,"") ->  | B48: =IF(Stammdaten_Analysenprogramm!AE50="Ja",Stammdaten_Analysenprogramm!C50,"") ->  | D48: =IF(A48="","",IF(ISNUMBER(Stammdaten_Analysenprogramm!F50),Stammdaten_Analysenprogramm!F50,"fehlt")) -> 
A49: =IF(Stammdaten_Analysenprogramm!AE51="Ja",Stammdaten_Analysenprogramm!A51,"") ->  | B49: =IF(Stammdaten_Analysenprogramm!AE51="Ja",Stammdaten_Analysenprogramm!C51,"") ->  | D49: =IF(A49="","",IF(ISNUMBER(Stammdaten_Analysenprogramm!F51),Stammdaten_Analysenprogramm!F51,"fehlt")) -> 
A50: =IF(Stammdaten_Analysenprogramm!AE52="Ja",Stammdaten_Analysenprogramm!A52,"") ->  | B50: =IF(Stammdaten_Analysenprogramm!AE52="Ja",Stammdaten_Analysenprogramm!C52,"") ->  | D50: =IF(A50="","",IF(ISNUMBER(Stammdaten_Analysenprogramm!F52),Stammdaten_Analysenprogramm!F52,"fehlt")) -> 
A51: =IF(Stammdaten_Analysenprogramm!AE53="Ja",Stammdaten_Analysenprogramm!A53,"") ->  | B51: =IF(Stammdaten_Analysenprogramm!AE53="Ja",Stammdaten_Analysenprogramm!C53,"") ->  | D51: =IF(A51="","",IF(ISNUMBER(Stammdaten_Analysenprogramm!F53),Stammdaten_Analysenprogramm!F53,"fehlt")) -> 
A52: =IF(Stammdaten_Analysenprogramm!AE54="Ja",Stammdaten_Analysenprogramm!A54,"") ->  | B52: =IF(Stammdaten_Analysenprogramm!AE54="Ja",Stammdaten_Analysenprogramm!C54,"") ->  | D52: =IF(A52="","",IF(ISNUMBER(Stammdaten_Analysenprogramm!F54),Stammdaten_Analysenprogramm!F54,"fehlt")) -> 
A53: =IF(Stammdaten_Analysenprogramm!AE55="Ja",Stammdaten_Analysenprogramm!A55,"") ->  | B53: =IF(Stammdaten_Analysenprogramm!AE55="Ja",Stammdaten_Analysenprogramm!C55,"") ->  | D53: =IF(A53="","",IF(ISNUMBER(Stammdaten_Analysenprogramm!F55),Stammdaten_Analysenprogramm!F55,"fehlt")) -> 
A54: =IF(Stammdaten_Analysenprogramm!AE56="Ja",Stammdaten_Analysenprogramm!A56,"") ->  | B54: =IF(Stammdaten_Analysenprogramm!AE56="Ja",Stammdaten_Analysenprogramm!C56,"") ->  | D54: =IF(A54="","",IF(ISNUMBER(Stammdaten_Analysenprogramm!F56),Stammdaten_Analysenprogramm!F56,"fehlt")) -> 
A55: =IF(Stammdaten_Analysenprogramm!AE57="Ja",Stammdaten_Analysenprogramm!A57,"") ->  | B55: =IF(Stammdaten_Analysenprogramm!AE57="Ja",Stammdaten_Analysenprogramm!C57,"") ->  | D55: =IF(A55="","",IF(ISNUMBER(Stammdaten_Analysenprogramm!F57),Stammdaten_Analysenprogramm!F57,"fehlt")) -> 
A56: =IF(Stammdaten_Analysenprogramm!AE58="Ja",Stammdaten_Analysenprogramm!A58,"") ->  | B56: =IF(Stammdaten_Analysenprogramm!AE58="Ja",Stammdaten_Analysenprogramm!C58,"") ->  | D56: =IF(A56="","",IF(ISNUMBER(Stammdaten_Analysenprogramm!F58),Stammdaten_Analysenprogramm!F58,"fehlt")) -> 
A57: =IF(Stammdaten_Analysenprogramm!AE59="Ja",Stammdaten_Analysenprogramm!A59,"") ->  | B57: =IF(Stammdaten_Analysenprogramm!AE59="Ja",Stammdaten_Analysenprogramm!C59,"") ->  | D57: =IF(A57="","",IF(ISNUMBER(Stammdaten_Analysenprogramm!F59),Stammdaten_Analysenprogramm!F59,"fehlt")) -> 
A58: =IF(Stammdaten_Analysenprogramm!AE60="Ja",Stammdaten_Analysenprogramm!A60,"") ->  | B58: =IF(Stammdaten_Analysenprogramm!AE60="Ja",Stammdaten_Analysenprogramm!C60,"") ->  | D58: =IF(A58="","",IF(ISNUMBER(Stammdaten_Analysenprogramm!F60),Stammdaten_Analysenprogramm!F60,"fehlt")) -> 
A59: =IF(Stammdaten_Analysenprogramm!AE61="Ja",Stammdaten_Analysenprogramm!A61,"") ->  | B59: =IF(Stammdaten_Analysenprogramm!AE61="Ja",Stammdaten_Analysenprogramm!C61,"") ->  | D59: =IF(A59="","",IF(ISNUMBER(Stammdaten_Analysenprogramm!F61),Stammdaten_Analysenprogramm!F61,"fehlt")) -> 
A60: =IF(Stammdaten_Analysenprogramm!AE62="Ja",Stammdaten_Analysenprogramm!A62,"") ->  | B60: =IF(Stammdaten_Analysenprogramm!AE62="Ja",Stammdaten_Analysenprogramm!C62,"") ->  | D60: =IF(A60="","",IF(ISNUMBER(Stammdaten_Analysenprogramm!F62),Stammdaten_Analysenprogramm!F62,"fehlt")) -> 
A61: =IF(Stammdaten_Analysenprogramm!AE63="Ja",Stammdaten_Analysenprogramm!A63,"") ->  | B61: =IF(Stammdaten_Analysenprogramm!AE63="Ja",Stammdaten_Analysenprogramm!C63,"") ->  | D61: =IF(A61="","",IF(ISNUMBER(Stammdaten_Analysenprogramm!F63),Stammdaten_Analysenprogramm!F63,"fehlt")) -> 
A62: =IF(Stammdaten_Analysenprogramm!AE64="Ja",Stammdaten_Analysenprogramm!A64,"") ->  | B62: =IF(Stammdaten_Analysenprogramm!AE64="Ja",Stammdaten_Analysenprogramm!C64,"") ->  | D62: =IF(A62="","",IF(ISNUMBER(Stammdaten_Analysenprogramm!F64),Stammdaten_Analysenprogramm!F64,"fehlt")) -> 
A63: =IF(Stammdaten_Analysenprogramm!AE65="Ja",Stammdaten_Analysenprogramm!A65,"") ->  | B63: =IF(Stammdaten_Analysenprogramm!AE65="Ja",Stammdaten_Analysenprogramm!C65,"") ->  | D63: =IF(A63="","",IF(ISNUMBER(Stammdaten_Analysenprogramm!F65),Stammdaten_Analysenprogramm!F65,"fehlt")) -> 
A64: =IF(Stammdaten_Analysenprogramm!AE66="Ja",Stammdaten_Analysenprogramm!A66,"") ->  | B64: =IF(Stammdaten_Analysenprogramm!AE66="Ja",Stammdaten_Analysenprogramm!C66,"") ->  | D64: =IF(A64="","",IF(ISNUMBER(Stammdaten_Analysenprogramm!F66),Stammdaten_Analysenprogramm!F66,"fehlt")) -> 
A65: =IF(Stammdaten_Analysenprogramm!AE67="Ja",Stammdaten_Analysenprogramm!A67,"") ->  | B65: =IF(Stammdaten_Analysenprogramm!AE67="Ja",Stammdaten_Analysenprogramm!C67,"") ->  | D65: =IF(A65="","",IF(ISNUMBER(Stammdaten_Analysenprogramm!F67),Stammdaten_Analysenprogramm!F67,"fehlt")) -> 
A66: =IF(Stammdaten_Analysenprogramm!AE68="Ja",Stammdaten_Analysenprogramm!A68,"") ->  | B66: =IF(Stammdaten_Analysenprogramm!AE68="Ja",Stammdaten_Analysenprogramm!C68,"") ->  | D66: =IF(A66="","",IF(ISNUMBER(Stammdaten_Analysenprogramm!F68),Stammdaten_Analysenprogramm!F68,"fehlt")) -> 
A67: =IF(Stammdaten_Analysenprogramm!AE69="Ja",Stammdaten_Analysenprogramm!A69,"") ->  | B67: =IF(Stammdaten_Analysenprogramm!AE69="Ja",Stammdaten_Analysenprogramm!C69,"") ->  | D67: =IF(A67="","",IF(ISNUMBER(Stammdaten_Analysenprogramm!F69),Stammdaten_Analysenprogramm!F69,"fehlt")) -> 
A68: =IF(Stammdaten_Analysenprogramm!AE70="Ja",Stammdaten_Analysenprogramm!A70,"") ->  | B68: =IF(Stammdaten_Analysenprogramm!AE70="Ja",Stammdaten_Analysenprogramm!C70,"") ->  | D68: =IF(A68="","",IF(ISNUMBER(Stammdaten_Analysenprogramm!F70),Stammdaten_Analysenprogramm!F70,"fehlt")) -> 
A69: =IF(Stammdaten_Analysenprogramm!AE71="Ja",Stammdaten_Analysenprogramm!A71,"") ->  | B69: =IF(Stammdaten_Analysenprogramm!AE71="Ja",Stammdaten_Analysenprogramm!C71,"") ->  | D69: =IF(A69="","",IF(ISNUMBER(Stammdaten_Analysenprogramm!F71),Stammdaten_Analysenprogramm!F71,"fehlt")) -> 
A70: =IF(Stammdaten_Analysenprogramm!AE72="Ja",Stammdaten_Analysenprogramm!A72,"") ->  | B70: =IF(Stammdaten_Analysenprogramm!AE72="Ja",Stammdaten_Analysenprogramm!C72,"") ->  | C70: =A70 ->  | D70: =IF(A70="","",IF(ISNUMBER(Stammdaten_Analysenprogramm!F72),Stammdaten_Analysenprogramm!F72,"fehlt")) ->  | M70: =IF(AND(ISNUMBER(L70),ISNUMBER(D70)),D70-L70,"") -> 
A71: =IF(Stammdaten_Analysenprogramm!AE73="Ja",Stammdaten_Analysenprogramm!A73,"") ->  | B71: =IF(Stammdaten_Analysenprogramm!AE73="Ja",Stammdaten_Analysenprogramm!C73,"") ->  | D71: =IF(A71="","",IF(ISNUMBER(Stammdaten_Analysenprogramm!F73),Stammdaten_Analysenprogramm!F73,"fehlt")) -> 
A72: =IF(Stammdaten_Analysenprogramm!AE74="Ja",Stammdaten_Analysenprogramm!A74,"") ->  | B72: =IF(Stammdaten_Analysenprogramm!AE74="Ja",Stammdaten_Analysenprogramm!C74,"") ->  | D72: =IF(A72="","",IF(ISNUMBER(Stammdaten_Analysenprogramm!F74),Stammdaten_Analysenprogramm!F74,"fehlt")) -> 
A73: =IF(Stammdaten_Analysenprogramm!AE75="Ja",Stammdaten_Analysenprogramm!A75,"") ->  | B73: =IF(Stammdaten_Analysenprogramm!AE75="Ja",Stammdaten_Analysenprogramm!C75,"") ->  | D73: =IF(A73="","",IF(ISNUMBER(Stammdaten_Analysenprogramm!F75),Stammdaten_Analysenprogramm!F75,"fehlt")) -> 
A74: =IF(Stammdaten_Analysenprogramm!AE76="Ja",Stammdaten_Analysenprogramm!A76,"") ->  | B74: =IF(Stammdaten_Analysenprogramm!AE76="Ja",Stammdaten_Analysenprogramm!C76,"") ->  | D74: =IF(A74="","",IF(ISNUMBER(Stammdaten_Analysenprogramm!F76),Stammdaten_Analysenprogramm!F76,"fehlt")) -> 
A75: =IF(Stammdaten_Analysenprogramm!AE77="Ja",Stammdaten_Analysenprogramm!A77,"") ->  | B75: =IF(Stammdaten_Analysenprogramm!AE77="Ja",Stammdaten_Analysenprogramm!C77,"") ->  | D75: =IF(A75="","",IF(ISNUMBER(Stammdaten_Analysenprogramm!F77),Stammdaten_Analysenprogramm!F77,"fehlt")) -> 
A76: =IF(Stammdaten_Analysenprogramm!AE78="Ja",Stammdaten_Analysenprogramm!A78,"") ->  | B76: =IF(Stammdaten_Analysenprogramm!AE78="Ja",Stammdaten_Analysenprogramm!C78,"") ->  | D76: =IF(A76="","",IF(ISNUMBER(Stammdaten_Analysenprogramm!F78),Stammdaten_Analysenprogramm!F78,"fehlt")) -> 
A77: =IF(Stammdaten_Analysenprogramm!AE79="Ja",Stammdaten_Analysenprogramm!A79,"") ->  | B77: =IF(Stammdaten_Analysenprogramm!AE79="Ja",Stammdaten_Analysenprogramm!C79,"") ->  | D77: =IF(A77="","",IF(ISNUMBER(Stammdaten_Analysenprogramm!F79),Stammdaten_Analysenprogramm!F79,"fehlt")) -> 
A78: =IF(Stammdaten_Analysenprogramm!AE80="Ja",Stammdaten_Analysenprogramm!A80,"") ->  | B78: =IF(Stammdaten_Analysenprogramm!AE80="Ja",Stammdaten_Analysenprogramm!C80,"") ->  | D78: =IF(A78="","",IF(ISNUMBER(Stammdaten_Analysenprogramm!F80),Stammdaten_Analysenprogramm!F80,"fehlt")) -> 
A79: =IF(Stammdaten_Analysenprogramm!AE81="Ja",Stammdaten_Analysenprogramm!A81,"") ->  | B79: =IF(Stammdaten_Analysenprogramm!AE81="Ja",Stammdaten_Analysenprogramm!C81,"") ->  | D79: =IF(A79="","",IF(ISNUMBER(Stammdaten_Analysenprogramm!F81),Stammdaten_Analysenprogramm!F81,"fehlt")) -> 
A80: =IF(Stammdaten_Analysenprogramm!AE82="Ja",Stammdaten_Analysenprogramm!A82,"") ->  | B80: =IF(Stammdaten_Analysenprogramm!AE82="Ja",Stammdaten_Analysenprogramm!C82,"") ->  | D80: =IF(A80="","",IF(ISNUMBER(Stammdaten_Analysenprogramm!F82),Stammdaten_Analysenprogramm!F82,"fehlt")) -> 
A81: =IF(Stammdaten_Analysenprogramm!AE83="Ja",Stammdaten_Analysenprogramm!A83,"") ->  | B81: =IF(Stammdaten_Analysenprogramm!AE83="Ja",Stammdaten_Analysenprogramm!C83,"") ->  | D81: =IF(A81="","",IF(ISNUMBER(Stammdaten_Analysenprogramm!F83),Stammdaten_Analysenprogramm!F83,"fehlt")) -> 
A82: =IF(Stammdaten_Analysenprogramm!AE84="Ja",Stammdaten_Analysenprogramm!A84,"") ->  | B82: =IF(Stammdaten_Analysenprogramm!AE84="Ja",Stammdaten_Analysenprogramm!C84,"") ->  | D82: =IF(A82="","",IF(ISNUMBER(Stammdaten_Analysenprogramm!F84),Stammdaten_Analysenprogramm!F84,"fehlt")) -> 
A83: =IF(Stammdaten_Analysenprogramm!AE85="Ja",Stammdaten_Analysenprogramm!A85,"") ->  | B83: =IF(Stammdaten_Analysenprogramm!AE85="Ja",Stammdaten_Analysenprogramm!C85,"") ->  | D83: =IF(A83="","",IF(ISNUMBER(Stammdaten_Analysenprogramm!F85),Stammdaten_Analysenprogramm!F85,"fehlt")) -> 
A84: =IF(Stammdaten_Analysenprogramm!AE86="Ja",Stammdaten_Analysenprogramm!A86,"") ->  | B84: =IF(Stammdaten_Analysenprogramm!AE86="Ja",Stammdaten_Analysenprogramm!C86,"") ->  | D84: =IF(A84="","",IF(ISNUMBER(Stammdaten_Analysenprogramm!F86),Stammdaten_Analysenprogramm!F86,"fehlt")) -> 
A85: =IF(Stammdaten_Analysenprogramm!AE87="Ja",Stammdaten_Analysenprogramm!A87,"") ->  | B85: =IF(Stammdaten_Analysenprogramm!AE87="Ja",Stammdaten_Analysenprogramm!C87,"") ->  | D85: =IF(A85="","",IF(ISNUMBER(Stammdaten_Analysenprogramm!F87),Stammdaten_Analysenprogramm!F87,"fehlt")) -> 
A86: =IF(Stammdaten_Analysenprogramm!AE88="Ja",Stammdaten_Analysenprogramm!A88,"") ->  | B86: =IF(Stammdaten_Analysenprogramm!AE88="Ja",Stammdaten_Analysenprogramm!C88,"") ->  | D86: =IF(A86="","",IF(ISNUMBER(Stammdaten_Analysenprogramm!F88),Stammdaten_Analysenprogramm!F88,"fehlt")) -> 
A87: =IF(Stammdaten_Analysenprogramm!AE89="Ja",Stammdaten_Analysenprogramm!A89,"") ->  | B87: =IF(Stammdaten_Analysenprogramm!AE89="Ja",Stammdaten_Analysenprogramm!C89,"") ->  | D87: =IF(A87="","",IF(ISNUMBER(Stammdaten_Analysenprogramm!F89),Stammdaten_Analysenprogramm!F89,"fehlt")) -> 
A88: =IF(Stammdaten_Analysenprogramm!AE90="Ja",Stammdaten_Analysenprogramm!A90,"") ->  | B88: =IF(Stammdaten_Analysenprogramm!AE90="Ja",Stammdaten_Analysenprogramm!C90,"") ->  | D88: =IF(A88="","",IF(ISNUMBER(Stammdaten_Analysenprogramm!F90),Stammdaten_Analysenprogramm!F90,"fehlt")) -> 
A89: =IF(Stammdaten_Analysenprogramm!AE91="Ja",Stammdaten_Analysenprogramm!A91,"") ->  | B89: =IF(Stammdaten_Analysenprogramm!AE91="Ja",Stammdaten_Analysenprogramm!C91,"") ->  | D89: =IF(A89="","",IF(ISNUMBER(Stammdaten_Analysenprogramm!F91),Stammdaten_Analysenprogramm!F91,"fehlt")) -> 
A90: =IF(Stammdaten_Analysenprogramm!AE92="Ja",Stammdaten_Analysenprogramm!A92,"") ->  | B90: =IF(Stammdaten_Analysenprogramm!AE92="Ja",Stammdaten_Analysenprogramm!C92,"") ->  | D90: =IF(A90="","",IF(ISNUMBER(Stammdaten_Analysenprogramm!F92),Stammdaten_Analysenprogramm!F92,"fehlt")) -> 
A91: =IF(Stammdaten_Analysenprogramm!AE93="Ja",Stammdaten_Analysenprogramm!A93,"") ->  | B91: =IF(Stammdaten_Analysenprogramm!AE93="Ja",Stammdaten_Analysenprogramm!C93,"") ->  | D91: =IF(A91="","",IF(ISNUMBER(Stammdaten_Analysenprogramm!F93),Stammdaten_Analysenprogramm!F93,"fehlt")) -> 
A92: =IF(Stammdaten_Analysenprogramm!AE94="Ja",Stammdaten_Analysenprogramm!A94,"") ->  | B92: =IF(Stammdaten_Analysenprogramm!AE94="Ja",Stammdaten_Analysenprogramm!C94,"") ->  | D92: =IF(A92="","",IF(ISNUMBER(Stammdaten_Analysenprogramm!F94),Stammdaten_Analysenprogramm!F94,"fehlt")) -> 
A93: =IF(Stammdaten_Analysenprogramm!AE95="Ja",Stammdaten_Analysenprogramm!A95,"") ->  | B93: =IF(Stammdaten_Analysenprogramm!AE95="Ja",Stammdaten_Analysenprogramm!C95,"") ->  | D93: =IF(A93="","",IF(ISNUMBER(Stammdaten_Analysenprogramm!F95),Stammdaten_Analysenprogramm!F95,"fehlt")) -> 
A94: =IF(Stammdaten_Analysenprogramm!AE96="Ja",Stammdaten_Analysenprogramm!A96,"") ->  | B94: =IF(Stammdaten_Analysenprogramm!AE96="Ja",Stammdaten_Analysenprogramm!C96,"") ->  | D94: =IF(A94="","",IF(ISNUMBER(Stammdaten_Analysenprogramm!F96),Stammdaten_Analysenprogramm!F96,"fehlt")) -> 
A95: =IF(Stammdaten_Analysenprogramm!AE97="Ja",Stammdaten_Analysenprogramm!A97,"") ->  | B95: =IF(Stammdaten_Analysenprogramm!AE97="Ja",Stammdaten_Analysenprogramm!C97,"") ->  | D95: =IF(A95="","",IF(ISNUMBER(Stammdaten_Analysenprogramm!F97),Stammdaten_Analysenprogramm!F97,"fehlt")) -> 
A96: =IF(Stammdaten_Analysenprogramm!AE98="Ja",Stammdaten_Analysenprogramm!A98,"") ->  | B96: =IF(Stammdaten_Analysenprogramm!AE98="Ja",Stammdaten_Analysenprogramm!C98,"") ->  | D96: =IF(A96="","",IF(ISNUMBER(Stammdaten_Analysenprogramm!F98),Stammdaten_Analysenprogramm!F98,"fehlt")) -> 
A97: =IF(Stammdaten_Analysenprogramm!AE99="Ja",Stammdaten_Analysenprogramm!A99,"") ->  | B97: =IF(Stammdaten_Analysenprogramm!AE99="Ja",Stammdaten_Analysenprogramm!C99,"") ->  | D97: =IF(A97="","",IF(ISNUMBER(Stammdaten_Analysenprogramm!F99),Stammdaten_Analysenprogramm!F99,"fehlt")) -> 
A98: =IF(Stammdaten_Analysenprogramm!AE100="Ja",Stammdaten_Analysenprogramm!A100,"") ->  | B98: =IF(Stammdaten_Analysenprogramm!AE100="Ja",Stammdaten_Analysenprogramm!C100,"") ->  | D98: =IF(A98="","",IF(ISNUMBER(Stammdaten_Analysenprogramm!F100),Stammdaten_Analysenprogramm!F100,"fehlt")) -> 
A99: =IF(Stammdaten_Analysenprogramm!AE101="Ja",Stammdaten_Analysenprogramm!A101,"") ->  | B99: =IF(Stammdaten_Analysenprogramm!AE101="Ja",Stammdaten_Analysenprogramm!C101,"") ->  | D99: =IF(A99="","",IF(ISNUMBER(Stammdaten_Analysenprogramm!F101),Stammdaten_Analysenprogramm!F101,"fehlt")) -> 
A100: =IF(Stammdaten_Analysenprogramm!AE102="Ja",Stammdaten_Analysenprogramm!A102,"") ->  | B100: =IF(Stammdaten_Analysenprogramm!AE102="Ja",Stammdaten_Analysenprogramm!C102,"") ->  | D100: =IF(A100="","",IF(ISNUMBER(Stammdaten_Analysenprogramm!F102),Stammdaten_Analysenprogramm!F102,"fehlt")) -> 
A101: =IF(Stammdaten_Analysenprogramm!AE103="Ja",Stammdaten_Analysenprogramm!A103,"") ->  | B101: =IF(Stammdaten_Analysenprogramm!AE103="Ja",Stammdaten_Analysenprogramm!C103,"") ->  | D101: =IF(A101="","",IF(ISNUMBER(Stammdaten_Analysenprogramm!F103),Stammdaten_Analysenprogramm!F103,"fehlt")) -> 
A102: =IF(Stammdaten_Analysenprogramm!AE104="Ja",Stammdaten_Analysenprogramm!A104,"") ->  | B102: =IF(Stammdaten_Analysenprogramm!AE104="Ja",Stammdaten_Analysenprogramm!C104,"") ->  | D102: =IF(A102="","",IF(ISNUMBER(Stammdaten_Analysenprogramm!F104),Stammdaten_Analysenprogramm!F104,"fehlt")) -> 
A103: =IF(Stammdaten_Analysenprogramm!AE105="Ja",Stammdaten_Analysenprogramm!A105,"") ->  | B103: =IF(Stammdaten_Analysenprogramm!AE105="Ja",Stammdaten_Analysenprogramm!C105,"") ->  | D103: =IF(A103="","",IF(ISNUMBER(Stammdaten_Analysenprogramm!F105),Stammdaten_Analysenprogramm!F105,"fehlt")) -> 
A104: =IF(Stammdaten_Analysenprogramm!AE106="Ja",Stammdaten_Analysenprogramm!A106,"") ->  | B104: =IF(Stammdaten_Analysenprogramm!AE106="Ja",Stammdaten_Analysenprogramm!C106,"") ->  | D104: =IF(A104="","",IF(ISNUMBER(Stammdaten_Analysenprogramm!F106),Stammdaten_Analysenprogramm!F106,"fehlt")) -> 
A105: =IF(Stammdaten_Analysenprogramm!AE107="Ja",Stammdaten_Analysenprogramm!A107,"") ->  | B105: =IF(Stammdaten_Analysenprogramm!AE107="Ja",Stammdaten_Analysenprogramm!C107,"") ->  | D105: =IF(A105="","",IF(ISNUMBER(Stammdaten_Analysenprogramm!F107),Stammdaten_Analysenprogramm!F107,"fehlt")) -> 
A106: =IF(Stammdaten_Analysenprogramm!AE108="Ja",Stammdaten_Analysenprogramm!A108,"") ->  | B106: =IF(Stammdaten_Analysenprogramm!AE108="Ja",Stammdaten_Analysenprogramm!C108,"") ->  | D106: =IF(A106="","",IF(ISNUMBER(Stammdaten_Analysenprogramm!F108),Stammdaten_Analysenprogramm!F108,"fehlt")) -> 
A107: =IF(Stammdaten_Analysenprogramm!AE109="Ja",Stammdaten_Analysenprogramm!A109,"") ->  | B107: =IF(Stammdaten_Analysenprogramm!AE109="Ja",Stammdaten_Analysenprogramm!C109,"") ->  | D107: =IF(A107="","",IF(ISNUMBER(Stammdaten_Analysenprogramm!F109),Stammdaten_Analysenprogramm!F109,"fehlt")) -> 
A108: =IF(Stammdaten_Analysenprogramm!AE110="Ja",Stammdaten_Analysenprogramm!A110,"") ->  | B108: =IF(Stammdaten_Analysenprogramm!AE110="Ja",Stammdaten_Analysenprogramm!C110,"") ->  | D108: =IF(A108="","",IF(ISNUMBER(Stammdaten_Analysenprogramm!F110),Stammdaten_Analysenprogramm!F110,"fehlt")) -> 
A109: =IF(Stammdaten_Analysenprogramm!AE111="Ja",Stammdaten_Analysenprogramm!A111,"") ->  | B109: =IF(Stammdaten_Analysenprogramm!AE111="Ja",Stammdaten_Analysenprogramm!C111,"") ->  | D109: =IF(A109="","",IF(ISNUMBER(Stammdaten_Analysenprogramm!F111),Stammdaten_Analysenprogramm!F111,"fehlt")) -> 
A110: =IF(Stammdaten_Analysenprogramm!AE112="Ja",Stammdaten_Analysenprogramm!A112,"") ->  | B110: =IF(Stammdaten_Analysenprogramm!AE112="Ja",Stammdaten_Analysenprogramm!C112,"") ->  | D110: =IF(A110="","",IF(ISNUMBER(Stammdaten_Analysenprogramm!F112),Stammdaten_Analysenprogramm!F112,"fehlt")) -> 
A111: =IF(Stammdaten_Analysenprogramm!AE113="Ja",Stammdaten_Analysenprogramm!A113,"") ->  | B111: =IF(Stammdaten_Analysenprogramm!AE113="Ja",Stammdaten_Analysenprogramm!C113,"") ->  | D111: =IF(A111="","",IF(ISNUMBER(Stammdaten_Analysenprogramm!F113),Stammdaten_Analysenprogramm!F113,"fehlt")) -> 
A112: =IF(Stammdaten_Analysenprogramm!AE114="Ja",Stammdaten_Analysenprogramm!A114,"") ->  | B112: =IF(Stammdaten_Analysenprogramm!AE114="Ja",Stammdaten_Analysenprogramm!C114,"") ->  | D112: =IF(A112="","",IF(ISNUMBER(Stammdaten_Analysenprogramm!F114),Stammdaten_Analysenprogramm!F114,"fehlt")) -> 
A113: =IF(Stammdaten_Analysenprogramm!AE115="Ja",Stammdaten_Analysenprogramm!A115,"") ->  | B113: =IF(Stammdaten_Analysenprogramm!AE115="Ja",Stammdaten_Analysenprogramm!C115,"") ->  | D113: =IF(A113="","",IF(ISNUMBER(Stammdaten_Analysenprogramm!F115),Stammdaten_Analysenprogramm!F115,"fehlt")) -> 
A114: =IF(Stammdaten_Analysenprogramm!AE116="Ja",Stammdaten_Analysenprogramm!A116,"") ->  | B114: =IF(Stammdaten_Analysenprogramm!AE116="Ja",Stammdaten_Analysenprogramm!C116,"") ->  | D114: =IF(A114="","",IF(ISNUMBER(Stammdaten_Analysenprogramm!F116),Stammdaten_Analysenprogramm!F116,"fehlt")) -> 
A115: =IF(Stammdaten_Analysenprogramm!AE117="Ja",Stammdaten_Analysenprogramm!A117,"") ->  | B115: =IF(Stammdaten_Analysenprogramm!AE117="Ja",Stammdaten_Analysenprogramm!C117,"") ->  | D115: =IF(A115="","",IF(ISNUMBER(Stammdaten_Analysenprogramm!F117),Stammdaten_Analysenprogramm!F117,"fehlt")) -> 
A116: =IF(Stammdaten_Analysenprogramm!AE118="Ja",Stammdaten_Analysenprogramm!A118,"") ->  | B116: =IF(Stammdaten_Analysenprogramm!AE118="Ja",Stammdaten_Analysenprogramm!C118,"") ->  | D116: =IF(A116="","",IF(ISNUMBER(Stammdaten_Analysenprogramm!F118),Stammdaten_Analysenprogramm!F118,"fehlt")) -> 
A117: =IF(Stammdaten_Analysenprogramm!AE119="Ja",Stammdaten_Analysenprogramm!A119,"") ->  | B117: =IF(Stammdaten_Analysenprogramm!AE119="Ja",Stammdaten_Analysenprogramm!C119,"") ->  | D117: =IF(A117="","",IF(ISNUMBER(Stammdaten_Analysenprogramm!F119),Stammdaten_Analysenprogramm!F119,"fehlt")) -> 
A118: =IF(Stammdaten_Analysenprogramm!AE120="Ja",Stammdaten_Analysenprogramm!A120,"") ->  | B118: =IF(Stammdaten_Analysenprogramm!AE120="Ja",Stammdaten_Analysenprogramm!C120,"") ->  | D118: =IF(A118="","",IF(ISNUMBER(Stammdaten_Analysenprogramm!F120),Stammdaten_Analysenprogramm!F120,"fehlt")) -> 
A119: =IF(Stammdaten_Analysenprogramm!AE121="Ja",Stammdaten_Analysenprogramm!A121,"") ->  | B119: =IF(Stammdaten_Analysenprogramm!AE121="Ja",Stammdaten_Analysenprogramm!C121,"") ->  | D119: =IF(A119="","",IF(ISNUMBER(Stammdaten_Analysenprogramm!F121),Stammdaten_Analysenprogramm!F121,"fehlt")) -> 
A120: =IF(Stammdaten_Analysenprogramm!AE122="Ja",Stammdaten_Analysenprogramm!A122,"") ->  | B120: =IF(Stammdaten_Analysenprogramm!AE122="Ja",Stammdaten_Analysenprogramm!C122,"") ->  | D120: =IF(A120="","",IF(ISNUMBER(Stammdaten_Analysenprogramm!F122),Stammdaten_Analysenprogramm!F122,"fehlt")) -> 
A121: =IF(Stammdaten_Analysenprogramm!AE123="Ja",Stammdaten_Analysenprogramm!A123,"") ->  | B121: =IF(Stammdaten_Analysenprogramm!AE123="Ja",Stammdaten_Analysenprogramm!C123,"") ->  | D121: =IF(A121="","",IF(ISNUMBER(Stammdaten_Analysenprogramm!F123),Stammdaten_Analysenprogramm!F123,"fehlt")) -> 
A122: =IF(Stammdaten_Analysenprogramm!AE124="Ja",Stammdaten_Analysenprogramm!A124,"") ->  | B122: =IF(Stammdaten_Analysenprogramm!AE124="Ja",Stammdaten_Analysenprogramm!C124,"") ->  | D122: =IF(A122="","",IF(ISNUMBER(Stammdaten_Analysenprogramm!F124),Stammdaten_Analysenprogramm!F124,"fehlt")) -> 
A123: =IF(Stammdaten_Analysenprogramm!AE125="Ja",Stammdaten_Analysenprogramm!A125,"") ->  | B123: =IF(Stammdaten_Analysenprogramm!AE125="Ja",Stammdaten_Analysenprogramm!C125,"") ->  | D123: =IF(A123="","",IF(ISNUMBER(Stammdaten_Analysenprogramm!F125),Stammdaten_Analysenprogramm!F125,"fehlt")) -> 
A124: =IF(Stammdaten_Analysenprogramm!AE126="Ja",Stammdaten_Analysenprogramm!A126,"") ->  | B124: =IF(Stammdaten_Analysenprogramm!AE126="Ja",Stammdaten_Analysenprogramm!C126,"") ->  | D124: =IF(A124="","",IF(ISNUMBER(Stammdaten_Analysenprogramm!F126),Stammdaten_Analysenprogramm!F126,"fehlt")) -> 
A125: =IF(Stammdaten_Analysenprogramm!AE127="Ja",Stammdaten_Analysenprogramm!A127,"") ->  | B125: =IF(Stammdaten_Analysenprogramm!AE127="Ja",Stammdaten_Analysenprogramm!C127,"") ->  | D125: =IF(A125="","",IF(ISNUMBER(Stammdaten_Analysenprogramm!F127),Stammdaten_Analysenprogramm!F127,"fehlt")) -> 
A126: =IF(Stammdaten_Analysenprogramm!AE128="Ja",Stammdaten_Analysenprogramm!A128,"") ->  | B126: =IF(Stammdaten_Analysenprogramm!AE128="Ja",Stammdaten_Analysenprogramm!C128,"") ->  | D126: =IF(A126="","",IF(ISNUMBER(Stammdaten_Analysenprogramm!F128),Stammdaten_Analysenprogramm!F128,"fehlt")) -> 
A127: =IF(Stammdaten_Analysenprogramm!AE129="Ja",Stammdaten_Analysenprogramm!A129,"") ->  | B127: =IF(Stammdaten_Analysenprogramm!AE129="Ja",Stammdaten_Analysenprogramm!C129,"") ->  | D127: =IF(A127="","",IF(ISNUMBER(Stammdaten_Analysenprogramm!F129),Stammdaten_Analysenprogramm!F129,"fehlt")) -> 
A128: =IF(Stammdaten_Analysenprogramm!AE130="Ja",Stammdaten_Analysenprogramm!A130,"") ->  | B128: =IF(Stammdaten_Analysenprogramm!AE130="Ja",Stammdaten_Analysenprogramm!C130,"") ->  | D128: =IF(A128="","",IF(ISNUMBER(Stammdaten_Analysenprogramm!F130),Stammdaten_Analysenprogramm!F130,"fehlt")) -> 
A129: =IF(Stammdaten_Analysenprogramm!AE131="Ja",Stammdaten_Analysenprogramm!A131,"") ->  | B129: =IF(Stammdaten_Analysenprogramm!AE131="Ja",Stammdaten_Analysenprogramm!C131,"") ->  | D129: =IF(A129="","",IF(ISNUMBER(Stammdaten_Analysenprogramm!F131),Stammdaten_Analysenprogramm!F131,"fehlt")) -> 
A130: =IF(Stammdaten_Analysenprogramm!AE132="Ja",Stammdaten_Analysenprogramm!A132,"") ->  | B130: =IF(Stammdaten_Analysenprogramm!AE132="Ja",Stammdaten_Analysenprogramm!C132,"") ->  | D130: =IF(A130="","",IF(ISNUMBER(Stammdaten_Analysenprogramm!F132),Stammdaten_Analysenprogramm!F132,"fehlt")) -> 
A131: =IF(Stammdaten_Analysenprogramm!AE133="Ja",Stammdaten_Analysenprogramm!A133,"") ->  | B131: =IF(Stammdaten_Analysenprogramm!AE133="Ja",Stammdaten_Analysenprogramm!C133,"") ->  | D131: =IF(A131="","",IF(ISNUMBER(Stammdaten_Analysenprogramm!F133),Stammdaten_Analysenprogramm!F133,"fehlt")) -> 
A132: =IF(Stammdaten_Analysenprogramm!AE134="Ja",Stammdaten_Analysenprogramm!A134,"") ->  | B132: =IF(Stammdaten_Analysenprogramm!AE134="Ja",Stammdaten_Analysenprogramm!C134,"") ->  | D132: =IF(A132="","",IF(ISNUMBER(Stammdaten_Analysenprogramm!F134),Stammdaten_Analysenprogramm!F134,"fehlt")) -> 
A133: =IF(Stammdaten_Analysenprogramm!AE135="Ja",Stammdaten_Analysenprogramm!A135,"") ->  | B133: =IF(Stammdaten_Analysenprogramm!AE135="Ja",Stammdaten_Analysenprogramm!C135,"") ->  | D133: =IF(A133="","",IF(ISNUMBER(Stammdaten_Analysenprogramm!F135),Stammdaten_Analysenprogramm!F135,"fehlt")) -> 
A134: =IF(Stammdaten_Analysenprogramm!AE136="Ja",Stammdaten_Analysenprogramm!A136,"") ->  | B134: =IF(Stammdaten_Analysenprogramm!AE136="Ja",Stammdaten_Analysenprogramm!C136,"") ->  | C134: =A134 ->  | D134: =IF(A134="","",IF(ISNUMBER(Stammdaten_Analysenprogramm!F136),Stammdaten_Analysenprogramm!F136,"fehlt")) ->  | M134: =IF(AND(ISNUMBER(L134),ISNUMBER(D134)),D134-L134,"") -> 
A135: =IF(Stammdaten_Analysenprogramm!AE137="Ja",Stammdaten_Analysenprogramm!A137,"") ->  | B135: =IF(Stammdaten_Analysenprogramm!AE137="Ja",Stammdaten_Analysenprogramm!C137,"") ->  | D135: =IF(A135="","",IF(ISNUMBER(Stammdaten_Analysenprogramm!F137),Stammdaten_Analysenprogramm!F137,"fehlt")) -> 
A136: =IF(Stammdaten_Analysenprogramm!AE138="Ja",Stammdaten_Analysenprogramm!A138,"") ->  | B136: =IF(Stammdaten_Analysenprogramm!AE138="Ja",Stammdaten_Analysenprogramm!C138,"") ->  | D136: =IF(A136="","",IF(ISNUMBER(Stammdaten_Analysenprogramm!F138),Stammdaten_Analysenprogramm!F138,"fehlt")) -> 
A137: =IF(Stammdaten_Analysenprogramm!AE139="Ja",Stammdaten_Analysenprogramm!A139,"") ->  | B137: =IF(Stammdaten_Analysenprogramm!AE139="Ja",Stammdaten_Analysenprogramm!C139,"") ->  | D137: =IF(A137="","",IF(ISNUMBER(Stammdaten_Analysenprogramm!F139),Stammdaten_Analysenprogramm!F139,"fehlt")) -> 
A138: =IF(Stammdaten_Analysenprogramm!AE140="Ja",Stammdaten_Analysenprogramm!A140,"") ->  | B138: =IF(Stammdaten_Analysenprogramm!AE140="Ja",Stammdaten_Analysenprogramm!C140,"") ->  | D138: =IF(A138="","",IF(ISNUMBER(Stammdaten_Analysenprogramm!F140),Stammdaten_Analysenprogramm!F140,"fehlt")) -> 
A139: =IF(Stammdaten_Analysenprogramm!AE141="Ja",Stammdaten_Analysenprogramm!A141,"") ->  | B139: =IF(Stammdaten_Analysenprogramm!AE141="Ja",Stammdaten_Analysenprogramm!C141,"") ->  | D139: =IF(A139="","",IF(ISNUMBER(Stammdaten_Analysenprogramm!F141),Stammdaten_Analysenprogramm!F141,"fehlt")) -> 
A140: =IF(Stammdaten_Analysenprogramm!AE142="Ja",Stammdaten_Analysenprogramm!A142,"") ->  | B140: =IF(Stammdaten_Analysenprogramm!AE142="Ja",Stammdaten_Analysenprogramm!C142,"") ->  | D140: =IF(A140="","",IF(ISNUMBER(Stammdaten_Analysenprogramm!F142),Stammdaten_Analysenprogramm!F142,"fehlt")) -> 
A141: =IF(Stammdaten_Analysenprogramm!AE143="Ja",Stammdaten_Analysenprogramm!A143,"") ->  | B141: =IF(Stammdaten_Analysenprogramm!AE143="Ja",Stammdaten_Analysenprogramm!C143,"") ->  | D141: =IF(A141="","",IF(ISNUMBER(Stammdaten_Analysenprogramm!F143),Stammdaten_Analysenprogramm!F143,"fehlt")) -> 
A142: =IF(Stammdaten_Analysenprogramm!AE144="Ja",Stammdaten_Analysenprogramm!A144,"") ->  | B142: =IF(Stammdaten_Analysenprogramm!AE144="Ja",Stammdaten_Analysenprogramm!C144,"") ->  | D142: =IF(A142="","",IF(ISNUMBER(Stammdaten_Analysenprogramm!F144),Stammdaten_Analysenprogramm!F144,"fehlt")) -> 
A143: =IF(Stammdaten_Analysenprogramm!AE145="Ja",Stammdaten_Analysenprogramm!A145,"") ->  | B143: =IF(Stammdaten_Analysenprogramm!AE145="Ja",Stammdaten_Analysenprogramm!C145,"") ->  | D143: =IF(A143="","",IF(ISNUMBER(Stammdaten_Analysenprogramm!F145),Stammdaten_Analysenprogramm!F145,"fehlt")) -> 
A144: =IF(Stammdaten_Analysenprogramm!AE146="Ja",Stammdaten_Analysenprogramm!A146,"") ->  | B144: =IF(Stammdaten_Analysenprogramm!AE146="Ja",Stammdaten_Analysenprogramm!C146,"") ->  | D144: =IF(A144="","",IF(ISNUMBER(Stammdaten_Analysenprogramm!F146),Stammdaten_Analysenprogramm!F146,"fehlt")) -> 
A145: =IF(Stammdaten_Analysenprogramm!AE147="Ja",Stammdaten_Analysenprogramm!A147,"") ->  | B145: =IF(Stammdaten_Analysenprogramm!AE147="Ja",Stammdaten_Analysenprogramm!C147,"") ->  | D145: =IF(A145="","",IF(ISNUMBER(Stammdaten_Analysenprogramm!F147),Stammdaten_Analysenprogramm!F147,"fehlt")) -> 
A146: =IF(Stammdaten_Analysenprogramm!AE148="Ja",Stammdaten_Analysenprogramm!A148,"") ->  | B146: =IF(Stammdaten_Analysenprogramm!AE148="Ja",Stammdaten_Analysenprogramm!C148,"") ->  | D146: =IF(A146="","",IF(ISNUMBER(Stammdaten_Analysenprogramm!F148),Stammdaten_Analysenprogramm!F148,"fehlt")) -> 
A147: =IF(Stammdaten_Analysenprogramm!AE149="Ja",Stammdaten_Analysenprogramm!A149,"") ->  | B147: =IF(Stammdaten_Analysenprogramm!AE149="Ja",Stammdaten_Analysenprogramm!C149,"") ->  | D147: =IF(A147="","",IF(ISNUMBER(Stammdaten_Analysenprogramm!F149),Stammdaten_Analysenprogramm!F149,"fehlt")) -> 
A148: =IF(Stammdaten_Analysenprogramm!AE150="Ja",Stammdaten_Analysenprogramm!A150,"") ->  | B148: =IF(Stammdaten_Analysenprogramm!AE150="Ja",Stammdaten_Analysenprogramm!C150,"") ->  | D148: =IF(A148="","",IF(ISNUMBER(Stammdaten_Analysenprogramm!F150),Stammdaten_Analysenprogramm!F150,"fehlt")) -> 
A149: =IF(Stammdaten_Analysenprogramm!AE151="Ja",Stammdaten_Analysenprogramm!A151,"") ->  | B149: =IF(Stammdaten_Analysenprogramm!AE151="Ja",Stammdaten_Analysenprogramm!C151,"") ->  | D149: =IF(A149="","",IF(ISNUMBER(Stammdaten_Analysenprogramm!F151),Stammdaten_Analysenprogramm!F151,"fehlt")) -> 
A150: =IF(Stammdaten_Analysenprogramm!AE152="Ja",Stammdaten_Analysenprogramm!A152,"") ->  | B150: =IF(Stammdaten_Analysenprogramm!AE152="Ja",Stammdaten_Analysenprogramm!C152,"") ->  | D150: =IF(A150="","",IF(ISNUMBER(Stammdaten_Analysenprogramm!F152),Stammdaten_Analysenprogramm!F152,"fehlt")) -> 
A151: =IF(Stammdaten_Analysenprogramm!AE153="Ja",Stammdaten_Analysenprogramm!A153,"") ->  | B151: =IF(Stammdaten_Analysenprogramm!AE153="Ja",Stammdaten_Analysenprogramm!C153,"") ->  | D151: =IF(A151="","",IF(ISNUMBER(Stammdaten_Analysenprogramm!F153),Stammdaten_Analysenprogramm!F153,"fehlt")) -> 
A152: =IF(Stammdaten_Analysenprogramm!AE154="Ja",Stammdaten_Analysenprogramm!A154,"") ->  | B152: =IF(Stammdaten_Analysenprogramm!AE154="Ja",Stammdaten_Analysenprogramm!C154,"") ->  | D152: =IF(A152="","",IF(ISNUMBER(Stammdaten_Analysenprogramm!F154),Stammdaten_Analysenprogramm!F154,"fehlt")) -> 
A153: =IF(Stammdaten_Analysenprogramm!AE155="Ja",Stammdaten_Analysenprogramm!A155,"") ->  | B153: =IF(Stammdaten_Analysenprogramm!AE155="Ja",Stammdaten_Analysenprogramm!C155,"") ->  | D153: =IF(A153="","",IF(ISNUMBER(Stammdaten_Analysenprogramm!F155),Stammdaten_Analysenprogramm!F155,"fehlt")) -> 
A154: =IF(Stammdaten_Analysenprogramm!AE156="Ja",Stammdaten_Analysenprogramm!A156,"") ->  | B154: =IF(Stammdaten_Analysenprogramm!AE156="Ja",Stammdaten_Analysenprogramm!C156,"") ->  | D154: =IF(A154="","",IF(ISNUMBER(Stammdaten_Analysenprogramm!F156),Stammdaten_Analysenprogramm!F156,"fehlt")) -> 
A155: =IF(Stammdaten_Analysenprogramm!AE157="Ja",Stammdaten_Analysenprogramm!A157,"") ->  | B155: =IF(Stammdaten_Analysenprogramm!AE157="Ja",Stammdaten_Analysenprogramm!C157,"") ->  | D155: =IF(A155="","",IF(ISNUMBER(Stammdaten_Analysenprogramm!F157),Stammdaten_Analysenprogramm!F157,"fehlt")) -> 
A156: =IF(Stammdaten_Analysenprogramm!AE158="Ja",Stammdaten_Analysenprogramm!A158,"") ->  | B156: =IF(Stammdaten_Analysenprogramm!AE158="Ja",Stammdaten_Analysenprogramm!C158,"") ->  | D156: =IF(A156="","",IF(ISNUMBER(Stammdaten_Analysenprogramm!F158),Stammdaten_Analysenprogramm!F158,"fehlt")) -> 
A157: =IF(Stammdaten_Analysenprogramm!AE159="Ja",Stammdaten_Analysenprogramm!A159,"") ->  | B157: =IF(Stammdaten_Analysenprogramm!AE159="Ja",Stammdaten_Analysenprogramm!C159,"") ->  | D157: =IF(A157="","",IF(ISNUMBER(Stammdaten_Analysenprogramm!F159),Stammdaten_Analysenprogramm!F159,"fehlt")) -> 
A158: =IF(Stammdaten_Analysenprogramm!AE160="Ja",Stammdaten_Analysenprogramm!A160,"") ->  | B158: =IF(Stammdaten_Analysenprogramm!AE160="Ja",Stammdaten_Analysenprogramm!C160,"") ->  | D158: =IF(A158="","",IF(ISNUMBER(Stammdaten_Analysenprogramm!F160),Stammdaten_Analysenprogramm!F160,"fehlt")) -> 
A159: =IF(Stammdaten_Analysenprogramm!AE161="Ja",Stammdaten_Analysenprogramm!A161,"") ->  | B159: =IF(Stammdaten_Analysenprogramm!AE161="Ja",Stammdaten_Analysenprogramm!C161,"") ->  | D159: =IF(A159="","",IF(ISNUMBER(Stammdaten_Analysenprogramm!F161),Stammdaten_Analysenprogramm!F161,"fehlt")) -> 
A160: =IF(Stammdaten_Analysenprogramm!AE162="Ja",Stammdaten_Analysenprogramm!A162,"") ->  | B160: =IF(Stammdaten_Analysenprogramm!AE162="Ja",Stammdaten_Analysenprogramm!C162,"") ->  | D160: =IF(A160="","",IF(ISNUMBER(Stammdaten_Analysenprogramm!F162),Stammdaten_Analysenprogramm!F162,"fehlt")) -> 
A161: =IF(Stammdaten_Analysenprogramm!AE163="Ja",Stammdaten_Analysenprogramm!A163,"") ->  | B161: =IF(Stammdaten_Analysenprogramm!AE163="Ja",Stammdaten_Analysenprogramm!C163,"") ->  | D161: =IF(A161="","",IF(ISNUMBER(Stammdaten_Analysenprogramm!F163),Stammdaten_Analysenprogramm!F163,"fehlt")) -> 
A162: =IF(Stammdaten_Analysenprogramm!AE164="Ja",Stammdaten_Analysenprogramm!A164,"") ->  | B162: =IF(Stammdaten_Analysenprogramm!AE164="Ja",Stammdaten_Analysenprogramm!C164,"") ->  | D162: =IF(A162="","",IF(ISNUMBER(Stammdaten_Analysenprogramm!F164),Stammdaten_Analysenprogramm!F164,"fehlt")) -> 
A163: =IF(Stammdaten_Analysenprogramm!AE165="Ja",Stammdaten_Analysenprogramm!A165,"") ->  | B163: =IF(Stammdaten_Analysenprogramm!AE165="Ja",Stammdaten_Analysenprogramm!C165,"") ->  | D163: =IF(A163="","",IF(ISNUMBER(Stammdaten_Analysenprogramm!F165),Stammdaten_Analysenprogramm!F165,"fehlt")) -> 
A164: =IF(Stammdaten_Analysenprogramm!AE166="Ja",Stammdaten_Analysenprogramm!A166,"") ->  | B164: =IF(Stammdaten_Analysenprogramm!AE166="Ja",Stammdaten_Analysenprogramm!C166,"") ->  | D164: =IF(A164="","",IF(ISNUMBER(Stammdaten_Analysenprogramm!F166),Stammdaten_Analysenprogramm!F166,"fehlt")) -> 
A165: =IF(Stammdaten_Analysenprogramm!AE167="Ja",Stammdaten_Analysenprogramm!A167,"") ->  | B165: =IF(Stammdaten_Analysenprogramm!AE167="Ja",Stammdaten_Analysenprogramm!C167,"") ->  | D165: =IF(A165="","",IF(ISNUMBER(Stammdaten_Analysenprogramm!F167),Stammdaten_Analysenprogramm!F167,"fehlt")) -> 
A166: =IF(Stammdaten_Analysenprogramm!AE168="Ja",Stammdaten_Analysenprogramm!A168,"") ->  | B166: =IF(Stammdaten_Analysenprogramm!AE168="Ja",Stammdaten_Analysenprogramm!C168,"") ->  | D166: =IF(A166="","",IF(ISNUMBER(Stammdaten_Analysenprogramm!F168),Stammdaten_Analysenprogramm!F168,"fehlt")) -> 
A167: =IF(Stammdaten_Analysenprogramm!AE169="Ja",Stammdaten_Analysenprogramm!A169,"") ->  | B167: =IF(Stammdaten_Analysenprogramm!AE169="Ja",Stammdaten_Analysenprogramm!C169,"") ->  | D167: =IF(A167="","",IF(ISNUMBER(Stammdaten_Analysenprogramm!F169),Stammdaten_Analysenprogramm!F169,"fehlt")) -> 
A168: =IF(Stammdaten_Analysenprogramm!AE170="Ja",Stammdaten_Analysenprogramm!A170,"") ->  | B168: =IF(Stammdaten_Analysenprogramm!AE170="Ja",Stammdaten_Analysenprogramm!C170,"") ->  | D168: =IF(A168="","",IF(ISNUMBER(Stammdaten_Analysenprogramm!F170),Stammdaten_Analysenprogramm!F170,"fehlt")) -> 
A169: =IF(Stammdaten_Analysenprogramm!AE171="Ja",Stammdaten_Analysenprogramm!A171,"") ->  | B169: =IF(Stammdaten_Analysenprogramm!AE171="Ja",Stammdaten_Analysenprogramm!C171,"") ->  | D169: =IF(A169="","",IF(ISNUMBER(Stammdaten_Analysenprogramm!F171),Stammdaten_Analysenprogramm!F171,"fehlt")) -> 
A170: =IF(Stammdaten_Analysenprogramm!AE172="Ja",Stammdaten_Analysenprogramm!A172,"") ->  | B170: =IF(Stammdaten_Analysenprogramm!AE172="Ja",Stammdaten_Analysenprogramm!C172,"") ->  | D170: =IF(A170="","",IF(ISNUMBER(Stammdaten_Analysenprogramm!F172),Stammdaten_Analysenprogramm!F172,"fehlt")) -> 
A171: =IF(Stammdaten_Analysenprogramm!AE173="Ja",Stammdaten_Analysenprogramm!A173,"") ->  | B171: =IF(Stammdaten_Analysenprogramm!AE173="Ja",Stammdaten_Analysenprogramm!C173,"") ->  | D171: =IF(A171="","",IF(ISNUMBER(Stammdaten_Analysenprogramm!F173),Stammdaten_Analysenprogramm!F173,"fehlt")) -> 
A172: =IF(Stammdaten_Analysenprogramm!AE174="Ja",Stammdaten_Analysenprogramm!A174,"") ->  | B172: =IF(Stammdaten_Analysenprogramm!AE174="Ja",Stammdaten_Analysenprogramm!C174,"") ->  | D172: =IF(A172="","",IF(ISNUMBER(Stammdaten_Analysenprogramm!F174),Stammdaten_Analysenprogramm!F174,"fehlt")) -> 
A173: =IF(Stammdaten_Analysenprogramm!AE175="Ja",Stammdaten_Analysenprogramm!A175,"") ->  | B173: =IF(Stammdaten_Analysenprogramm!AE175="Ja",Stammdaten_Analysenprogramm!C175,"") ->  | D173: =IF(A173="","",IF(ISNUMBER(Stammdaten_Analysenprogramm!F175),Stammdaten_Analysenprogramm!F175,"fehlt")) -> 
A174: =IF(Stammdaten_Analysenprogramm!AE176="Ja",Stammdaten_Analysenprogramm!A176,"") ->  | B174: =IF(Stammdaten_Analysenprogramm!AE176="Ja",Stammdaten_Analysenprogramm!C176,"") ->  | D174: =IF(A174="","",IF(ISNUMBER(Stammdaten_Analysenprogramm!F176),Stammdaten_Analysenprogramm!F176,"fehlt")) -> 
A175: =IF(Stammdaten_Analysenprogramm!AE177="Ja",Stammdaten_Analysenprogramm!A177,"") ->  | B175: =IF(Stammdaten_Analysenprogramm!AE177="Ja",Stammdaten_Analysenprogramm!C177,"") ->  | D175: =IF(A175="","",IF(ISNUMBER(Stammdaten_Analysenprogramm!F177),Stammdaten_Analysenprogramm!F177,"fehlt")) -> 
A176: =IF(Stammdaten_Analysenprogramm!AE178="Ja",Stammdaten_Analysenprogramm!A178,"") ->  | B176: =IF(Stammdaten_Analysenprogramm!AE178="Ja",Stammdaten_Analysenprogramm!C178,"") ->  | D176: =IF(A176="","",IF(ISNUMBER(Stammdaten_Analysenprogramm!F178),Stammdaten_Analysenprogramm!F178,"fehlt")) -> 
A177: =IF(Stammdaten_Analysenprogramm!AE179="Ja",Stammdaten_Analysenprogramm!A179,"") ->  | B177: =IF(Stammdaten_Analysenprogramm!AE179="Ja",Stammdaten_Analysenprogramm!C179,"") ->  | D177: =IF(A177="","",IF(ISNUMBER(Stammdaten_Analysenprogramm!F179),Stammdaten_Analysenprogramm!F179,"fehlt")) -> 
A178: =IF(Stammdaten_Analysenprogramm!AE180="Ja",Stammdaten_Analysenprogramm!A180,"") ->  | B178: =IF(Stammdaten_Analysenprogramm!AE180="Ja",Stammdaten_Analysenprogramm!C180,"") ->  | D178: =IF(A178="","",IF(ISNUMBER(Stammdaten_Analysenprogramm!F180),Stammdaten_Analysenprogramm!F180,"fehlt")) -> 
A179: =IF(Stammdaten_Analysenprogramm!AE181="Ja",Stammdaten_Analysenprogramm!A181,"") ->  | B179: =IF(Stammdaten_Analysenprogramm!AE181="Ja",Stammdaten_Analysenprogramm!C181,"") ->  | D179: =IF(A179="","",IF(ISNUMBER(Stammdaten_Analysenprogramm!F181),Stammdaten_Analysenprogramm!F181,"fehlt")) -> 
A180: =IF(Stammdaten_Analysenprogramm!AE182="Ja",Stammdaten_Analysenprogramm!A182,"") ->  | B180: =IF(Stammdaten_Analysenprogramm!AE182="Ja",Stammdaten_Analysenprogramm!C182,"") ->  | D180: =IF(A180="","",IF(ISNUMBER(Stammdaten_Analysenprogramm!F182),Stammdaten_Analysenprogramm!F182,"fehlt")) -> 
A181: =IF(Stammdaten_Analysenprogramm!AE183="Ja",Stammdaten_Analysenprogramm!A183,"") ->  | B181: =IF(Stammdaten_Analysenprogramm!AE183="Ja",Stammdaten_Analysenprogramm!C183,"") ->  | D181: =IF(A181="","",IF(ISNUMBER(Stammdaten_Analysenprogramm!F183),Stammdaten_Analysenprogramm!F183,"fehlt")) -> 
A182: =IF(Stammdaten_Analysenprogramm!AE184="Ja",Stammdaten_Analysenprogramm!A184,"") ->  | B182: =IF(Stammdaten_Analysenprogramm!AE184="Ja",Stammdaten_Analysenprogramm!C184,"") ->  | D182: =IF(A182="","",IF(ISNUMBER(Stammdaten_Analysenprogramm!F184),Stammdaten_Analysenprogramm!F184,"fehlt")) -> 
A183: =IF(Stammdaten_Analysenprogramm!AE185="Ja",Stammdaten_Analysenprogramm!A185,"") ->  | B183: =IF(Stammdaten_Analysenprogramm!AE185="Ja",Stammdaten_Analysenprogramm!C185,"") ->  | D183: =IF(A183="","",IF(ISNUMBER(Stammdaten_Analysenprogramm!F185),Stammdaten_Analysenprogramm!F185,"fehlt")) -> 
A184: =IF(Stammdaten_Analysenprogramm!AE186="Ja",Stammdaten_Analysenprogramm!A186,"") ->  | B184: =IF(Stammdaten_Analysenprogramm!AE186="Ja",Stammdaten_Analysenprogramm!C186,"") ->  | D184: =IF(A184="","",IF(ISNUMBER(Stammdaten_Analysenprogramm!F186),Stammdaten_Analysenprogramm!F186,"fehlt")) -> 
A185: =IF(Stammdaten_Analysenprogramm!AE187="Ja",Stammdaten_Analysenprogramm!A187,"") ->  | B185: =IF(Stammdaten_Analysenprogramm!AE187="Ja",Stammdaten_Analysenprogramm!C187,"") ->  | D185: =IF(A185="","",IF(ISNUMBER(Stammdaten_Analysenprogramm!F187),Stammdaten_Analysenprogramm!F187,"fehlt")) -> 
A186: =IF(Stammdaten_Analysenprogramm!AE188="Ja",Stammdaten_Analysenprogramm!A188,"") ->  | B186: =IF(Stammdaten_Analysenprogramm!AE188="Ja",Stammdaten_Analysenprogramm!C188,"") ->  | D186: =IF(A186="","",IF(ISNUMBER(Stammdaten_Analysenprogramm!F188),Stammdaten_Analysenprogramm!F188,"fehlt")) -> 
A187: =IF(Stammdaten_Analysenprogramm!AE189="Ja",Stammdaten_Analysenprogramm!A189,"") ->  | B187: =IF(Stammdaten_Analysenprogramm!AE189="Ja",Stammdaten_Analysenprogramm!C189,"") ->  | D187: =IF(A187="","",IF(ISNUMBER(Stammdaten_Analysenprogramm!F189),Stammdaten_Analysenprogramm!F189,"fehlt")) -> 
A188: =IF(Stammdaten_Analysenprogramm!AE190="Ja",Stammdaten_Analysenprogramm!A190,"") ->  | B188: =IF(Stammdaten_Analysenprogramm!AE190="Ja",Stammdaten_Analysenprogramm!C190,"") ->  | D188: =IF(A188="","",IF(ISNUMBER(Stammdaten_Analysenprogramm!F190),Stammdaten_Analysenprogramm!F190,"fehlt")) -> 
A189: =IF(Stammdaten_Analysenprogramm!AE191="Ja",Stammdaten_Analysenprogramm!A191,"") ->  | B189: =IF(Stammdaten_Analysenprogramm!AE191="Ja",Stammdaten_Analysenprogramm!C191,"") ->  | D189: =IF(A189="","",IF(ISNUMBER(Stammdaten_Analysenprogramm!F191),Stammdaten_Analysenprogramm!F191,"fehlt")) -> 
A190: =IF(Stammdaten_Analysenprogramm!AE192="Ja",Stammdaten_Analysenprogramm!A192,"") ->  | B190: =IF(Stammdaten_Analysenprogramm!AE192="Ja",Stammdaten_Analysenprogramm!C192,"") ->  | D190: =IF(A190="","",IF(ISNUMBER(Stammdaten_Analysenprogramm!F192),Stammdaten_Analysenprogramm!F192,"fehlt")) -> 
A191: =IF(Stammdaten_Analysenprogramm!AE193="Ja",Stammdaten_Analysenprogramm!A193,"") ->  | B191: =IF(Stammdaten_Analysenprogramm!AE193="Ja",Stammdaten_Analysenprogramm!C193,"") ->  | D191: =IF(A191="","",IF(ISNUMBER(Stammdaten_Analysenprogramm!F193),Stammdaten_Analysenprogramm!F193,"fehlt")) -> 
A192: =IF(Stammdaten_Analysenprogramm!AE194="Ja",Stammdaten_Analysenprogramm!A194,"") ->  | B192: =IF(Stammdaten_Analysenprogramm!AE194="Ja",Stammdaten_Analysenprogramm!C194,"") ->  | D192: =IF(A192="","",IF(ISNUMBER(Stammdaten_Analysenprogramm!F194),Stammdaten_Analysenprogramm!F194,"fehlt")) -> 
A193: =IF(Stammdaten_Analysenprogramm!AE195="Ja",Stammdaten_Analysenprogramm!A195,"") ->  | B193: =IF(Stammdaten_Analysenprogramm!AE195="Ja",Stammdaten_Analysenprogramm!C195,"") ->  | D193: =IF(A193="","",IF(ISNUMBER(Stammdaten_Analysenprogramm!F195),Stammdaten_Analysenprogramm!F195,"fehlt")) -> 
A194: =IF(Stammdaten_Analysenprogramm!AE196="Ja",Stammdaten_Analysenprogramm!A196,"") ->  | B194: =IF(Stammdaten_Analysenprogramm!AE196="Ja",Stammdaten_Analysenprogramm!C196,"") ->  | D194: =IF(A194="","",IF(ISNUMBER(Stammdaten_Analysenprogramm!F196),Stammdaten_Analysenprogramm!F196,"fehlt")) -> 
A195: =IF(Stammdaten_Analysenprogramm!AE197="Ja",Stammdaten_Analysenprogramm!A197,"") ->  | B195: =IF(Stammdaten_Analysenprogramm!AE197="Ja",Stammdaten_Analysenprogramm!C197,"") ->  | D195: =IF(A195="","",IF(ISNUMBER(Stammdaten_Analysenprogramm!F197),Stammdaten_Analysenprogramm!F197,"fehlt")) -> 
A196: =IF(Stammdaten_Analysenprogramm!AE198="Ja",Stammdaten_Analysenprogramm!A198,"") ->  | B196: =IF(Stammdaten_Analysenprogramm!AE198="Ja",Stammdaten_Analysenprogramm!C198,"") ->  | D196: =IF(A196="","",IF(ISNUMBER(Stammdaten_Analysenprogramm!F198),Stammdaten_Analysenprogramm!F198,"fehlt")) -> 
A197: =IF(Stammdaten_Analysenprogramm!AE199="Ja",Stammdaten_Analysenprogramm!A199,"") ->  | B197: =IF(Stammdaten_Analysenprogramm!AE199="Ja",Stammdaten_Analysenprogramm!C199,"") ->  | D197: =IF(A197="","",IF(ISNUMBER(Stammdaten_Analysenprogramm!F199),Stammdaten_Analysenprogramm!F199,"fehlt")) -> 
A198: =IF(Stammdaten_Analysenprogramm!AE200="Ja",Stammdaten_Analysenprogramm!A200,"") ->  | B198: =IF(Stammdaten_Analysenprogramm!AE200="Ja",Stammdaten_Analysenprogramm!C200,"") ->  | C198: =A198 ->  | D198: =IF(A198="","",IF(ISNUMBER(Stammdaten_Analysenprogramm!F200),Stammdaten_Analysenprogramm!F200,"fehlt")) ->  | M198: =IF(AND(ISNUMBER(L198),ISNUMBER(D198)),D198-L198,"") -> 
A199: =IF(Stammdaten_Analysenprogramm!AE201="Ja",Stammdaten_Analysenprogramm!A201,"") ->  | B199: =IF(Stammdaten_Analysenprogramm!AE201="Ja",Stammdaten_Analysenprogramm!C201,"") ->  | D199: =IF(A199="","",IF(ISNUMBER(Stammdaten_Analysenprogramm!F201),Stammdaten_Analysenprogramm!F201,"fehlt")) -> 
A200: =IF(Stammdaten_Analysenprogramm!AE202="Ja",Stammdaten_Analysenprogramm!A202,"") ->  | B200: =IF(Stammdaten_Analysenprogramm!AE202="Ja",Stammdaten_Analysenprogramm!C202,"") ->  | D200: =IF(A200="","",IF(ISNUMBER(Stammdaten_Analysenprogramm!F202),Stammdaten_Analysenprogramm!F202,"fehlt")) -> 
... 64 more rows

Sheet Parameter
A1: Schadstoffgruppe | B1: Parameter lang | C1: Schlüssel GeODin | D1: Einheit | F1: Note: Parameterliste kann jederzeit ergänzt werden. GeoDIN-Schlüssel und Einheit in GeoDIN können sich je nach verwendeten Datentyp unterscheiden. | U1: Stand: | V1: 2023-04-14
A2: Aldehyde | B2: Formaldehyd | C2: FORMALDEH | D2: µg/L
A3: Aldehyde | B3: Benzaldehyd | C3: BENZALDEH | D3: µg/L
A4: aliphatische KW | B4: n-Hexan | C4: N_HEXAN | D4: µg/L
A5: aliphatische KW | B5: iso-Oktan | C5: ISO_OKTAN | D5: µg/L
A6: aliphatische KW | B6: n-Oktan | C6: N_OKTAN | D6: µg/L
A7: aliphatische KW | B7: n-Heptan | C7: N_HEPTAN | D7: µg/L
A8: aliphatische KW | B8: Methan | C8: METHAN | D8: µg/L
A9: aliphatische KW | B9: Ethan | C9: ETHAN | D9: µg/L
A10: aliphatische KW | B10: Propan | C10: PROPAN | D10: µg/L
A11: aliphatische KW | B11: n-Butan | C11: BUTAN | D11: µg/L
A12: aliphatische KW | B12: n-Pentan | C12: PENTAN | D12: µg/L
A13: aliphatische KW | B13: n-Nonan | C13: NONAN | D13: µg/L
A14: aliphatische KW | B14: n-Dekan | C14: DEKAN | D14: µg/L
A15: aliphatische KW | B15: Ethen | C15: ETHEN | D15: µg/L
A16: aliphatische KW | B16: Isobutan | C16: ISOBUTAN | D16: µg/L
A17: aliphatische KW | B17: n-Hexadekan | C17: HEHADEKAN | D17: µg/L
A18: aliphatische KW | B18: n-Dodekan | C18: DODEKAN | D18: µg/L
A19: aliphatische KW | B19: n-Undekan | C19: UNDEKAN | D19: µg/L
A20: Alkohole | B20: 1-Hexanol | C20: HEXANOL_1 | D20: mg/L
A21: Alkohole | B21: 2-Hexanol | C21: HEXANOL_2 | D21: mg/L
A22: Alkohole | B22: 3-Hexanol | C22: HEXANOL_3 | D22: mg/L
A23: Alkohole | B23: Glykol | C23: GLYKOL | D23: mg/L
A24: Alkohole | B24: Isopropanol | C24: ISOPROP | D24: mg/L
A25: Alkohole | B25: Methanol | C25: METHANOL | D25: mg/L
A26: Alkohole | B26: n-Propanol | C26: PROPANOL_N | D26: mg/L
A27: Alkohole | B27: n-Butanol | C27: BUTANOL_N | D27: mg/L
A28: Alkohole | B28: Ethanol | C28: ETHANOL | D28: mg/L
A29: Amine | B29: Triethylamin | C29: TRIETHYLAM | D29: µg/L
A30: Amine | B30: 2,3-Naphthylendiamin | C30: NAPHDIAM23 | D30: µg/L
A31: Amine | B31: Methylamin | C31: METAMIN | D31: µg/L
A32: Amine | B32: Dimethylamin | C32: DIMETAM | D32: µg/L
A33: Amine | B33: Ethylamin | C33: ETAMIN | D33: µg/L
A34: Amine | B34: Diethylamin | C34: DIETAMIN | D34: µg/L
A35: Amine | B35: n-Propylamin | C35: NPROPYLAM | D35: µg/L
A36: Amine | B36: n-Butylamin | C36: NBUTYLAM | D36: µg/L
A37: Amine | B37: Cyclohexylamin | C37: CYLCOHEXAM | D37: µg/L
A38: Amine | B38: Ethanolamin | C38: ETHANOLAM | D38: µg/L
A39: Amine | B39: Diethanolamin | C39: DIETHAM | D39: µg/L
A40: Aniline | B40: Anilin | C40: ANILIN | D40: µg/L
A41: Aniline | B41: 2-Methylanilin (o-Toluidin) | C41: METANIL2 | D41: µg/L
A42: Aniline | B42: 3-Methylanilin (m-Toluidin) | C42: METANIL3 | D42: µg/L
A43: Aniline | B43: 4-Methylanilin (p-Toluidin) | C43: METANIL4 | D43: µg/L
A44: Aniline | B44: 2,3,4-Methylanilin | C44: METHANL234 | D44: µg/L
A45: Aniline | B45: 2,3-Dimethylanilin | C45: DIMETANL23 | D45: µg/L
A46: Aniline | B46: 2,4-Dimethylanilin | C46: DIMETANL24 | D46: µg/L
A47: Aniline | B47: 2,5-Dimethylanilin | C47: DIMETANL25 | D47: µg/L
A48: Aniline | B48: 2,6-Dimethylanilin | C48: DIMETANL26 | D48: µg/L
A49: Aniline | B49: 3,4-Dimethylanilin | C49: DIMETANL34 | D49: µg/L
A50: Aniline | B50: 3,5-Dimethylanilin | C50: DIMETANL35 | D50: µg/L
A51: Aniline | B51: 2,5/2,6/3,5-Dimethylanilin | C51: DIMANL2526 | D51: µg/L
A52: Aniline | B52: N,N-Dimethylanilin | C52: DIMETANLNN | D52: µg/L
A53: Aniline | B53: 2-Chloranilin | C53: CHANIL2 | D53: µg/L
A54: Aniline | B54: 3-Chloranilin | C54: CHANIL3 | D54: µg/L
A55: Aniline | B55: 4-Chloranilin | C55: CHANIL4 | D55: µg/L
A56: Aniline | B56: 3+4-Chloranilin | C56: CHANIL34 | D56: µg/L
A57: Aniline | B57: 2,3-Dichloranilin | C57: DICHANIL23 | D57: µg/L
A58: Aniline | B58: 2,4-Dichloranilin | C58: DICHANIL24 | D58: µg/L
A59: Aniline | B59: 2,5-Dichloranilin | C59: DICHANIL25 | D59: µg/L
A60: Aniline | B60: 2,6-Dichloranilin | C60: DICHANIL26 | D60: µg/L
A61: Aniline | B61: 2,4+2,5-Dichloranilin | C61: DICHANIL45 | D61: µg/L
A62: Aniline | B62: 3,4-Dichloranilin | C62: DICHANIL34 | D62: µg/L
A63: Aniline | B63: 3,5-Dichloranilin | C63: DICHANIL35 | D63: µg/L
A64: Aniline | B64: 2,4,6-Tribromanilin | C64: TRIANI | D64: µg/L
A65: Aniline | B65: 2,4,5-Trichloranilin | C65: TRCHANIL24 | D65: µg/L
A66: Aniline | B66: 2,3,4-Trichloranilin | C66: TRCHANIL23 | D66: µg/L
A67: Aniline | B67: 2,4,6-Trichloranilin | C67: TRCHANIL26 | D67: µg/L
A68: Aniline | B68: 3,4,5-Trichloranilin | C68: TRCHANIL34 | D68: µg/L
A69: Aniline | B69: 2,4,5+2,3,4-Trichloranilin | C69: TCA245_234 | D69: µg/L
A70: Aniline | B70: 2-Chlor-4-Methylanilin | C70: CL2METANL4 | D70: µg/L
A71: Aniline | B71: 2-Chlor-5-Methylanilin | C71: CL2METANL5 | D71: µg/L
A72: Aniline | B72: 2-Chlor-6-Methylanilin | C72: CL2METANL6 | D72: µg/L
A73: Aniline | B73: 3-Chlor-2-Methylanilin | C73: CL3METANL2 | D73: µg/L
A74: Aniline | B74: 3-Chlor-4-Methylanilin | C74: CL3METANL4 | D74: µg/L
A75: Aniline | B75: 4-Chlor-2-Methylanilin | C75: CL4METANL2 | D75: µg/L
A76: Aniline | B76: 5-Chlor-2-Methylanilin | C76: CL5METANL2 | D76: µg/L
A77: Aniline | B77: 3+4-Methylanilin | C77: METANL34 | D77: µg/L
A78: Aniline | B78: 2+4-Methylanilin | C78: METANL24 | D78: µg/L
A79: Aniline | B79: 2,4,6-Trimethylanilin | C79: TRMETANIL2 | D79: µg/L
A80: Aniline | B80: 2-Ethoxyanilin | C80: ETHOXANL2 | D80: µg/L
A81: Aniline | B81: 3-Ethoxyanilin | C81: EHTOXYANI3 | D81: µg/L
A82: Aniline | B82: 3,4-Ethoxyanilin | C82: ETHOXANL34 | D82: µg/L
A83: Aniline | B83: 4-Ethoxyanilin | C83: ETHOXYANI4 | D83: µg/L
A84: Aniline | B84: 2,4+2,6-Dimethylanilin | C84: DIMETA2426 | D84: µg/L
A85: Aniline | B85: 2,3+2,4-Dimethylanilin | C85: DIMETA2334 | D85: µg/L
A86: Anionen | B86: Chlorid | C86: CL | D86: mg/L
A87: Anionen | B87: Fluorid | C87: F | D87: mg/L
A88: Anionen | B88: Hydrogencarbonat | C88: HCO3 | D88: mg/L
A89: Anionen | B89: Nitrit | C89: NO2 | D89: mg/L
A90: Anionen | B90: Nitrat | C90: NO3 | D90: mg/L
A91: Anionen | B91: Phosphat (ges.) | C91: PO4_G | D91: mg/L
A92: Anionen | B92: Ortho-Phosphat | C92: PO4_O | D92: mg/L
A93: Anionen | B93: Sulfid | C93: S | D93: mg/L
A94: Anionen | B94: Sulfat | C94: SO4 | D94: mg/L
A95: Anionen | B95: Siliziumdioxid | C95: SIO2 | D95: mg/L
A96: Anionen | B96: Cyanide (frei) | C96: CYAN_FREI | D96: mg/L
A97: Anionen | B97: Cyanide (gebunden) | C97: CYAN_GEB | D97: mg/L
A98: Anionen | B98: Cyanide (ges.) | C98: CYANID | D98: mg/L
A99: Anionen | B99: Chlor (ges.) | C99: CL_G | D99: mg/L
A100: Anionen | B100: Bromid | C100: BR | D100: mg/L
A101: Anionen | B101: Hydroxidionen | C101: OH | D101: mg/L
A102: Anionen | B102: Schwefel (ges.) | C102: S_G | D102: mg/L
A103: Anionen | B103: Dihydrogensulfid | C103: H2SO3 | D103: mg/L
A104: Anionen | B104: Jod | C104: JOD | D104: µg/L
A105: Anionen | B105: Jodid | C105: JODID | D105: µg/L
A106: Anionen | B106: Bromat | C106: BROMAT | D106: mg/L
A107: Biochem. Sauerstoffbedarf | B107: BSB nach 1 Tag | C107: BSB1 | D107: mgO2/L
A108: Biochem. Sauerstoffbedarf | B108: BSB nach 2 Tagen | C108: BSB2 | D108: mgO2/L
A109: Biochem. Sauerstoffbedarf | B109: BSB nach 5 Tagen | C109: BSB5 | D109: mgO2/L
A110: Bromierte KW | B110: Tribrommethan | C110: CHBR3 | D110: µg/L
A111: Bromierte KW | B111: Dibromethan | C111: DIBRETHAN | D111: µg/L
A112: Bromierte KW | B112: Dibrommethan | C112: DIBRMETHAN | D112: µg/L
A113: Bromierte KW | B113: 1-Bromnaphthalin | C113: BRNAPHT1 | D113: µg/L
A114: Bromierte KW | B114: Bromchlormethan | C114: BRCLMETHAN | D114: µg/L
A115: Bromierte KW | B115: 2-Bromnaphthalin | C115: BRNAPHT2 | D115: µg/L
A116: Bromierte KW | B116: Tetrabrommethan | C116: TETBRMETHA | D116: µg/L
A117: Bromierte KW | B117: 1,2-Dibrommethan | C117: DBM12 | D117: µg/L
A118: Bromierte KW | B118: 1,4-Dibromnaphthalin | C118: DIBRNAP14 | D118: µg/L
A119: BTEX | B119: Benzen | C119: BENZEN | D119: µg/L
A120: BTEX | B120: Diethylbenzen | C120: DIETHBENZ | D120: µg/L
A121: BTEX | B121: Ethylbenzen | C121: ETHBENZEN | D121: µg/L
A122: BTEX | B122: i-Propylbenzen | C122: IPROPYL | D122: µg/L
A123: BTEX | B123: n-Propylbenzen | C123: NPROPYL | D123: µg/L
A124: BTEX | B124: Toluen | C124: TOLUEN | D124: µg/L
A125: BTEX | B125: Xylen (Isom.) | C125: XYLEN | D125: µg/L
A126: BTEX | B126: Xylen (meta,ortho) | C126: XYLEN_MO | D126: µg/L
A127: BTEX | B127: Xylen (meta,para) | C127: XYLEN_MP | D127: µg/L
A128: BTEX | B128: Xylen (ortho) | C128: XYLEN_O | D128: µg/L
A129: BTEX | B129: Xylen (meta) | C129: XYLEN_m | D129: µg/L
A130: BTEX | B130: Xylen (para) | C130: XYLEN_P | D130: µg/L
A131: BTEX | B131: Styren / Styrol | C131: STYREN | D131: µg/L
A132: BTEX | B132: Trimethylbenzen | C132: TRIMETHBEN | D132: µg/L
A133: BTEX | B133: 1,3,5-Trimethylbenzen | C133: TRIMBEN135 | D133: µg/L
A134: BTEX | B134: 1,2,4-Trimethylbenzen | C134: TRIMBEN124 | D134: µg/L
A135: BTEX | B135: 1,2,3-Trimethylbenzen | C135: TRIMBEN123 | D135: µg/L
A136: BTEX | B136: Cumol | C136: CUMOL | D136: µg/L
A137: BTEX | B137: 2-Ethyltoluen | C137: ETHYTOLU2 | D137: µg/L
A138: BTEX | B138: 3+4-Ethyltoluol | C138: ETHYLTOL34 | D138: µg/L
A139: BTEX | B139: Thiophen | C139: THIOPHEN | D139: µg/L
A140: BTEX | B140: Mesitylen | C140: MESITYLEN | D140: µg/L
A141: Carbamate | B141: Carbaryl | C141: CARBARYL | D141: µg/L
A142: Carbamate | B142: Carbofuran | C142: CARBOFURAN | D142: µg/L
A143: Carbonsäurederivate | B143: 24_D | C143: D_24 | D143: µg/L
A144: Carbonsäurederivate | B144: 24_DB | C144: DB_24 | D144: µg/L
A145: Carbonsäurederivate | B145: Dichlorprop | C145: DICHLORPRO | D145: µg/L
A146: Carbonsäurederivate | B146: MCPA | C146: MCPA | D146: µg/L
A147: Carbonsäurederivate | B147: MCPB | C147: MCPB | D147: µg/L
A148: Carbonsäurederivate | B148: MCPP | C148: MCPP | D148: µg/L
A149: Carbonsäurederivate | B149: 2,4,5-TP (Fenoprop) | C149: T_245 | D149: µg/L
A150: Chem. Sauerstoffbedarf | B150: CSB | C150: CSB | D150: mgO2/L
A151: Chlorbenzole | B151: 1,2,3-Trichlorbenzen | C151: TRICB123 | D151: µg/L
A152: Chlorbenzole | B152: Chlorbenzen | C152: CLBENZEN | D152: µg/L
A153: Chlorbenzole | B153: 1,2,4-Trichlorbenzen | C153: TRICB124 | D153: µg/L
A154: Chlorbenzole | B154: 1,3,5-Trichlorbenzen | C154: TRICB135 | D154: µg/L
A155: Chlorbenzole | B155: 1,2,3,4-Tetrachlorbenzen | C155: TETCB1234 | D155: µg/L
A156: Chlorbenzole | B156: Pentachlornitrobenzen | C156: PENTCLNBEN | D156: µg/L
A157: Chlorbenzole | B157: 1,2,3,5-Tetrachlorbenzen | C157: TETCB1235 | D157: µg/L
A158: Chlorbenzole | B158: 1,2,4,5-Tetrachlorbenzen | C158: TETCB1245 | D158: µg/L
A159: Chlorbenzole | B159: 1,2-Dichlorbenzen | C159: DCBENZ12 | D159: µg/L
A160: Chlorbenzole | B160: 1,3-Dichlorbenzen | C160: DCBENZ13 | D160: µg/L
A161: Chlorbenzole | B161: 1,4-Dichlorbenzen | C161: DCBENZ14 | D161: µg/L
A162: Chlorbenzole | B162: Oktachlorstyren | C162: OCS | D162: µg/L
A163: Chlorbenzole | B163: Pentachlorbenzen | C163: QCS | D163: µg/L
A164: Chlorbenzole | B164: Hexachlorbenzen | C164: HCB | D164: µg/L
A165: Chlorbenzole | B165: Monochlorbenzen | C165: MONCBENZ | D165: µg/L
A166: Chlorbenzole | B166: Dichlorbenzen | C166: DICBENZ | D166: µg/L
A167: Chlorbenzole | B167: Trichlorbenzen | C167: TRICBENZ | D167: µg/L
A168: Chlorbenzole | B168: Tetrachlorbenzen | C168: TETCBENZ | D168: µg/L
A169: Chlorbenzole | B169: 1,2,3,5+1,2,4,5-Tetrachlorbenzen | C169: TC12351245 | D169: µg/L
A170: Chlorbenzole | B170: Chlorbenzen (Mono) | C170: CLBENZOLMO | D170: µg/L
A171: Chlorbenzole | B171: Pentachloranisol | C171: PENTCHANI | D171: µg/L
A172: Chlorierte KW | B172: Dichlormethan | C172: DCM | D172: µg/L
A173: Chlorierte KW | B173: Trichlormethan | C173: TRICM | D173: µg/L
A174: Chlorierte KW | B174: Tetrachlormethan | C174: TETCM | D174: µg/L
A175: Chlorierte KW | B175: Dichlorethan (Isom.) | C175: DCEA | D175: µg/L
A176: Chlorierte KW | B176: 1,2-Dichlorethan | C176: DCEA12 | D176: µg/L
A177: Chlorierte KW | B177: 1,1-Dichlorethan | C177: DCEA11 | D177: µg/L
A178: Chlorierte KW | B178: Dichlorethen (Isom.) | C178: DCEE | D178: µg/L
A179: Chlorierte KW | B179: 1,1-Dichlorethen | C179: DCE11 | D179: µg/L
A180: Chlorierte KW | B180: cis-1,2-Dichlorethen | C180: DCE12CI | D180: µg/L
A181: Chlorierte KW | B181: trans-1,2-Dichlorethen | C181: DCE12TR | D181: µg/L
A182: Chlorierte KW | B182: 1,1,1-Trichlorethan | C182: TRICE111 | D182: µg/L
A183: Chlorierte KW | B183: 1,1,2-Trichlorethan | C183: TRICE112 | D183: µg/L
A184: Chlorierte KW | B184: Trichlorethen | C184: TRICE | D184: µg/L
A185: Chlorierte KW | B185: Tetrachlorethen | C185: TETCE | D185: µg/L
A186: Chlorierte KW | B186: Tetrachlorethan | C186: TETCEA | D186: µg/L
A187: Chlorierte KW | B187: 1,1,1,2-Tetrachlorethan | C187: TCE_1112 | D187: µg/L
A188: Chlorierte KW | B188: 1,1,2,2-Tetrachlorethan | C188: TCE_1122 | D188: µg/L
A189: Chlorierte KW | B189: Vinylchlorid | C189: VINYLCL | D189: µg/L
A190: Chlorierte KW | B190: Chlormethan | C190: CLMETHAN | D190: µg/L
A191: Chlorierte KW | B191: 1,2-Dichlorpropan | C191: DICLPROP12 | D191: µg/L
A192: Chlorierte KW | B192: 1,1,1-Trichlormethan | C192: TRIME111 | D192: µg/L
A193: Chlorierte KW | B193: 1,1-Dichlorpropan | C193: DICLPROP11 | D193: µg/L
A194: Chlorierte KW | B194: 1,3-Dichlorpropan | C194: DICLPROP13 | D194: µg/L
A195: Chlorierte KW | B195: 2,2-Dichlorpropan | C195: DICLPROP22 | D195: µg/L
A196: Chlorierte KW | B196: Bromoform | C196: BROMFORM | D196: µg/L
A197: Chlorierte KW | B197: Bromdichlormethan | C197: BRDICLMETH | D197: µg/L
A198: Chlorierte KW | B198: Dibromchlormethan | C198: DIBRCLMETH | D198: µg/L
A199: Chlorierte KW | B199: cis-Chlordan | C199: CISCHLOR | D199: µg/L
A200: Chlorierte KW | B200: trans-Chlordan | C200: TRANSCHLOR | D200: µg/L
... 474 more rows
